Workbook

Sheet Orçamentária
A1: Ata de Registro de Preços para Reformas no SF - 2019/2020
A3: PLANILHA ORÇAMENTÁRIA
A4: Data: Julho de 2019 (data-base: Sinapi jun/2019, Pini jun/2019)
A5: Item | B5: DISCRIMINAÇÃO | C5: UN | D5: QUANT. TOTAL | E5: PREÇO UNITÁRIO | F5: CUSTO DIRETO | G5: BDI (%) | H5: PREÇO UNITÁRIO COM BDI | I5: CUSTO TOTAL | K5: PREÇO UNITÁRIO | L5: Diferença | M5: % alterado | N5: CUSTO DIRETO | O5: Diferença | P5: PREÇO UNITÁRIO COM BDI | Q5: Diferença | R5: CUSTO TOTAL | S5: Diferença
B6: GRUPO 1 - SERVIÇOS DE REFORMA | F6: =SUBTOTAL(109,F7:F383) -> 9210568.36 | I6: =SUBTOTAL(109,I7:I383) -> 10762200.44
A7: SF-00001 | B7: Engenheiro(a) /Arquiteto(a) júnior | C7: hh | D7: 3000 | E7: =OFFSET(INDEX(Composições!A:J,MATCH(B7,Composições!B:B,0),10),2,0) -> 76.03 | F7: =IF(ISNUMBER(E7),ROUND(D7*E7,2),"-") -> 228090 | G7: =BDI!$B$17 -> 0.2034 | H7: =IF(ISNUMBER(E7),ROUND(E7*(1+G7),2),0) -> 91.49 | I7: =ROUND(H7*D7,2) -> 274470 | K7: 76.03 | L7: =IF(E7=K7,"",E7-K7) ->  | M7: =IF(ISNUMBER(L7),L7/K7,"") ->  | N7: 228090 | O7: =IF(F7=N7,"",F7-N7) ->  | P7: 91.49 | Q7: =IF(H7=P7,"",H7-P7) ->  | R7: 274470 | S7: =IF(I7=R7,"",I7-R7) -> 
A8: SF-00002 | B8: Mestre de obras | C8: hh | D8: 6000 | E8: =OFFSET(INDEX(Composições!A:J,MATCH(B8,Composições!B:B,0),10),2,0) -> 23.08 | F8: =IF(ISNUMBER(E8),ROUND(D8*E8,2),"-") -> 138480 | G8: =BDI!$B$17 -> 0.2034 | H8: =IF(ISNUMBER(E8),ROUND(E8*(1+G8),2),0) -> 27.77 | I8: =ROUND(H8*D8,2) -> 166620 | K8: 23.08 | L8: =IF(E8=K8,"",E8-K8) ->  | N8: 138480 | O8: =IF(F8=N8,"",F8-N8) ->  | P8: 27.77 | Q8: =IF(H8=P8,"",H8-P8) ->  | R8: 166620 | S8: =IF(I8=R8,"",I8-R8) -> 
A9: SF-00003 | B9: Planejamento físico-financeiro | C9: un | D9: 10 | E9: =OFFSET(INDEX(Composições!A:J,MATCH(B9,Composições!B:B,0),10),2,0) -> 1382.4 | F9: 13824 | G9: =BDI!$B$17 -> 0.2034 | H9: 1663.58 | I9: 16635.8 | K9: 1382.4 | N9: 13824 | P9: 1663.58 | R9: 16635.8
A10: SF-00004 | B10: Projetos de segurança do trabalho | C10: un | D10: 6 | E10: =OFFSET(INDEX(Composições!A:J,MATCH(B10,Composições!B:B,0),10),2,0) -> 1954.5 | F10: 11727 | G10: =BDI!$B$17 -> 0.2034 | H10: 2352.05 | I10: 14112.3 | K10: 1954.5 | N10: 11727 | P10: 2352.05 | R10: 14112.3
A11: SF-00005 | B11: Demolição de alvenarias | C11: m3 | D11: 50 | E11: =OFFSET(INDEX(Composições!A:J,MATCH(B11,Composições!B:B,0),10),2,0) -> 37.39 | F11: 1869.5 | G11: =BDI!$B$17 -> 0.2034 | H11: 45 | I11: 2250 | K11: 37.39 | N11: 1869.5 | P11: 45 | R11: 2250
A12: SF-00006 | B12: Demolição de concreto simples | C12: m3 | D12: 20 | E12: =OFFSET(INDEX(Composições!A:J,MATCH(B12,Composições!B:B,0),10),2,0) -> 209.85 | F12: 4197 | G12: =BDI!$B$17 -> 0.2034 | H12: 252.53 | I12: 5050.6 | K12: 209.86 | L12: -0.01 | M12: -4.765081483e-05 | N12: 4197.2 | O12: -0.2 | P12: 252.55 | Q12: -0.02 | R12: 5051 | S12: -0.4
A13: SF-00007 | B13: Demolição de contrapiso | C13: m2 | D13: 634 | E13: =OFFSET(INDEX(Composições!A:J,MATCH(B13,Composições!B:B,0),10),2,0) -> 9.95 | F13: 6308.3 | G13: =BDI!$B$17 -> 0.2034 | H13: 11.97 | I13: 7588.98 | K13: 9.95 | N13: 6308.3 | P13: 11.97 | R13: 7588.98
A14: SF-00008 | B14: Demolição de fechamento ou parede em gesso acartonado | C14: m2 | D14: 100 | E14: =OFFSET(INDEX(Composições!A:J,MATCH(B14,Composições!B:B,0),10),2,0) -> 5.06 | F14: 506 | G14: =BDI!$B$17 -> 0.2034 | H14: 6.09 | I14: 609 | K14: 5.06 | N14: 506 | P14: 6.09 | R14: 609
A15: SF-00009 | B15: Demolição de forro de gesso | C15: m2 | D15: 3300 | E15: =OFFSET(INDEX(Composições!A:J,MATCH(B15,Composições!B:B,0),10),2,0) -> 1.1 | F15: 3630 | G15: =BDI!$B$17 -> 0.2034 | H15: 1.32 | I15: 4356 | K15: 3.36 | L15: -2.26 | M15: -0.6726190476 | N15: 11088 | O15: -7458 | P15: 4.04 | Q15: -2.72 | R15: 13332 | S15: -8976
A16: SF-00010 | B16: Demolição de infraestrutura elétrica (eletrodutos, eletrocalhas, cabos) | C16: m | D16: 5000 | E16: =OFFSET(INDEX(Composições!A:J,MATCH(B16,Composições!B:B,0),10),2,0) -> 2.28 | F16: 11400 | G16: =BDI!$B$17 -> 0.2034 | H16: 2.74 | I16: 13700 | K16: 2.27 | L16: 0.01 | M16: 0.004405286344 | N16: 11350 | O16: 50 | P16: 2.73 | Q16: 0.01 | R16: 13650 | S16: 50
A17: SF-00011 | B17: Demolição de revestimento cerâmico, granito, mármore ou granitina | C17: m2 | D17: 340 | E17: =OFFSET(INDEX(Composições!A:J,MATCH(B17,Composições!B:B,0),10),2,0) -> 8.25 | F17: 2805 | G17: =BDI!$B$17 -> 0.2034 | H17: 9.93 | I17: 3376.2 | K17: 8.25 | N17: 2805 | P17: 9.93 | R17: 3376.2
A18: SF-00012 | B18: Demolição de revestimento em argamassa | C18: m2 | D18: 2000 | E18: =OFFSET(INDEX(Composições!A:J,MATCH(B18,Composições!B:B,0),10),2,0) -> 2.22 | F18: 4440 | G18: =BDI!$B$17 -> 0.2034 | H18: 2.67 | I18: 5340 | K18: 2.21 | L18: 0.01 | M18: 0.004524886878 | N18: 4420 | O18: 20 | P18: 2.66 | Q18: 0.01 | R18: 5320 | S18: 20
A19: SF-00013 | B19: Demolição de tubulação hidrossanitária embutida com conexões e acessórios | C19: m | D19: 100 | E19: =OFFSET(INDEX(Composições!A:J,MATCH(B19,Composições!B:B,0),10),2,0) -> 0.33 | F19: 33 | G19: =BDI!$B$17 -> 0.2034 | H19: 0.4 | I19: 40 | K19: 0.34 | L19: -0.01 | M19: -0.02941176471 | N19: 34 | O19: -1 | P19: 0.41 | Q19: -0.01 | R19: 41 | S19: -1
A20: SF-00014 | B20: Demolição em concreto armado | C20: m3 | D20: 10 | E20: =OFFSET(INDEX(Composições!A:J,MATCH(B20,Composições!B:B,0),10),2,0) -> 179.72 | F20: 1797.2 | G20: =BDI!$B$17 -> 0.2034 | H20: 216.28 | I20: 2162.8 | K20: 179.69 | L20: 0.03 | M20: 0.0001669541989 | N20: 1796.9 | O20: 0.3 | P20: 216.24 | Q20: 0.04 | R20: 2162.4 | S20: 0.4
A21: SF-00015 | B21: Locação de caçambas | C21: un | D21: 110 | E21: 310 | F21: 34100 | G21: =BDI!$G$17 -> 0.11 | H21: 344.1 | I21: 37851 | K21: 310 | N21: 34100 | P21: 344.1 | R21: 37851
A22: SF-00016 | B22: Remoção de armários | C22: m2 | D22: 240 | E22: =OFFSET(INDEX(Composições!A:J,MATCH(B22,Composições!B:B,0),10),2,0) -> 11.7 | F22: 2808 | G22: =BDI!$B$17 -> 0.2034 | H22: 14.08 | I22: 3379.2 | K22: 11.7 | N22: 2808 | P22: 14.08 | R22: 3379.2
A23: SF-00017 | B23: Remoção de bancadas | C23: m2 | D23: 40 | E23: =OFFSET(INDEX(Composições!A:J,MATCH(B23,Composições!B:B,0),10),2,0) -> 17.11 | F23: 684.4 | G23: =BDI!$B$17 -> 0.2034 | H23: 20.59 | I23: 823.6 | K23: 17.11 | N23: 684.4 | P23: 20.59 | R23: 823.6
A24: SF-00018 | B24: Remoção de batentes de madeira | C24: un | D24: 43 | E24: =OFFSET(INDEX(Composições!A:J,MATCH(B24,Composições!B:B,0),10),2,0) -> 6.45 | F24: 277.35 | G24: =BDI!$B$17 -> 0.2034 | H24: 7.76 | I24: 333.68 | K24: 6.46 | L24: -0.01 | M24: -0.001547987616 | N24: 277.78 | O24: -0.43 | P24: 7.77 | Q24: -0.01 | R24: 334.11 | S24: -0.43
A25: SF-00019 | B25: Remoção de canaleta em alumínio | C25: m | D25: 300 | E25: =OFFSET(INDEX(Composições!A:J,MATCH(B25,Composições!B:B,0),10),2,0) -> 3.6 | F25: 1080 | G25: =BDI!$B$17 -> 0.2034 | H25: 4.33 | I25: 1299 | K25: 3.6 | N25: 1080 | P25: 4.33 | R25: 1299
A26: SF-00020 | B26: Remoção de carpete | C26: m2 | D26: 400 | E26: =OFFSET(INDEX(Composições!A:J,MATCH(B26,Composições!B:B,0),10),2,0) -> 1.61 | F26: 644 | G26: =BDI!$B$17 -> 0.2034 | H26: 1.94 | I26: 776 | K26: 1.61 | N26: 644 | P26: 1.94 | R26: 776
A27: SF-00021 | B27: Remoção de cortinas | C27: m | D27: 50 | E27: =OFFSET(INDEX(Composições!A:J,MATCH(B27,Composições!B:B,0),10),2,0) -> 2.82 | F27: 141 | G27: =BDI!$B$17 -> 0.2034 | H27: 3.39 | I27: 169.5 | K27: 2.82 | N27: 141 | P27: 3.39 | R27: 169.5
A28: SF-00022 | B28: Remoção de difusores, grelhas e acessórios de climatização | C28: un | D28: 120 | E28: =OFFSET(INDEX(Composições!A:J,MATCH(B28,Composições!B:B,0),10),2,0) -> 17.67 | F28: 2120.4 | G28: =BDI!$B$17 -> 0.2034 | H28: 21.26 | I28: 2551.2 | K28: 17.66 | L28: 0.01 | M28: 0.0005662514156 | N28: 2119.2 | O28: 1.2 | P28: 21.25 | Q28: 0.01 | R28: 2550 | S28: 1.2
A29: SF-00023 | B29: Remoção de divisória de mármore ou granito | C29: m2 | D29: 60 | E29: =OFFSET(INDEX(Composições!A:J,MATCH(B29,Composições!B:B,0),10),2,0) -> 26.7 | F29: 1602 | G29: =BDI!$B$17 -> 0.2034 | H29: 32.13 | I29: 1927.8 | K29: 26.72 | L29: -0.02 | M29: -0.000748502994 | N29: 1603.2 | O29: -1.2 | P29: 32.15 | Q29: -0.02 | R29: 1929 | S29: -1.2
A30: SF-00024 | B30: Remoção de divisórias de MDF e gesso acartonado | C30: m2 | D30: 1387 | E30: =OFFSET(INDEX(Composições!A:J,MATCH(B30,Composições!B:B,0),10),2,0) -> 23.06 | F30: 31984.22 | G30: =BDI!$B$17 -> 0.2034 | H30: 27.75 | I30: 38489.25 | K30: 23.06 | N30: 31984.22 | P30: 27.75 | R30: 38489.25
A31: SF-00025 | B31: Remoção de dutos/tubulações | C31: m | D31: 2000 | E31: =OFFSET(INDEX(Composições!A:J,MATCH(B31,Composições!B:B,0),10),2,0) -> 7.58 | F31: 15160 | G31: =BDI!$B$17 -> 0.2034 | H31: 9.12 | I31: 18240 | K31: 7.59 | L31: -0.01 | M31: -0.001317523057 | N31: 15180 | O31: -20 | P31: 9.13 | Q31: -0.01 | R31: 18260 | S31: -20
A32: SF-00026 | B32: Remoção de esquadrias metálicas | C32: m2 | D32: 100 | E32: =OFFSET(INDEX(Composições!A:J,MATCH(B32,Composições!B:B,0),10),2,0) -> 8.08 | F32: 808 | G32: =BDI!$B$17 -> 0.2034 | H32: 9.72 | I32: 972 | K32: 8.07 | L32: 0.01 | M32: 0.001239157373 | N32: 807 | O32: 1 | P32: 9.71 | Q32: 0.01 | R32: 971 | S32: 1
A33: SF-00027 | B33: Remoção de exaustor | C33: un | D33: 20 | E33: =OFFSET(INDEX(Composições!A:J,MATCH(B33,Composições!B:B,0),10),2,0) -> 5.87 | F33: 117.4 | G33: =BDI!$B$17 -> 0.2034 | H33: 7.06 | I33: 141.2 | K33: 5.87 | N33: 117.4 | P33: 7.06 | R33: 141.2
A34: SF-00028 | B34: Remoção de fechadura/puxador de porta | C34: un | D34: 101 | E34: =OFFSET(INDEX(Composições!A:J,MATCH(B34,Composições!B:B,0),10),2,0) -> 4.81 | F34: 485.81 | G34: =BDI!$B$17 -> 0.2034 | H34: 5.79 | I34: 584.79 | K34: 4.81 | N34: 485.81 | P34: 5.79 | R34: 584.79
A35: SF-00029 | B35: Remoção de folha de porta e dobradiças | C35: un | D35: 82 | E35: =OFFSET(INDEX(Composições!A:J,MATCH(B35,Composições!B:B,0),10),2,0) -> 6.21 | F35: 509.22 | G35: =BDI!$B$17 -> 0.2034 | H35: 7.47 | I35: 612.54 | K35: 6.21 | N35: 509.22 | P35: 7.47 | R35: 612.54
A36: SF-00030 | B36: Remoção de laminado melamínico (LDAP), em PVC ou vinílico | C36: m2 | D36: 1000 | E36: =OFFSET(INDEX(Composições!A:J,MATCH(B36,Composições!B:B,0),10),2,0) -> 14.53 | F36: 14530 | G36: =BDI!$B$17 -> 0.2034 | H36: 17.49 | I36: 17490 | K36: 14.53 | N36: 14530 | P36: 17.49 | R36: 17490
A37: SF-00031 | B37: Remoção de louças | C37: un | D37: 120 | E37: =OFFSET(INDEX(Composições!A:J,MATCH(B37,Composições!B:B,0),10),2,0) -> 8.23 | F37: 987.6 | G37: =BDI!$B$17 -> 0.2034 | H37: 9.9 | I37: 1188 | K37: 8.23 | N37: 987.6 | P37: 9.9 | R37: 1188
A38: SF-00032 | B38: Remoção de luminária | C38: un | D38: 500 | E38: =OFFSET(INDEX(Composições!A:J,MATCH(B38,Composições!B:B,0),10),2,0) -> 4.34 | F38: 2170 | G38: =BDI!$B$17 -> 0.2034 | H38: 5.22 | I38: 2610 | K38: 4.34 | N38: 2170 | P38: 5.22 | R38: 2610
A39: SF-00033 | B39: Remoção de metais e acessórios | C39: un | D39: 300 | E39: =OFFSET(INDEX(Composições!A:J,MATCH(B39,Composições!B:B,0),10),2,0) -> 6 | F39: 1800 | G39: =BDI!$B$17 -> 0.2034 | H39: 7.22 | I39: 2166 | K39: 6 | N39: 1800 | P39: 7.22 | R39: 2166
A40: SF-00034 | B40: Remoção de painéis de vidro temperado | C40: m2 | D40: 586 | E40: =OFFSET(INDEX(Composições!A:J,MATCH(B40,Composições!B:B,0),10),2,0) -> 11.73 | F40: 6873.78 | G40: =BDI!$B$17 -> 0.2034 | H40: 14.12 | I40: 8274.32 | K40: 11.74 | L40: -0.01 | M40: -0.0008517887564 | N40: 6879.64 | O40: -5.86 | P40: 14.13 | Q40: -0.01 | R40: 8280.18 | S40: -5.86
A41: SF-00035 | B41: Remoção de película | C41: m2 | D41: 196 | E41: 17 | F41: 3332 | G41: =BDI!$B$17 -> 0.2034 | H41: 20.46 | I41: 4010.16 | K41: 17 | N41: 3332 | P41: 20.46 | R41: 4010.16
A42: SF-00036 | B42: Remoção de persianas | C42: m | D42: 186 | E42: =OFFSET(INDEX(Composições!A:J,MATCH(B42,Composições!B:B,0),10),2,0) -> 2.82 | F42: 524.52 | G42: =BDI!$B$17 -> 0.2034 | H42: 3.39 | I42: 630.54 | K42: 2.82 | N42: 524.52 | P42: 3.39 | R42: 630.54
A43: SF-00037 | B43: Remoção de pintura ou textura | C43: m2 | D43: 5800 | E43: =OFFSET(INDEX(Composições!A:J,MATCH(B43,Composições!B:B,0),10),2,0) -> 5.68 | F43: 32944 | G43: =BDI!$B$17 -> 0.2034 | H43: 6.84 | I43: 39672 | K43: 5.69 | L43: -0.01 | M43: -0.001757469244 | N43: 33002 | O43: -58 | P43: 6.85 | Q43: -0.01 | R43: 39730 | S43: -58
A44: SF-00038 | B44: Remoção de placas de forro | C44: m2 | D44: 831 | E44: =OFFSET(INDEX(Composições!A:J,MATCH(B44,Composições!B:B,0),10),2,0) -> 3.3 | F44: 2742.3 | G44: =BDI!$B$17 -> 0.2034 | H44: 3.97 | I44: 3299.07 | K44: 3.3 | N44: 2742.3 | P44: 3.97 | R44: 3299.07
A45: SF-00039 | B45: Remoção de quadros de elétricos ou de telecomunicações | C45: un | D45: 30 | E45: =OFFSET(INDEX(Composições!A:J,MATCH(B45,Composições!B:B,0),10),2,0) -> 50.92 | F45: 1527.6 | G45: =BDI!$B$17 -> 0.2034 | H45: 61.28 | I45: 1838.4 | K45: 50.91 | L45: 0.01 | M45: 0.0001964250638 | N45: 1527.3 | O45: 0.3 | P45: 61.27 | Q45: 0.01 | R45: 1838.1 | S45: 0.3
A46: SF-00040 | B46: Remoção de revestimento acústico | C46: m2 | D46: 440 | E46: =OFFSET(INDEX(Composições!A:J,MATCH(B46,Composições!B:B,0),10),2,0) -> 2.84 | F46: 1249.6 | G46: =BDI!$B$17 -> 0.2034 | H46: 3.42 | I46: 1504.8 | K46: 2.84 | N46: 1249.6 | P46: 3.42 | R46: 1504.8
A47: SF-00041 | B47: Remoção de rodapé/rodabanca de mármore ou granito | C47: m | D47: 333 | E47: =OFFSET(INDEX(Composições!A:J,MATCH(B47,Composições!B:B,0),10),2,0) -> 1.24 | F47: 412.92 | G47: =BDI!$B$17 -> 0.2034 | H47: 1.49 | I47: 496.17 | K47: 1.24 | N47: 412.92 | P47: 1.49 | R47: 496.17
A48: SF-00042 | B48: Remoção de rodapés de madeira | C48: m2 | D48: 10 | E48: =OFFSET(INDEX(Composições!A:J,MATCH(B48,Composições!B:B,0),10),2,0) -> 5.16 | F48: 51.6 | G48: =BDI!$B$17 -> 0.2034 | H48: 6.21 | I48: 62.1 | K48: 5.15 | L48: 0.01 | M48: 0.001941747573 | N48: 51.5 | O48: 0.1 | P48: 6.2 | Q48: 0.01 | R48: 62 | S48: 0.1
A49: SF-00043 | B49: Remoção de soleira de mármore ou granito | C49: m | D49: 20 | E49: =OFFSET(INDEX(Composições!A:J,MATCH(B49,Composições!B:B,0),10),2,0) -> 7.82 | F49: 156.4 | G49: =BDI!$B$17 -> 0.2034 | H49: 9.41 | I49: 188.2 | K49: 7.81 | L49: 0.01 | M49: 0.001280409731 | N49: 156.2 | O49: 0.2 | P49: 9.4 | Q49: 0.01 | R49: 188 | S49: 0.2
A50: SF-00044 | B50: Remoção de split/fancolete/ACJ (equipamento unitário) | C50: un | D50: 200 | E50: =OFFSET(INDEX(Composições!A:J,MATCH(B50,Composições!B:B,0),10),2,0) -> 35.47 | F50: 7094 | G50: =BDI!$B$17 -> 0.2034 | H50: 42.68 | I50: 8536 | K50: 35.47 | N50: 7094 | P50: 42.68 | R50: 8536
A51: SF-00045 | B51: Remoção de vidro comum / espelho | C51: m2 | D51: 53 | E51: =OFFSET(INDEX(Composições!A:J,MATCH(B51,Composições!B:B,0),10),2,0) -> 11.81 | F51: 625.93 | G51: =BDI!$B$17 -> 0.2034 | H51: 14.21 | I51: 753.13 | K51: 11.81 | N51: 625.93 | P51: 14.21 | R51: 753.13
A52: SF-00046 | B52: Retirada de entulhos | C52: m3 | D52: 410 | E52: =OFFSET(INDEX(Composições!A:J,MATCH(B52,Composições!B:B,0),10),2,0) -> 14.21 | F52: 5826.1 | G52: =BDI!$B$17 -> 0.2034 | H52: 17.1 | I52: 7011 | K52: 14.21 | N52: 5826.1 | P52: 17.1 | R52: 7011
A53: SF-00047 | B53: Absorvedor de energia para linha de vida | C53: un | D53: 5 | E53: 450 | F53: 2250 | G53: =BDI!$B$17 -> 0.2034 | H53: 541.53 | I53: 2707.65 | K53: 450 | N53: 2250 | P53: 541.53 | R53: 2707.65
A54: SF-00048 | B54: Andaime fachadeiro | C54: m2 x mês | D54: 350 | E54: =OFFSET(INDEX(Composições!A:J,MATCH(B54,Composições!B:B,0),10),2,0) -> 3.59 | F54: 1256.5 | G54: =BDI!$B$17 -> 0.2034 | H54: 4.32 | I54: 1512 | K54: 3.59 | N54: 1256.5 | P54: 4.32 | R54: 1512
A55: SF-00049 | B55: Andaime tubular (aluguel/mês) | C55: m x mês | D55: 70 | E55: 12 | F55: 840 | G55: =BDI!$B$17 -> 0.2034 | H55: 14.44 | I55: 1010.8 | K55: 12 | N55: 840 | P55: 14.44 | R55: 1010.8
A56: SF-00050 | B56: Cabo de aço com 8 mm de diâmetro galvanizado para linha de vida | C56: m | D56: 280 | E56: 18 | F56: 5040 | G56: =BDI!$B$17 -> 0.2034 | H56: 21.66 | I56: 6064.8 | K56: 18 | N56: 5040 | P56: 21.66 | R56: 6064.8
A57: SF-00051 | B57: Corda de poliamida 12 mm tipo bombeiro, para trabalho em altura | C57: m | D57: 84 | E57: =OFFSET(INDEX(Composições!A:J,MATCH(B57,Composições!B:B,0),10),2,0) -> 4.37 | F57: 367.08 | G57: =BDI!$B$17 -> 0.2034 | H57: 5.26 | I57: 441.84 | K57: 4.37 | N57: 367.08 | P57: 5.26 | R57: 441.84
A58: SF-00052 | B58: Ensaio de ponto de ancoragem existente | C58: un | D58: 28 | E58: 291.07 | F58: 8149.96 | G58: =BDI!$B$17 -> 0.2034 | H58: 350.27 | I58: 9807.56 | K58: 291.07 | N58: 8149.96 | P58: 350.27 | R58: 9807.56
A59: SF-00053 | B59: Escadas de acesso para andaime tubular | C59: m x mês | D59: 40 | E59: 6.15 | F59: 246 | G59: =BDI!$B$17 -> 0.2034 | H59: 7.4 | I59: 296 | K59: 6.15 | N59: 246 | P59: 7.4 | R59: 296
A60: SF-00055 | B60: Guarda-corpo com rodapé para andaime tubular | C60: m x mês | D60: 50 | E60: 60 | F60: 3000 | G60: =BDI!$B$17 -> 0.2034 | H60: 72.2 | I60: 3610 | K60: 60 | N60: 3000 | P60: 72.2 | R60: 3610
A61: SF-00057 | B61: Isolamento de obra com tela plástica com malha de 5mm e estrutura de madeira pontaleteada | C61: m2 | D61: 280 | E61: =OFFSET(INDEX(Composições!A:J,MATCH(B61,Composições!B:B,0),10),2,0) -> 19.64 | F61: 5499.2 | G61: =BDI!$B$17 -> 0.2034 | H61: 23.63 | I61: 6616.4 | K61: 19.64 | N61: 5499.2 | P61: 23.63 | R61: 6616.4
A62: SF-00058 | B62: Suporte intermediário curvo para linha de vida | C62: un | D62: 5 | E62: 650 | F62: 3250 | G62: =BDI!$B$17 -> 0.2034 | H62: 782.21 | I62: 3911.05 | K62: 650 | N62: 3250 | P62: 782.21 | R62: 3911.05
A63: SF-00060 | B63: Kit para montagem de dois olhais | C63: un | D63: 5 | E63: 123.11 | F63: 615.55 | G63: =BDI!$B$17 -> 0.2034 | H63: 148.15 | I63: 740.75 | K63: 123.11 | N63: 615.55 | P63: 148.15 | R63: 740.75
A64: SF-00061 | B64: Manilha com travamento por porca e cupilha | C64: un | D64: 14 | E64: 33.03 | F64: 462.42 | G64: =BDI!$B$17 -> 0.2034 | H64: 39.75 | I64: 556.5 | K64: 33.03 | N64: 462.42 | P64: 39.75 | R64: 556.5
A65: SF-00062 | B65: Pilar de ancoragem para linha de vida | C65: un | D65: 14 | E65: 484.89 | F65: 6788.46 | G65: =BDI!$B$17 -> 0.2034 | H65: 583.52 | I65: 8169.28 | K65: 484.89 | N65: 6788.46 | P65: 583.52 | R65: 8169.28
A66: SF-00063 | B66: Piso metálico para andaime tubular | C66: m2 x mês | D66: 50 | E66: 54 | F66: 2700 | G66: =BDI!$B$17 -> 0.2034 | H66: 64.98 | I66: 3249 | K66: 54 | N66: 2700 | P66: 64.98 | R66: 3249
A67: SF-00065 | B67: Placa de ancoragem para montagem no pilar | C67: un | D67: 10 | E67: 141.83 | F67: 1418.3 | G67: =BDI!$B$17 -> 0.2034 | H67: 170.68 | I67: 1706.8 | K67: 141.83 | N67: 1418.3 | P67: 170.68 | R67: 1706.8
A68: SF-00066 | B68: Ponto de ancoragem | C68: un | D68: 32 | E68: 150 | F68: =IF(ISNUMBER(E68),ROUND(D68*E68,2),"-") -> 4800 | G68: =BDI!$B$17 -> 0.2034 | H68: =IF(ISNUMBER(E68),ROUND(E68*(1+G68),2),0) -> 180.51 | I68: 5776.32 | K68: 150 | N68: 4800 | P68: 180.51 | R68: 5776.32
A69: SF-00067 | B69: Sapatas e rodízios para andaime tubular | C69: conj x mês | D69: 25 | E69: 57 | F69: 1425 | G69: =BDI!$B$17 -> 0.2034 | H69: 68.59 | I69: 1714.75 | K69: 57 | N69: 1425 | P69: 68.59 | R69: 1714.75
A70: SF-00068 | B70: Sistema Guarda-corpo-Rodapé (GcR) metálico | C70: m x mês | D70: 315 | E70: 10 | F70: 3150 | G70: =BDI!$B$17 -> 0.2034 | H70: 12.03 | I70: 3789.45 | K70: 10 | N70: 3150 | P70: 12.03 | R70: 3789.45
A71: SF-00069 | B71: Suporte intermediário para linha de vida | C71: un | D71: 17 | E71: 227.12 | F71: 3861.04 | G71: =BDI!$B$17 -> 0.2034 | H71: 273.32 | I71: 4646.44 | K71: 227.12 | M71: =IF(ISNUMBER(L71),L71/K71,"") ->  | N71: 3861.04 | P71: 273.32 | R71: 4646.44
A72: SF-00070 | B72: Tapume | C72: m2 | D72: 55 | E72: =OFFSET(INDEX(Composições!A:J,MATCH(B72,Composições!B:B,0),10),2,0) -> 46.75 | F72: 2571.25 | G72: =BDI!$B$17 -> 0.2034 | H72: 56.26 | I72: =ROUND(H72*D72,2) -> 3094.3 | K72: 46.75 | L72: =IF(E72=K72,"",E72-K72) ->  | N72: 2571.25 | O72: =IF(F72=N72,"",F72-N72) ->  | P72: 56.26 | Q72: =IF(H72=P72,"",H72-P72) ->  | R72: 3094.3 | S72: =IF(I72=R72,"",I72-R72) -> 
A73: SF-00071 | B73: Trole para linha de vida horizontal | C73: un | D73: 5 | E73: 264.01 | F73: 1320.05 | G73: =BDI!$B$17 -> 0.2034 | H73: 317.71 | I73: 1588.55 | K73: 264.01 | N73: 1320.05 | P73: 317.71 | R73: 1588.55
A74: SF-00073 | B74: Limpeza final de obra | C74: m2 | D74: 5904 | E74: =OFFSET(INDEX(Composições!A:J,MATCH(B74,Composições!B:B,0),10),2,0) -> 2.13 | F74: 12575.52 | G74: =BDI!$B$17 -> 0.2034 | H74: 2.56 | I74: 15114.24 | K74: 2.13 | N74: 12575.52 | P74: 2.56 | R74: 15114.24
A75: SF-00074 | B75: Abertura/fechamento rasgo em alvenaria | C75: m | D75: 3000 | E75: =OFFSET(INDEX(Composições!A:J,MATCH(B75,Composições!B:B,0),10),2,0) -> 14.19 | F75: 42570 | G75: =BDI!$B$17 -> 0.2034 | H75: 17.08 | I75: 51240 | K75: 14.08 | L75: 0.11 | M75: 0.0078125 | N75: 42240 | O75: 330 | P75: 16.94 | Q75: 0.14 | R75: 50820 | S75: 420
A76: SF-00075 | B76: Furo em concreto de até 75mm de diâmetro | C76: un | D76: 20 | E76: =OFFSET(INDEX(Composições!A:J,MATCH(B76,Composições!B:B,0),10),2,0) -> 71.14 | F76: 1422.8 | G76: =BDI!$B$17 -> 0.2034 | H76: 85.61 | I76: 1712.2 | K76: 71.14 | N76: 1422.8 | P76: 85.61 | R76: 1712.2
A77: SF-00076 | B77: Furo em concreto para diâmetros maiores que 75mm | C77: un | D77: 20 | E77: =OFFSET(INDEX(Composições!A:J,MATCH(B77,Composições!B:B,0),10),2,0) -> 90.86 | F77: 1817.2 | G77: =BDI!$B$17 -> 0.2034 | H77: 109.34 | I77: 2186.8 | K77: 90.86 | N77: 1817.2 | P77: 109.34 | R77: 2186.8
A78: SF-00077 | B78: Concreto virado em betoneira, fck = 15 MPa | C78: m3 | D78: 10 | E78: =OFFSET(INDEX(Composições!A:J,MATCH(B78,Composições!B:B,0),10),2,0) -> 414.28 | F78: 4142.8 | G78: =BDI!$B$17 -> 0.2034 | H78: 498.54 | I78: 4985.4 | K78: 414.03 | L78: 0.25 | M78: 0.0006038209792 | N78: 4140.3 | O78: 2.5 | P78: 498.24 | Q78: 0.3 | R78: 4982.4 | S78: 3
A79: SF-00078 | B79: Concreto virado em betoneira, fck = 25MPa | C79: m3 | D79: 10 | E79: =OFFSET(INDEX(Composições!A:J,MATCH(B79,Composições!B:B,0),10),2,0) -> 441.39 | F79: 4413.9 | G79: =BDI!$B$17 -> 0.2034 | H79: 531.17 | I79: 5311.7 | K79: 441.02 | L79: 0.37 | M79: 0.0008389642193 | N79: 4410.2 | O79: 3.7 | P79: 530.72 | Q79: 0.45 | R79: 5307.2 | S79: 4.5
A80: SF-00079 | B80: Escoramento metálico | C80: m2 x mês | D80: 100 | E80: =OFFSET(INDEX(Composições!A:J,MATCH(B80,Composições!B:B,0),10),2,0) -> 7.06 | F80: 706 | G80: =BDI!$B$17 -> 0.2034 | H80: 8.5 | I80: 850 | K80: 7.07 | L80: -0.01 | M80: -0.001414427157 | N80: 707 | O80: -1 | P80: 8.51 | Q80: -0.01 | R80: 851 | S80: -1
A81: SF-00080 | B81: Estrutura metálica em aço | C81: kg | D81: 105 | E81: =OFFSET(INDEX(Composições!A:J,MATCH(B81,Composições!B:B,0),10),2,0) -> 14.11 | F81: 1481.55 | G81: =BDI!$B$17 -> 0.2034 | H81: 16.98 | I81: 1782.9 | K81: 14.14 | L81: -0.03 | M81: -0.002121640736 | N81: 1484.7 | O81: -3.15 | P81: 17.02 | Q81: -0.04 | R81: 1787.1 | S81: -4.2
A82: SF-00081 | B82: Forma para estruturas de concreto | C82: m2 | D82: 100 | E82: =OFFSET(INDEX(Composições!A:J,MATCH(B82,Composições!B:B,0),10),2,0) -> 99.97 | F82: 9997 | G82: =BDI!$B$17 -> 0.2034 | H82: 120.3 | I82: 12030 | K82: 99.97 | N82: 9997 | P82: 120.3 | R82: 12030
A83: SF-00082 | B83: Verga/contraverga/cinta em bloco de concreto canaleta 11,5 x 19 x 39 cm | C83: m | D83: 20 | E83: =OFFSET(INDEX(Composições!A:J,MATCH(B83,Composições!B:B,0),10),2,0) -> 22.25 | F83: 445 | G83: =BDI!$B$17 -> 0.2034 | H83: 26.78 | I83: 535.6 | K83: 21.67 | L83: 0.58 | M83: 0.02676511306 | N83: 433.4 | O83: 11.6 | P83: 26.08 | Q83: 0.7 | R83: 521.6 | S83: 14
A84: SF-00083 | B84: Impermeabilização de superfície com revestimento bicomponente semi flexível | C84: m2 | D84: 500 | E84: =OFFSET(INDEX(Composições!A:J,MATCH(B84,Composições!B:B,0),10),2,0) -> 26.61 | F84: 13305 | G84: =BDI!$B$17 -> 0.2034 | H84: 32.02 | I84: 16010 | K84: 26.6 | L84: 0.01 | M84: 0.0003759398496 | N84: 13300 | O84: 5 | P84: 32.01 | Q84: 0.01 | R84: 16005 | S84: 5
A85: SF-00084 | B85: Alvenaria de vedação | C85: m2 | D85: 250 | E85: =OFFSET(INDEX(Composições!A:J,MATCH(B85,Composições!B:B,0),10),2,0) -> 53.15 | F85: 13287.5 | G85: =BDI!$B$17 -> 0.2034 | H85: 63.96 | I85: 15990 | K85: 52.79 | L85: 0.36 | M85: 0.006819473385 | N85: 13197.5 | O85: 90 | P85: 63.53 | Q85: 0.43 | R85: 15882.5 | S85: 107.5
A86: SF-00085 | B86: Fechamento ou shaft em gesso acartonado tipo drywall | C86: m2 | D86: 10 | E86: =OFFSET(INDEX(Composições!A:J,MATCH(B86,Composições!B:B,0),10),2,0) -> 47.16 | F86: 471.6 | G86: =BDI!$B$17 -> 0.2034 | H86: 56.75 | I86: 567.5 | K86: 47.24 | L86: -0.08 | M86: -0.001693480102 | N86: 472.4 | O86: -0.8 | P86: 56.85 | Q86: -0.1 | R86: 568.5 | S86: -1
A87: SF-00086 | B87: Fixação (encunhamento) de Alvenaria de Vedação | C87: m | D87: 30 | E87: =OFFSET(INDEX(Composições!A:J,MATCH(B87,Composições!B:B,0),10),2,0) -> 16.88 | F87: 506.4 | G87: =BDI!$B$17 -> 0.2034 | H87: 20.31 | I87: 609.3 | K87: 16.65 | L87: 0.23 | M87: 0.01381381381 | N87: 499.5 | O87: 6.9 | P87: 20.04 | Q87: 0.27 | R87: 601.2 | S87: 8.1
A88: SF-00087 | B88: Parede em gesso acartonado (drywall) | C88: m2 | D88: 400 | E88: =OFFSET(INDEX(Composições!A:J,MATCH(B88,Composições!B:B,0),10),2,0) -> 76.41 | F88: 30564 | G88: =BDI!$B$17 -> 0.2034 | H88: 91.95 | I88: 36780 | K88: 76.52 | L88: -0.11 | M88: -0.001437532671 | N88: 30608 | O88: -44 | P88: 92.08 | Q88: -0.13 | R88: 36832 | S88: -52
A89: SF-00088 | B89: Reparos superficiais em painéis de gesso acartonado | C89: m2 | D89: 20 | E89: =OFFSET(INDEX(Composições!A:J,MATCH(B89,Composições!B:B,0),10),2,0) -> 5.22 | F89: 104.4 | G89: =BDI!$B$17 -> 0.2034 | H89: 6.28 | I89: 125.6 | K89: 5.21 | L89: 0.01 | M89: 0.001919385797 | N89: 104.2 | O89: 0.2 | P89: 6.27 | Q89: 0.01 | R89: 125.4 | S89: 0.2
A90: SF-00089 | B90: Sóculo h=10 cm | C90: m2 | D90: 20 | E90: =OFFSET(INDEX(Composições!A:J,MATCH(B90,Composições!B:B,0),10),2,0) -> 55.14 | F90: 1102.8 | G90: =BDI!$B$17 -> 0.2034 | H90: 66.36 | I90: 1327.2 | K90: 54 | L90: 1.14 | M90: 0.02111111111 | N90: 1080 | O90: 22.8 | P90: 64.98 | Q90: 1.38 | R90: 1299.6 | S90: 27.6
A91: SF-00090 | B91: Chapisco colante industrializado em vigas e pilares | C91: m2 | D91: 50 | E91: =OFFSET(INDEX(Composições!A:J,MATCH(B91,Composições!B:B,0),10),2,0) -> 10.58 | F91: 529 | G91: =BDI!$B$17 -> 0.2034 | H91: 12.73 | I91: 636.5 | K91: 10.59 | L91: -0.01 | M91: -0.0009442870633 | N91: 529.5 | O91: -0.5 | P91: 12.74 | Q91: -0.01 | R91: 637 | S91: -0.5
A92: SF-00091 | B92: Chapisco com argamassa traço 1:3 | C92: m2 | D92: 500 | E92: =OFFSET(INDEX(Composições!A:J,MATCH(B92,Composições!B:B,0),10),2,0) -> 3.31 | F92: 1655 | G92: =BDI!$B$17 -> 0.2034 | H92: 3.98 | I92: 1990 | K92: 3.19 | L92: 0.12 | M92: 0.03761755486 | N92: 1595 | O92: 60 | P92: 3.84 | Q92: 0.14 | R92: 1920 | S92: 70
A93: SF-00092 | B93: Gesso cola | C93: m2 | D93: 440 | E93: =OFFSET(INDEX(Composições!A:J,MATCH(B93,Composições!B:B,0),10),2,0) -> 12.09 | F93: 5319.6 | G93: =BDI!$B$17 -> 0.2034 | H93: 14.55 | I93: 6402 | K93: 12.08 | L93: 0.01 | M93: 0.0008278145695 | N93: 5315.2 | O93: 4.4 | P93: 14.54 | Q93: 0.01 | R93: 6397.6 | S93: 4.4
A94: SF-00093 | B94: Reboco com argamassa industrializada e=2,0 cm | C94: m2 | D94: 600 | E94: =OFFSET(INDEX(Composições!A:J,MATCH(B94,Composições!B:B,0),10),2,0) -> 26.16 | F94: 15696 | G94: =BDI!$B$17 -> 0.2034 | H94: 31.48 | I94: 18888 | K94: 26 | L94: 0.16 | M94: 0.006153846154 | N94: 15600 | O94: 96 | P94: 31.29 | Q94: 0.19 | R94: 18774 | S94: 114
A95: SF-00094 | B95: Regularização com argamassa industrializada e=0,5 cm | C95: m2 | D95: 200 | E95: =OFFSET(INDEX(Composições!A:J,MATCH(B95,Composições!B:B,0),10),2,0) -> 9.36 | F95: 1872 | G95: =BDI!$B$17 -> 0.2034 | H95: 11.26 | I95: 2252 | K95: 9.32 | L95: 0.04 | M95: 0.004291845494 | N95: 1864 | O95: 8 | P95: 11.22 | Q95: 0.04 | R95: 2244 | S95: 8
A96: SF-00095 | B96: Tratamento de trincas superficiais | C96: m | D96: 100 | E96: =OFFSET(INDEX(Composições!A:J,MATCH(B96,Composições!B:B,0),10),2,0) -> 16.09 | F96: 1609 | G96: =BDI!$B$17 -> 0.2034 | H96: 19.36 | I96: 1936 | K96: 16.08 | L96: 0.01 | M96: 0.0006218905473 | N96: 1608 | O96: 1 | P96: 19.35 | Q96: 0.01 | R96: 1935 | S96: 1
A97: SF-00096 | B97: Aplicação de fundo selador base água | C97: m2 | D97: 5400 | E97: =OFFSET(INDEX(Composições!A:J,MATCH(B97,Composições!B:B,0),10),2,0) -> 3.64 | F97: 19656 | G97: =BDI!$B$17 -> 0.2034 | H97: 4.38 | I97: 23652 | K97: 3.65 | L97: -0.01 | M97: -0.002739726027 | N97: 19710 | O97: -54 | P97: 4.39 | Q97: -0.01 | R97: 23706 | S97: -54
A98: SF-00097 | B98: Fundo anticorrosivo e de aderência (base água) | C98: m2 | D98: 400 | E98: =OFFSET(INDEX(Composições!A:J,MATCH(B98,Composições!B:B,0),10),2,0) -> 18.29 | F98: 7316 | G98: =BDI!$B$17 -> 0.2034 | H98: 22.01 | I98: 8804 | K98: 18.3 | L98: -0.01 | M98: -0.0005464480874 | N98: 7320 | O98: -4 | P98: 22.02 | Q98: -0.01 | R98: 8808 | S98: -4
A99: SF-00098 | B99: Massa acrílica | C99: m2 | D99: 500 | E99: =OFFSET(INDEX(Composições!A:J,MATCH(B99,Composições!B:B,0),10),2,0) -> 15.06 | F99: 7530 | G99: =BDI!$B$17 -> 0.2034 | H99: 18.12 | I99: 9060 | K99: 15.06 | N99: 7530 | P99: 18.12 | R99: 9060
A100: SF-00099 | B100: Massa corrida | C100: m2 | D100: 2700 | E100: =OFFSET(INDEX(Composições!A:J,MATCH(B100,Composições!B:B,0),10),2,0) -> 11.54 | F100: 31158 | G100: =BDI!$B$17 -> 0.2034 | H100: 13.89 | I100: 37503 | K100: 11.54 | N100: 31158 | P100: 13.89 | R100: 37503
A101: SF-00100 | B101: Pintura com tinta látex acrílica Premium (paredes) | C101: m2 | D101: 9000 | E101: =OFFSET(INDEX(Composições!A:J,MATCH(B101,Composições!B:B,0),10),2,0) -> 10.98 | F101: 98820 | G101: =BDI!$B$17 -> 0.2034 | H101: 13.21 | I101: 118890 | K101: 10.98 | N101: 98820 | P101: 13.21 | R101: 118890
A102: SF-00101 | B102: Pintura em verniz sintético | C102: m2 | D102: 300 | E102: =OFFSET(INDEX(Composições!A:J,MATCH(B102,Composições!B:B,0),10),2,0) -> 17.6 | F102: 5280 | G102: =BDI!$B$17 -> 0.2034 | H102: 21.18 | I102: 6354 | K102: 17.61 | L102: -0.01 | M102: -0.0005678591709 | N102: 5283 | O102: -3 | P102: 21.19 | Q102: -0.01 | R102: 6357 | S102: -3
A103: SF-00102 | B103: Pintura esmalte acetinado (metais e madeiras) | C103: m2 | D103: 650 | E103: =OFFSET(INDEX(Composições!A:J,MATCH(B103,Composições!B:B,0),10),2,0) -> 23.26 | F103: 15119 | G103: =BDI!$B$17 -> 0.2034 | H103: 27.99 | I103: 18193.5 | K103: 23.26 | N103: 15119 | P103: 27.99 | R103: 18193.5
A104: SF-00103 | B104: Pintura tinta látex acrílica standard (tetos) | C104: m2 | D104: 6000 | E104: =OFFSET(INDEX(Composições!A:J,MATCH(B104,Composições!B:B,0),10),2,0) -> 12.42 | F104: 74520 | G104: =BDI!$B$17 -> 0.2034 | H104: 14.95 | I104: 89700 | K104: 12.43 | L104: -0.01 | M104: -0.0008045052293 | N104: 74580 | O104: -60 | P104: 14.96 | Q104: -0.01 | R104: 89760 | S104: -60
A105: SF-00104 | B105: Cerâmica para revestimento de superfícies internas ou externas – Linha Administrativa | C105: m2 | D105: 200 | E105: =OFFSET(INDEX(Composições!A:J,MATCH(B105,Composições!B:B,0),10),2,0) -> 73.85 | F105: 14770 | G105: =BDI!$B$17 -> 0.2034 | H105: 88.87 | I105: 17774 | K105: 73.86 | L105: -0.01 | M105: -0.0001353912808 | N105: 14772 | O105: -2 | P105: 88.88 | Q105: -0.01 | R105: 17776 | S105: -2
A106: SF-00105 | B106: Contrapiso em argamassa | C106: m2 | D106: 60 | E106: =OFFSET(INDEX(Composições!A:J,MATCH(B106,Composições!B:B,0),10),2,0) -> 39.96 | F106: 2397.6 | G106: =BDI!$B$17 -> 0.2034 | H106: 48.09 | I106: 2885.4 | K106: 37.65 | L106: 2.31 | M106: 0.06135458167 | N106: 2259 | O106: 138.6 | P106: 45.31 | Q106: 2.78 | R106: 2718.6 | S106: 166.8
A107: SF-00106 | B107: Contrapiso em argamassa (e=2cm) ou Regularização de contrapiso existente | C107: m2 | D107: 550 | E107: =OFFSET(INDEX(Composições!A:J,MATCH(B107,Composições!B:B,0),10),2,0) -> 27.33 | F107: 15031.5 | G107: =BDI!$B$17 -> 0.2034 | H107: 32.89 | I107: 18089.5 | K107: 25.99 | L107: 1.34 | M107: 0.05155829165 | N107: 14294.5 | O107: 737 | P107: 31.28 | Q107: 1.61 | R107: 17204 | S107: 885.5
A108: SF-00107 | B108: Granito cinza andorinha para piso | C108: m2 | D108: 1050 | E108: =OFFSET(INDEX(Composições!A:J,MATCH(B108,Composições!B:B,0),10),2,0) -> 164.38 | F108: 172599 | G108: =BDI!$B$17 -> 0.2034 | H108: 197.81 | I108: 207700.5 | K108: 164.43 | L108: -0.05 | M108: -0.0003040807639 | N108: 172651.5 | O108: -52.5 | P108: 197.88 | Q108: -0.07 | R108: 207774 | S108: -73.5
A109: SF-00108 | B109: Granito Cinza Andorinha para rodapé | C109: m2 | D109: 270 | E109: =OFFSET(INDEX(Composições!A:J,MATCH(B109,Composições!B:B,0),10),2,0) -> 256.04 | F109: 69130.8 | G109: =BDI!$B$17 -> 0.2034 | H109: 308.12 | I109: 83192.4 | K109: 256.07 | L109: -0.03 | M109: -0.0001171554653 | N109: 69138.9 | O109: -8.1 | P109: 308.15 | Q109: -0.03 | R109: 83200.5 | S109: -8.1
A110: SF-00109 | B110: Granito Cinza Andorinha para soleira e peitoril | C110: m2 | D110: 25 | E110: =OFFSET(INDEX(Composições!A:J,MATCH(B110,Composições!B:B,0),10),2,0) -> 213.47 | F110: 5336.75 | G110: =BDI!$B$17 -> 0.2034 | H110: 256.89 | I110: 6422.25 | K110: 213.53 | L110: -0.06 | M110: -0.0002809909615 | N110: 5338.25 | O110: -1.5 | P110: 256.96 | Q110: -0.07 | R110: 6424 | S110: -1.75
A111: SF-00110 | B111: Granito Preto São Gabriel para piso | C111: m2 | D111: 30 | E111: =OFFSET(INDEX(Composições!A:J,MATCH(B111,Composições!B:B,0),10),2,0) -> 222.38 | F111: 6671.4 | G111: =BDI!$B$17 -> 0.2034 | H111: 267.61 | I111: 8028.3 | K111: 222.43 | L111: -0.05 | M111: -0.0002247898215 | N111: 6672.9 | O111: -1.5 | P111: 267.67 | Q111: -0.06 | R111: 8030.1 | S111: -1.8
A112: SF-00111 | B112: Granito Preto São Gabriel para rodapé | C112: m2 | D112: 3 | E112: =OFFSET(INDEX(Composições!A:J,MATCH(B112,Composições!B:B,0),10),2,0) -> 375.2 | F112: 1125.6 | G112: =BDI!$B$17 -> 0.2034 | H112: 451.52 | I112: 1354.56 | K112: 375.23 | L112: -0.03 | M112: -7.995096341e-05 | N112: 1125.69 | O112: -0.09 | P112: 451.55 | Q112: -0.03 | R112: 1354.65 | S112: -0.09
A113: SF-00112 | B113: Granito Preto São Gabriel para soleira e peitoril | C113: m2 | D113: 2 | E113: =OFFSET(INDEX(Composições!A:J,MATCH(B113,Composições!B:B,0),10),2,0) -> 288.47 | F113: 576.94 | G113: =BDI!$B$17 -> 0.2034 | H113: 347.14 | I113: 694.28 | K113: 288.53 | L113: -0.06 | M113: -0.0002079506464 | N113: 577.06 | O113: -0.12 | P113: 347.22 | Q113: -0.08 | R113: 694.44 | S113: -0.16
A114: SF-00113 | B114: Instalação de rodapé de madeira reaproveitado | C114: m | D114: 70 | E114: =OFFSET(INDEX(Composições!A:J,MATCH(B114,Composições!B:B,0),10),2,0) -> 6.36 | F114: 445.2 | G114: =BDI!$B$17 -> 0.2034 | H114: 7.65 | I114: 535.5 | K114: 6.36 | N114: 445.2 | P114: 7.65 | R114: 535.5
A115: SF-00114 | B115: Mármore Bege Bahia para piso e parede | C115: m2 | D115: 10 | E115: =OFFSET(INDEX(Composições!A:J,MATCH(B115,Composições!B:B,0),10),2,0) -> 222.38 | F115: 2223.8 | G115: =BDI!$B$17 -> 0.2034 | H115: 267.61 | I115: 2676.1 | K115: 222.43 | L115: -0.05 | M115: -0.0002247898215 | N115: 2224.3 | O115: -0.5 | P115: 267.67 | Q115: -0.06 | R115: 2676.7 | S115: -0.6
A116: SF-00115 | B116: Mármore Branco Especial para piso e parede | C116: m2 | D116: 40 | E116: =OFFSET(INDEX(Composições!A:J,MATCH(B116,Composições!B:B,0),10),2,0) -> 373.18 | F116: 14927.2 | G116: =BDI!$B$17 -> 0.2034 | H116: 449.08 | I116: 17963.2 | K116: 373.23 | L116: -0.05 | M116: -0.0001339656512 | N116: 14929.2 | O116: -2 | P116: 449.14 | Q116: -0.06 | R116: 17965.6 | S116: -2.4
A117: SF-00116 | B117: Rodapé de madeira | C117: m | D117: 70 | E117: =OFFSET(INDEX(Composições!A:J,MATCH(B117,Composições!B:B,0),10),2,0) -> 15.63 | F117: 1094.1 | G117: =BDI!$B$17 -> 0.2034 | H117: 18.81 | I117: 1316.7 | K117: 15.63 | N117: 1094.1 | P117: 18.81 | R117: 1316.7
A118: SF-00117 | B118: Acabamento abaulado em placas de granito ou mármore reaproveitadas | C118: m | D118: 20 | E118: 22.5 | F118: 450 | G118: =BDI!$B$17 -> 0.2034 | H118: 27.08 | I118: 541.6 | K118: 22.5 | N118: 450 | P118: 27.08 | R118: 541.6
A119: SF-00118 | B119: Acabamento em meia esquadria em placas de granito ou mármore reaproveitadas | C119: m | D119: 20 | E119: 10 | F119: 200 | G119: =BDI!$B$17 -> 0.2034 | H119: 12.03 | I119: 240.6 | K119: 10 | N119: 200 | P119: 12.03 | R119: 240.6
A120: SF-00119 | B120: Acabamento reto em placas de granito ou mármore reaproveitadas | C120: m | D120: 20 | E120: 10 | F120: 200 | G120: =BDI!$B$17 -> 0.2034 | H120: 12.03 | I120: 240.6 | K120: 10 | N120: 200 | P120: 12.03 | R120: 240.6
A121: SF-00120 | B121: Corte de peça de granito ou mármore reaproveitada | C121: m | D121: 20 | E121: 13.52 | F121: 270.4 | G121: =BDI!$B$17 -> 0.2034 | H121: 16.27 | I121: 325.4 | K121: 13.52 | N121: 270.4 | P121: 16.27 | R121: 325.4
A122: SF-00121 | B122: Corte em placas de granito ou mármore reaproveitadas, para instalação de cubas | C122: un | D122: 20 | E122: =OFFSET(INDEX(Composições!A:J,MATCH(B122,Composições!B:B,0),10),2,0) -> 61.25 | F122: 1225 | G122: =BDI!$B$17 -> 0.2034 | H122: 73.71 | I122: 1474.2 | K122: 61.25 | N122: 1225 | P122: 73.71 | R122: 1474.2
A123: SF-00122 | B123: Furo em placas de granito ou mármore reaproveitadas, para instalação de torneira ou misturador | C123: un | D123: 20 | E123: =OFFSET(INDEX(Composições!A:J,MATCH(B123,Composições!B:B,0),10),2,0) -> 9.18 | F123: 183.6 | G123: =BDI!$B$17 -> 0.2034 | H123: 11.05 | I123: 221 | K123: 9.18 | N123: 183.6 | P123: 11.05 | R123: 221
A124: SF-00123 | B124: Granito Cinza Andorinha 20mm para rodabancada | C124: m2 | D124: 30 | E124: =OFFSET(INDEX(Composições!A:J,MATCH(B124,Composições!B:B,0),10),2,0) -> 178.61 | F124: 5358.3 | G124: =BDI!$B$17 -> 0.2034 | H124: 214.94 | I124: 6448.2 | K124: 178.65 | L124: -0.04 | M124: -0.0002239014833 | N124: 5359.5 | O124: -1.2 | P124: 214.99 | Q124: -0.05 | R124: 6449.7 | S124: -1.5
A125: SF-00124 | B125: Granito Cinza Andorinha 20mm para bancadas | C125: m2 | D125: 50 | E125: =OFFSET(INDEX(Composições!A:J,MATCH(B125,Composições!B:B,0),10),2,0) -> 191.88 | F125: 9594 | G125: =BDI!$B$17 -> 0.2034 | H125: 230.91 | I125: 11545.5 | K125: 191.88 | N125: 9594 | P125: 230.91 | R125: 11545.5
A126: SF-00125 | B126: Granito Cinza Andorinha 30mm para divisória | C126: m2 | D126: 100 | E126: =OFFSET(INDEX(Composições!A:J,MATCH(B126,Composições!B:B,0),10),2,0) -> 307.77 | F126: 30777 | G126: =BDI!$B$17 -> 0.2034 | H126: 370.37 | I126: 37037 | K126: 307.64 | L126: 0.13 | M126: 0.0004225718372 | N126: 30764 | O126: 13 | P126: 370.21 | Q126: 0.16 | R126: 37021 | S126: 16
A127: SF-00126 | B127: Granito Preto São Gabriel 20mm para rodabancada | C127: m2 | D127: 30 | E127: =OFFSET(INDEX(Composições!A:J,MATCH(B127,Composições!B:B,0),10),2,0) -> 256.61 | F127: 7698.3 | G127: =BDI!$B$17 -> 0.2034 | H127: 308.8 | I127: 9264 | K127: 256.65 | L127: -0.04 | M127: -0.0001558542763 | N127: 7699.5 | O127: -1.2 | P127: 308.85 | Q127: -0.05 | R127: 9265.5 | S127: -1.5
A128: SF-00127 | B128: Granito Preto São Gabriel 20mm para bancadas | C128: m2 | D128: 8 | E128: =OFFSET(INDEX(Composições!A:J,MATCH(B128,Composições!B:B,0),10),2,0) -> 313 | F128: 2504 | G128: =BDI!$B$17 -> 0.2034 | H128: 376.66 | I128: 3013.28 | K128: 313 | N128: 2504 | P128: 376.66 | R128: 3013.28
A129: SF-00128 | B129: Instalação de bancada de granito ou mármore reaproveitada | C129: m2 | D129: 30 | E129: =OFFSET(INDEX(Composições!A:J,MATCH(B129,Composições!B:B,0),10),2,0) -> 46.88 | F129: 1406.4 | G129: =BDI!$B$17 -> 0.2034 | H129: 56.42 | I129: 1692.6 | K129: 46.88 | N129: 1406.4 | P129: 56.42 | R129: 1692.6
A130: SF-00129 | B130: Instalação de rodapé reaproveitado, de mármore ou granito | C130: m2 | D130: 15 | E130: =OFFSET(INDEX(Composições!A:J,MATCH(B130,Composições!B:B,0),10),2,0) -> 8.07 | F130: 121.05 | G130: =BDI!$B$17 -> 0.2034 | H130: 9.71 | I130: 145.65 | K130: 8.08 | L130: -0.01 | M130: -0.001237623762 | N130: 121.2 | O130: -0.15 | P130: 9.72 | Q130: -0.01 | R130: 145.8 | S130: -0.15
A131: SF-00130 | B131: Instalação de soleira ou peitoril, de mármore ou granito, reaproveitados | C131: m2 | D131: 10 | E131: =OFFSET(INDEX(Composições!A:J,MATCH(B131,Composições!B:B,0),10),2,0) -> 36.51 | F131: =IF(ISNUMBER(E131),ROUND(D131*E131,2),"-") -> 365.1 | G131: =BDI!$B$17 -> 0.2034 | H131: =IF(ISNUMBER(E131),ROUND(E131*(1+G131),2),0) -> 43.94 | I131: 439.4 | K131: 36.56 | L131: -0.05 | M131: -0.00136761488 | N131: 365.6 | O131: -0.5 | P131: 44 | Q131: -0.06 | R131: 440 | S131: -0.6
A132: SF-00131 | B132: Mármore Branco Especial 20mm para rodabancada | C132: m2 | D132: 1 | E132: =OFFSET(INDEX(Composições!A:J,MATCH(B132,Composições!B:B,0),10),2,0) -> 338.38 | F132: 338.38 | G132: =BDI!$B$17 -> 0.2034 | H132: 407.21 | I132: 407.21 | K132: 338.43 | L132: -0.05 | M132: -0.0001477410395 | N132: 338.43 | O132: -0.05 | P132: 407.27 | Q132: -0.06 | R132: 407.27 | S132: -0.06
A133: SF-00132 | B133: Divisória em gesso acartonado revestido - Painel liso cego - Ed. Anexo I | C133: m2 | D133: 500 | E133: 450 | F133: 225000 | G133: =BDI!$G$17 -> 0.11 | H133: 499.5 | I133: 249750 | K133: 450 | N133: 225000 | P133: 499.5 | R133: 249750
A134: SF-00133 | B134: Divisória em gesso acartonado revestido - Painel liso, painel de vidro e bandeira – ed. Anexo I | C134: m2 | D134: 500 | E134: 850 | F134: 425000 | G134: =BDI!$G$17 -> 0.11 | H134: 943.5 | I134: 471750 | K134: 850 | N134: 425000 | P134: 943.5 | R134: 471750
A135: SF-00134 | B135: Divisória MDF com painel liso cego e bandeira | C135: m2 | D135: 1000 | E135: 608.08 | F135: 608080 | G135: =BDI!$G$17 -> 0.11 | H135: 674.97 | I135: 674970 | K135: 608.08 | M135: =IF(ISNUMBER(L135),L135/K135,"") ->  | N135: 608080 | P135: 674.97 | R135: 674970
A136: SF-00135 | B136: Divisória MDF com painel liso, painel de vidro e bandeira | C136: m2 | D136: 1000 | E136: 816.25 | F136: 816250 | G136: =BDI!$G$17 -> 0.11 | H136: 906.04 | I136: =ROUND(H136*D136,2) -> 906040 | K136: 816.25 | L136: =IF(E136=K136,"",E136-K136) ->  | N136: 816250 | O136: =IF(F136=N136,"",F136-N136) ->  | P136: 906.04 | Q136: =IF(H136=P136,"",H136-P136) ->  | R136: 906040 | S136: =IF(I136=R136,"",I136-R136) -> 
A137: SF-00136 | B137: Divisória MDF com painel paginado cego e bandeira - Interlegis | C137: m2 | D137: 200 | E137: 749.45 | F137: 149890 | G137: =BDI!$G$17 -> 0.11 | H137: 831.89 | I137: 166378 | K137: 749.45 | N137: 149890 | P137: 831.89 | R137: 166378
A138: SF-00137 | B138: Divisória MDF com painel paginado, painel de vidro e bandeira - Interlegis | C138: m2 | D138: 200 | E138: 965.66 | F138: 193132 | G138: =BDI!$G$17 -> 0.11 | H138: 1071.88 | I138: 214376 | K138: 965.66 | N138: 193132 | P138: 1071.88 | R138: 214376
A139: SF-00138 | B139: Instalação de divisória e porta de divisória com dobradiça reaproveitadas | C139: m2 | D139: 700 | E139: =OFFSET(INDEX(Composições!A:J,MATCH(B139,Composições!B:B,0),10),2,0) -> 12.56 | F139: 8792 | G139: =BDI!$B$17 -> 0.2034 | H139: 15.11 | I139: 10577 | K139: 12.56 | N139: 8792 | P139: 15.11 | R139: 10577
A140: SF-00139 | B140: Alçapão em forro de gesso acartonado | C140: m2 | D140: 100 | E140: =OFFSET(INDEX(Composições!A:J,MATCH(B140,Composições!B:B,0),10),2,0) -> 92.52 | F140: 9252 | G140: =BDI!$B$17 -> 0.2034 | H140: 111.34 | I140: 11134 | K140: 92.53 | L140: -0.01 | M140: -0.0001080730574 | N140: 9253 | O140: -1 | P140: 111.35 | Q140: -0.01 | R140: 11135 | S140: -1
A141: SF-00140 | B141: Forro de PVC em réguas de 100 x 6000mm | C141: m2 | D141: 50 | E141: =OFFSET(INDEX(Composições!A:J,MATCH(B141,Composições!B:B,0),10),2,0) -> 33.32 | F141: 1666 | G141: =BDI!$B$17 -> 0.2034 | H141: 40.1 | I141: 2005 | K141: 33.35 | L141: -0.03 | M141: -0.0008995502249 | N141: 1667.5 | O141: -1.5 | P141: 40.13 | Q141: -0.03 | R141: 2006.5 | S141: -1.5
A142: SF-00141 | B142: Forro de PVC em réguas de 100 x 6000mm, sem estrutura | C142: m2 | D142: 100 | E142: =OFFSET(INDEX(Composições!A:J,MATCH(B142,Composições!B:B,0),10),2,0) -> 22.21 | F142: 2221 | G142: =BDI!$B$17 -> 0.2034 | H142: 26.73 | I142: 2673 | K142: 22.23 | L142: -0.02 | M142: -0.0008996851102 | N142: 2223 | O142: -2 | P142: 26.75 | Q142: -0.02 | R142: 2675 | S142: -2
A143: SF-00142 | B143: Forro de PVC modular em placas | C143: m2 | D143: 20 | E143: =OFFSET(INDEX(Composições!A:J,MATCH(B143,Composições!B:B,0),10),2,0) -> 62.02 | F143: 1240.4 | G143: =BDI!$B$17 -> 0.2034 | H143: 74.63 | I143: 1492.6 | K143: 62.04 | L143: -0.02 | M143: -0.0003223726628 | N143: 1240.8 | O143: -0.4 | P143: 74.66 | Q143: -0.03 | R143: 1493.2 | S143: -0.6
A144: SF-00144 | B144: Forro em gesso acartonado monolítico | C144: m2 | D144: 2500 | E144: =OFFSET(INDEX(Composições!A:J,MATCH(B144,Composições!B:B,0),10),2,0) -> 54.68 | F144: 136700 | G144: =BDI!$B$17 -> 0.2034 | H144: 65.8 | I144: 164500 | K144: 54.73 | L144: -0.05 | M144: -0.0009135757354 | N144: 136825 | O144: -125 | P144: 65.86 | Q144: -0.06 | R144: 164650 | S144: -150
A145: SF-00145 | B145: Forro em gesso acartonado monolítico, sem estrutura | C145: m2 | D145: 2300 | E145: =OFFSET(INDEX(Composições!A:J,MATCH(B145,Composições!B:B,0),10),2,0) -> 41.93 | F145: 96439 | G145: =BDI!$B$17 -> 0.2034 | H145: 50.46 | I145: 116058 | K145: 41.97 | L145: -0.04 | M145: -0.0009530617107 | N145: 96531 | O145: -92 | P145: 50.51 | Q145: -0.05 | R145: 116173 | S145: -115
A146: SF-00146 | B146: Forro mineral modulado | C146: m2 | D146: 300 | E146: =OFFSET(INDEX(Composições!A:J,MATCH(B146,Composições!B:B,0),10),2,0) -> 65.04 | F146: 19512 | G146: =BDI!$B$17 -> 0.2034 | H146: 78.27 | I146: 23481 | K146: 65.04 | N146: 19512 | P146: 78.27 | R146: 23481
A147: SF-00147 | B147: Forro mineral modulado, sem estrutura | C147: m2 | D147: 100 | E147: =OFFSET(INDEX(Composições!A:J,MATCH(B147,Composições!B:B,0),10),2,0) -> 19.56 | F147: 1956 | G147: =BDI!$B$17 -> 0.2034 | H147: 23.54 | I147: 2354 | K147: 19.56 | N147: 1956 | P147: 23.54 | R147: 2354
A148: SF-00148 | B148: Instalação de forro de PVC reaproveitado | C148: m2 | D148: 100 | E148: =OFFSET(INDEX(Composições!A:J,MATCH(B148,Composições!B:B,0),10),2,0) -> 10.03 | F148: 1003 | G148: =BDI!$B$17 -> 0.2034 | H148: 12.07 | I148: 1207 | K148: 10.04 | L148: -0.01 | M148: -0.0009960159363 | N148: 1004 | O148: -1 | P148: 12.08 | Q148: -0.01 | R148: 1208 | S148: -1
A149: SF-00149 | B149: Instalação de forro mineral reaproveitado | C149: m2 | D149: 100 | E149: =OFFSET(INDEX(Composições!A:J,MATCH(B149,Composições!B:B,0),10),2,0) -> 37.96 | F149: 3796 | G149: =BDI!$B$17 -> 0.2034 | H149: 45.68 | I149: 4568 | K149: 37.97 | L149: -0.01 | M149: -0.0002633658151 | N149: 3797 | O149: -1 | P149: 45.69 | Q149: -0.01 | R149: 4569 | S149: -1
A150: SF-00150 | B150: Tabica metálica em forro de gesso acartonado | C150: m | D150: 3300 | E150: =OFFSET(INDEX(Composições!A:J,MATCH(B150,Composições!B:B,0),10),2,0) -> 7.68 | F150: 25344 | G150: =BDI!$B$17 -> 0.2034 | H150: 9.24 | I150: 30492 | K150: 7.68 | N150: 25344 | P150: 9.24 | R150: 30492
A151: SF-00151 | B151: Instalação de revestimento de piso têxtil (carpete) reaproveitado | C151: m2 | D151: 400 | E151: =OFFSET(INDEX(Composições!A:J,MATCH(B151,Composições!B:B,0),10),2,0) -> 5.55 | F151: 2220 | G151: =BDI!$B$17 -> 0.2034 | H151: 6.68 | I151: 2672 | K151: 5.56 | L151: -0.01 | M151: -0.001798561151 | N151: 2224 | O151: -4 | P151: 6.69 | Q151: -0.01 | R151: 2676 | S151: -4
A152: SF-00154 | B152: Espelho cristal, e=5 mm | C152: m2 | D152: 130 | E152: =OFFSET(INDEX(Composições!A:J,MATCH(B152,Composições!B:B,0),10),2,0) -> 409.21 | F152: 53197.3 | G152: =BDI!$B$17 -> 0.2034 | H152: 492.44 | I152: 64017.2 | K152: 409.19 | L152: 0.02 | M152: 4.887704978e-05 | N152: 53194.7 | O152: 2.6 | P152: 492.42 | Q152: 0.02 | R152: 64014.6 | S152: 2.6
A153: SF-00155 | B153: Instalação de vidro reaproveitado | C153: m2 | D153: 50 | E153: =OFFSET(INDEX(Composições!A:J,MATCH(B153,Composições!B:B,0),10),2,0) -> 20.68 | F153: 1034 | G153: =BDI!$B$17 -> 0.2034 | H153: 24.89 | I153: 1244.5 | K153: 20.69 | L153: -0.01 | M153: -0.0004833252779 | N153: 1034.5 | O153: -0.5 | P153: 24.9 | Q153: -0.01 | R153: 1245 | S153: -0.5
A154: SF-00159 | B154: Instalação de painéis de vidro temperado reaproveitados | C154: m2 | D154: 100 | E154: =OFFSET(INDEX(Composições!A:J,MATCH(B154,Composições!B:B,0),10),2,0) -> 35.36 | F154: 3536 | G154: =BDI!$B$17 -> 0.2034 | H154: 42.55 | I154: 4255 | K154: 35.36 | N154: 3536 | P154: 42.55 | R154: 4255
A155: SF-00161 | B155: Instalação de persianas reaproveitadas | C155: m | D155: 1200 | E155: =OFFSET(INDEX(Composições!A:J,MATCH(B155,Composições!B:B,0),10),2,0) -> 5.63 | F155: 6756 | G155: =BDI!$B$17 -> 0.2034 | H155: 6.78 | I155: 8136 | K155: 5.63 | N155: 6756 | P155: 6.78 | R155: 8136
A156: SF-00165 | B156: Película jateada | C156: m2 | D156: 80 | E156: 89 | F156: 7120 | G156: =BDI!$B$17 -> 0.2034 | H156: 107.1 | I156: 8568 | K156: 89 | N156: 7120 | P156: 107.1 | R156: 8568
A157: SF-00166 | B157: Tubo de ligação para bacia sanitária | C157: un | D157: 15 | E157: =OFFSET(INDEX(Composições!A:J,MATCH(B157,Composições!B:B,0),10),2,0) -> 59.89 | F157: 898.35 | G157: =BDI!$B$17 -> 0.2034 | H157: 72.07 | I157: 1081.05 | K157: 59.89 | N157: 898.35 | P157: 72.07 | R157: 1081.05
A158: SF-00167 | B158: Tubo PVC esgoto ou aguas pluviais predial DN 100mm | C158: m | D158: 215 | E158: =OFFSET(INDEX(Composições!A:J,MATCH(B158,Composições!B:B,0),10),2,0) -> 40.66 | F158: 8741.9 | G158: =BDI!$B$17 -> 0.2034 | H158: 48.93 | I158: 10519.95 | K158: 40.66 | N158: 8741.9 | P158: 48.93 | R158: 10519.95
A159: SF-00168 | B159: Tubo PVC esgoto ou aguas pluviais predial DN 40mm | C159: m | D159: 80 | E159: =OFFSET(INDEX(Composições!A:J,MATCH(B159,Composições!B:B,0),10),2,0) -> 12.69 | F159: 1015.2 | G159: =BDI!$B$17 -> 0.2034 | H159: 15.27 | I159: 1221.6 | K159: 12.67 | L159: 0.02 | M159: 0.001578531965 | N159: 1013.6 | O159: 1.6 | P159: 15.25 | Q159: 0.02 | R159: 1220 | S159: 1.6
A160: SF-00169 | B160: Tubo PVC esgoto ou aguas pluviais predial DN 50mm | C160: m | D160: 80 | E160: =OFFSET(INDEX(Composições!A:J,MATCH(B160,Composições!B:B,0),10),2,0) -> 17.42 | F160: 1393.6 | G160: =BDI!$B$17 -> 0.2034 | H160: 20.96 | I160: 1676.8 | K160: 17.43 | L160: -0.01 | M160: -0.0005737234653 | N160: 1394.4 | O160: -0.8 | P160: 20.98 | Q160: -0.02 | R160: 1678.4 | S160: -1.6
A161: SF-00170 | B161: Tubo PVC esgoto ou aguas pluviais predial DN 75mm | C161: m | D161: 100 | E161: =OFFSET(INDEX(Composições!A:J,MATCH(B161,Composições!B:B,0),10),2,0) -> 26.11 | F161: 2611 | G161: =BDI!$B$17 -> 0.2034 | H161: 31.42 | I161: 3142 | K161: 26.13 | L161: -0.02 | M161: -0.0007654037505 | N161: 2613 | O161: -2 | P161: 31.44 | Q161: -0.02 | R161: 3144 | S161: -2
A162: SF-00171 | B162: Tubo PVC soldavel agua fria DN 25mm | C162: m | D162: 200 | E162: =OFFSET(INDEX(Composições!A:J,MATCH(B162,Composições!B:B,0),10),2,0) -> 2.88 | F162: 576 | G162: =BDI!$B$17 -> 0.2034 | H162: 3.47 | I162: 694 | K162: 2.88 | N162: 576 | P162: 3.47 | R162: 694
A163: SF-00172 | B163: Tubo PVC soldavel agua fria DN 32mm | C163: m | D163: 100 | E163: =OFFSET(INDEX(Composições!A:J,MATCH(B163,Composições!B:B,0),10),2,0) -> 5.93 | F163: 593 | G163: =BDI!$B$17 -> 0.2034 | H163: 7.14 | I163: 714 | K163: 5.94 | L163: -0.01 | M163: -0.001683501684 | N163: 594 | O163: -1 | P163: 7.15 | Q163: -0.01 | R163: 715 | S163: -1
A164: SF-00173 | B164: Tubo PVC soldavel agua fria DN 40mm | C164: m | D164: 100 | E164: =OFFSET(INDEX(Composições!A:J,MATCH(B164,Composições!B:B,0),10),2,0) -> 8.46 | F164: 846 | G164: =BDI!$B$17 -> 0.2034 | H164: 10.18 | I164: 1018 | K164: 8.47 | L164: -0.01 | M164: -0.001180637544 | N164: 847 | O164: -1 | P164: 10.19 | Q164: -0.01 | R164: 1019 | S164: -1
A165: SF-00174 | B165: Tubo PVC soldavel agua fria DN 50mm | C165: m | D165: 100 | E165: =OFFSET(INDEX(Composições!A:J,MATCH(B165,Composições!B:B,0),10),2,0) -> 9.74 | F165: 974 | G165: =BDI!$B$17 -> 0.2034 | H165: 11.72 | I165: 1172 | K165: 9.76 | L165: -0.02 | M165: -0.002049180328 | N165: 976 | O165: -2 | P165: 11.75 | Q165: -0.03 | R165: 1175 | S165: -3
A166: SF-00175 | B166: Base registro gaveta 3/4" | C166: un | D166: 80 | E166: =OFFSET(INDEX(Composições!A:J,MATCH(B166,Composições!B:B,0),10),2,0) -> 38.95 | F166: 3116 | G166: =BDI!$B$17 -> 0.2034 | H166: 46.87 | I166: 3749.6 | K166: 38.95 | N166: 3116 | P166: 46.87 | R166: 3749.6
A167: SF-00176 | B167: Caixa sifonada de PVC DN 150mm | C167: un | D167: 60 | E167: =OFFSET(INDEX(Composições!A:J,MATCH(B167,Composições!B:B,0),10),2,0) -> 50.86 | F167: 3051.6 | G167: =BDI!$B$17 -> 0.2034 | H167: 61.2 | I167: 3672 | K167: 50.87 | L167: -0.01 | M167: -0.0001965795164 | N167: 3052.2 | O167: -0.6 | P167: 61.22 | Q167: -0.02 | R167: 3673.2 | S167: -1.2
A168: SF-00177 | B168: Caixa sifonada de PVC DN 250mm | C168: un | D168: 60 | E168: =OFFSET(INDEX(Composições!A:J,MATCH(B168,Composições!B:B,0),10),2,0) -> 87.12 | F168: 5227.2 | G168: =BDI!$B$17 -> 0.2034 | H168: 104.84 | I168: 6290.4 | K168: 87.13 | L168: -0.01 | M168: -0.0001147710318 | N168: 5227.8 | O168: -0.6 | P168: 104.85 | Q168: -0.01 | R168: 6291 | S168: -0.6
A169: SF-00178 | B169: Grelha quadrada para ralo 10x10cm | C169: un | D169: 60 | E169: =OFFSET(INDEX(Composições!A:J,MATCH(B169,Composições!B:B,0),10),2,0) -> 47.13 | F169: 2827.8 | G169: =BDI!$B$17 -> 0.2034 | H169: 56.72 | I169: 3403.2 | K169: 47.13 | N169: 2827.8 | P169: 56.72 | R169: 3403.2
A170: SF-00179 | B170: Grelha quadrada para ralo 15x15cm | C170: un | D170: 60 | E170: =OFFSET(INDEX(Composições!A:J,MATCH(B170,Composições!B:B,0),10),2,0) -> 49.41 | F170: 2964.6 | G170: =BDI!$B$17 -> 0.2034 | H170: 59.46 | I170: 3567.6 | K170: 49.41 | N170: 2964.6 | P170: 59.46 | R170: 3567.6
A171: SF-00180 | B171: Ralo seco PVC DN 100x40mm | C171: un | D171: 60 | E171: =OFFSET(INDEX(Composições!A:J,MATCH(B171,Composições!B:B,0),10),2,0) -> 8.36 | F171: 501.6 | G171: =BDI!$B$17 -> 0.2034 | H171: 10.06 | I171: 603.6 | K171: 8.34 | L171: 0.02 | M171: 0.002398081535 | N171: 500.4 | O171: 1.2 | P171: 10.04 | Q171: 0.02 | R171: 602.4 | S171: 1.2
A172: SF-00181 | B172: Assento para bacia convencional – Linha Administrativa | C172: un | D172: 60 | E172: =OFFSET(INDEX(Composições!A:J,MATCH(B172,Composições!B:B,0),10),2,0) -> 51.32 | F172: 3079.2 | G172: =BDI!$B$17 -> 0.2034 | H172: 61.76 | I172: 3705.6 | K172: 51.32 | N172: 3079.2 | P172: 61.76 | R172: 3705.6
A173: SF-00182 | B173: Bacia convencional – Linha Administrativa | C173: un | D173: 60 | E173: =OFFSET(INDEX(Composições!A:J,MATCH(B173,Composições!B:B,0),10),2,0) -> 209.46 | F173: 12567.6 | G173: =BDI!$B$17 -> 0.2034 | H173: 252.06 | I173: 15123.6 | K173: 209.49 | L173: -0.03 | M173: -0.0001432049262 | N173: 12569.4 | O173: -1.8 | P173: 252.1 | Q173: -0.04 | R173: 15126 | S173: -2.4
A174: SF-00183 | B174: Bacia convencional com saída horizontal | C174: un | D174: 2 | E174: =OFFSET(INDEX(Composições!A:J,MATCH(B174,Composições!B:B,0),10),2,0) -> 242.52 | F174: 485.04 | G174: =BDI!$B$17 -> 0.2034 | H174: 291.85 | I174: 583.7 | K174: 242.55 | L174: -0.03 | M174: -0.000123685838 | N174: 485.1 | O174: -0.06 | P174: 291.88 | Q174: -0.03 | R174: 583.76 | S174: -0.06
A175: SF-00184 | B175: Cuba oval de embutir | C175: un | D175: 60 | E175: =OFFSET(INDEX(Composições!A:J,MATCH(B175,Composições!B:B,0),10),2,0) -> 86.95 | F175: 5217 | G175: =BDI!$B$17 -> 0.2034 | H175: 104.64 | I175: 6278.4 | K175: 86.94 | L175: 0.01 | M175: 0.0001150218542 | N175: 5216.4 | O175: 0.6 | P175: 104.62 | Q175: 0.02 | R175: 6277.2 | S175: 1.2
A176: SF-00185 | B176: Cuba retangular em aço inox – Linha Administrativa | C176: un | D176: 20 | E176: =OFFSET(INDEX(Composições!A:J,MATCH(B176,Composições!B:B,0),10),2,0) -> 212.59 | F176: 4251.8 | G176: =BDI!$B$17 -> 0.2034 | H176: 255.83 | I176: 5116.6 | K176: 212.58 | L176: 0.01 | M176: 4.704111393e-05 | N176: 4251.6 | O176: 0.2 | P176: 255.82 | Q176: 0.01 | R176: 5116.4 | S176: 0.2
A177: SF-00186 | B177: Cuba semiencaixe quadrada com mesa | C177: un | D177: 10 | E177: =OFFSET(INDEX(Composições!A:J,MATCH(B177,Composições!B:B,0),10),2,0) -> 660.44 | F177: 6604.4 | G177: =BDI!$B$17 -> 0.2034 | H177: 794.77 | I177: 7947.7 | K177: 660.43 | L177: 0.01 | M177: 1.514165014e-05 | N177: 6604.3 | O177: 0.1 | P177: 794.76 | Q177: 0.01 | R177: 7947.6 | S177: 0.1
A178: SF-00187 | B178: Instalação de lavatório reaproveitado | C178: un | D178: 60 | E178: =OFFSET(INDEX(Composições!A:J,MATCH(B178,Composições!B:B,0),10),2,0) -> 33.81 | F178: 2028.6 | G178: =BDI!$B$17 -> 0.2034 | H178: 40.69 | I178: 2441.4 | K178: 33.81 | N178: 2028.6 | P178: 40.69 | R178: 2441.4
A179: SF-00188 | B179: Instalação de mictório reaproveitado | C179: un | D179: 60 | E179: =OFFSET(INDEX(Composições!A:J,MATCH(B179,Composições!B:B,0),10),2,0) -> 117.6 | F179: 7056 | G179: =BDI!$B$17 -> 0.2034 | H179: 141.52 | I179: 8491.2 | K179: 117.62 | L179: -0.02 | M179: -0.000170039109 | N179: 7057.2 | O179: -1.2 | P179: 141.54 | Q179: -0.02 | R179: 8492.4 | S179: -1.2
A180: SF-00189 | B180: Instalação de vaso sanitário reaproveitado | C180: un | D180: 60 | E180: =OFFSET(INDEX(Composições!A:J,MATCH(B180,Composições!B:B,0),10),2,0) -> 57.1 | F180: 3426 | G180: =BDI!$B$17 -> 0.2034 | H180: 68.71 | I180: 4122.6 | K180: 57.13 | L180: -0.03 | M180: -0.0005251181516 | N180: 3427.8 | O180: -1.8 | P180: 68.75 | Q180: -0.04 | R180: 4125 | S180: -2.4
A181: SF-00190 | B181: Lavatório suspenso | C181: un | D181: 10 | E181: =OFFSET(INDEX(Composições!A:J,MATCH(B181,Composições!B:B,0),10),2,0) -> 97.74 | F181: 977.4 | G181: =BDI!$B$17 -> 0.2034 | H181: 117.62 | I181: 1176.2 | K181: 97.74 | N181: 977.4 | P181: 117.62 | R181: 1176.2
A182: SF-00191 | B182: Mictório – Linha Administrativa | C182: un | D182: 20 | E182: =OFFSET(INDEX(Composições!A:J,MATCH(B182,Composições!B:B,0),10),2,0) -> 340.29 | F182: 6805.8 | G182: =BDI!$B$17 -> 0.2034 | H182: 409.5 | I182: 8190 | K182: 340.31 | L182: -0.02 | M182: -5.876994505e-05 | N182: 6806.2 | O182: -0.4 | P182: 409.53 | Q182: -0.03 | R182: 8190.6 | S182: -0.6
A183: SF-00192 | B183: Tanque 38 litros – Linha Administrativa | C183: un | D183: 5 | E183: =OFFSET(INDEX(Composições!A:J,MATCH(B183,Composições!B:B,0),10),2,0) -> 417.84 | F183: 2089.2 | G183: =BDI!$B$17 -> 0.2034 | H183: 502.83 | I183: 2514.15 | K183: 417.83 | L183: 0.01 | M183: 2.393317857e-05 | N183: 2089.15 | O183: 0.05 | P183: 502.82 | Q183: 0.01 | R183: 2514.1 | S183: 0.05
A184: SF-00193 | B184: Acabamento para registro GD – Linha Administrativa | C184: un | D184: 40 | E184: =OFFSET(INDEX(Composições!A:J,MATCH(B184,Composições!B:B,0),10),2,0) -> 45.35 | F184: 1814 | G184: =BDI!$B$17 -> 0.2034 | H184: 54.57 | I184: 2182.8 | K184: 45.34 | L184: 0.01 | M184: 0.0002205558006 | N184: 1813.6 | O184: 0.4 | P184: 54.56 | Q184: 0.01 | R184: 2182.4 | S184: 0.4
A185: SF-00194 | B185: Acabamento para registro PQ – Linha Administrativa | C185: un | D185: 40 | E185: =OFFSET(INDEX(Composições!A:J,MATCH(B185,Composições!B:B,0),10),2,0) -> 33.52 | F185: =IF(ISNUMBER(E185),ROUND(D185*E185,2),"-") -> 1340.8 | G185: =BDI!$B$17 -> 0.2034 | H185: =IF(ISNUMBER(E185),ROUND(E185*(1+G185),2),0) -> 40.34 | I185: 1613.6 | K185: 33.51 | L185: 0.01 | M185: 0.0002984183826 | N185: 1340.4 | O185: 0.4 | P185: 40.33 | Q185: 0.01 | R185: 1613.2 | S185: 0.4
A186: SF-00195 | B186: Ducha higiênica – Linha Administrativa | C186: un | D186: 60 | E186: =OFFSET(INDEX(Composições!A:J,MATCH(B186,Composições!B:B,0),10),2,0) -> 232.85 | F186: 13971 | G186: =BDI!$B$17 -> 0.2034 | H186: 280.21 | I186: 16812.6 | K186: 232.85 | N186: 13971 | P186: 280.21 | R186: 16812.6
A187: SF-00196 | B187: Instalação de metais e acessórios reaproveitados | C187: un | D187: 200 | E187: =OFFSET(INDEX(Composições!A:J,MATCH(B187,Composições!B:B,0),10),2,0) -> 3.41 | F187: 682 | G187: =BDI!$B$17 -> 0.2034 | H187: 4.1 | I187: 820 | K187: 3.4 | L187: 0.01 | M187: 0.002941176471 | N187: 680 | O187: 2 | P187: 4.09 | Q187: 0.01 | R187: 818 | S187: 2
A188: SF-00197 | B188: Ligação flexível 1/2” x 40 cm – Linha Administrativa | C188: un | D188: 60 | E188: =OFFSET(INDEX(Composições!A:J,MATCH(B188,Composições!B:B,0),10),2,0) -> 25.71 | F188: 1542.6 | G188: =BDI!$B$17 -> 0.2034 | H188: 30.94 | I188: 1856.4 | K188: 25.71 | N188: 1542.6 | P188: 30.94 | R188: 1856.4
A189: SF-00198 | B189: Sifão articulado para cozinha – Linha Administrativa | C189: un | D189: 20 | E189: =OFFSET(INDEX(Composições!A:J,MATCH(B189,Composições!B:B,0),10),2,0) -> 174.49 | F189: 3489.8 | G189: =BDI!$B$17 -> 0.2034 | H189: 209.98 | I189: 4199.6 | K189: 174.49 | N189: 3489.8 | P189: 209.98 | R189: 4199.6
A190: SF-00199 | B190: Sifão para lavatório 1 1/2" | C190: un | D190: 60 | E190: =OFFSET(INDEX(Composições!A:J,MATCH(B190,Composições!B:B,0),10),2,0) -> 94.64 | F190: 5678.4 | G190: =BDI!$B$17 -> 0.2034 | H190: 113.89 | I190: =ROUND(H190*D190,2) -> 6833.4 | K190: 94.64 | N190: 5678.4 | P190: 113.89 | R190: 6833.4
A191: SF-00200 | B191: Sifão para tanque – Linha Administrativa | C191: un | D191: 5 | E191: =OFFSET(INDEX(Composições!A:J,MATCH(B191,Composições!B:B,0),10),2,0) -> 99.84 | F191: 499.2 | G191: =BDI!$B$17 -> 0.2034 | H191: 120.15 | I191: 600.75 | K191: 99.84 | N191: 499.2 | P191: 120.15 | R191: 600.75
A192: SF-00201 | B192: Torneira de mesa para cozinha bica móvel – Linha Administrativa | C192: un | D192: 20 | E192: =OFFSET(INDEX(Composições!A:J,MATCH(B192,Composições!B:B,0),10),2,0) -> 264.15 | F192: 5283 | G192: =BDI!$B$17 -> 0.2034 | H192: 317.88 | I192: 6357.6 | K192: 264.15 | N192: 5283 | P192: 317.88 | R192: 6357.6
A193: SF-00202 | B193: Torneira de mesa para cozinha bica móvel com arejador – Linha Administrativa | C193: un | D193: 20 | E193: =OFFSET(INDEX(Composições!A:J,MATCH(B193,Composições!B:B,0),10),2,0) -> 147.58 | F193: 2951.6 | G193: =BDI!$B$17 -> 0.2034 | H193: 177.6 | I193: 3552 | K193: 147.58 | N193: 2951.6 | P193: 177.6 | R193: 3552
A194: SF-00203 | B194: Torneira de mesa para lavatório – Linha Acessibilidade | C194: un | D194: 10 | E194: =OFFSET(INDEX(Composições!A:J,MATCH(B194,Composições!B:B,0),10),2,0) -> 227.73 | F194: 2277.3 | G194: =BDI!$B$17 -> 0.2034 | H194: 274.05 | I194: 2740.5 | K194: 227.72 | L194: 0.01 | M194: 4.391357808e-05 | N194: 2277.2 | O194: 0.1 | P194: 274.04 | Q194: 0.01 | R194: 2740.4 | S194: 0.1
A195: SF-00204 | B195: Torneira de mesa para lavatório bica alta – Linha Administrativa | C195: un | D195: 60 | E195: =OFFSET(INDEX(Composições!A:J,MATCH(B195,Composições!B:B,0),10),2,0) -> 144.8 | F195: 8688 | G195: =BDI!$B$17 -> 0.2034 | H195: 174.25 | I195: 10455 | K195: 144.79 | L195: 0.01 | M195: 6.90655432e-05 | N195: 8687.4 | O195: 0.6 | P195: 174.24 | Q195: 0.01 | R195: 10454.4 | S195: 0.6
A196: SF-00205 | B196: Torneira de mesa para lavatório bica baixa – Linha Administrativa | C196: un | D196: 60 | E196: =OFFSET(INDEX(Composições!A:J,MATCH(B196,Composições!B:B,0),10),2,0) -> 104.07 | F196: 6244.2 | G196: =BDI!$B$17 -> 0.2034 | H196: 125.24 | I196: 7514.4 | K196: 104.06 | L196: 0.01 | M196: 9.609840477e-05 | N196: 6243.6 | O196: 0.6 | P196: 125.23 | Q196: 0.01 | R196: 7513.8 | S196: 0.6
A197: SF-00206 | B197: Torneira de mesa para lavatório com fechamento automático – Linha Administrativa | C197: un | D197: 60 | E197: =OFFSET(INDEX(Composições!A:J,MATCH(B197,Composições!B:B,0),10),2,0) -> 130.38 | F197: 7822.8 | G197: =BDI!$B$17 -> 0.2034 | H197: 156.9 | I197: 9414 | K197: 130.37 | L197: 0.01 | M197: 7.670476337e-05 | N197: 7822.2 | O197: 0.6 | P197: 156.89 | Q197: 0.01 | R197: 9413.4 | S197: 0.6
A198: SF-00207 | B198: Torneira de parede para cozinha bica móvel – Linha Administrativa | C198: un | D198: 20 | E198: =OFFSET(INDEX(Composições!A:J,MATCH(B198,Composições!B:B,0),10),2,0) -> 139.34 | F198: 2786.8 | G198: =BDI!$B$17 -> 0.2034 | H198: 167.68 | I198: 3353.6 | K198: 139.34 | N198: 2786.8 | P198: 167.68 | R198: 3353.6
A199: SF-00208 | B199: Torneira de parede para tanque – Linha Administrativa | C199: un | D199: 5 | E199: =OFFSET(INDEX(Composições!A:J,MATCH(B199,Composições!B:B,0),10),2,0) -> 49.18 | F199: 245.9 | G199: =BDI!$B$17 -> 0.2034 | H199: 59.18 | I199: 295.9 | K199: 49.18 | M199: =IF(ISNUMBER(L199),L199/K199,"") ->  | N199: 245.9 | P199: 59.18 | R199: 295.9
A200: SF-00209 | B200: Válvula de descarga 1 1/2" – Linha Acessibilidade | C200: un | D200: 10 | E200: =OFFSET(INDEX(Composições!A:J,MATCH(B200,Composições!B:B,0),10),2,0) -> 359.94 | F200: 3599.4 | G200: =BDI!$B$17 -> 0.2034 | H200: 433.15 | I200: 4331.5 | K200: 359.94 | L200: =IF(E200=K200,"",E200-K200) ->  | N200: 3599.4 | O200: =IF(F200=N200,"",F200-N200) ->  | P200: 433.15 | Q200: =IF(H200=P200,"",H200-P200) ->  | R200: 4331.5 | S200: =IF(I200=R200,"",I200-R200) -> 
A201: SF-00210 | B201: Válvula de descarga 1 1/2" – Linha Administrativa | C201: un | D201: 60 | E201: =OFFSET(INDEX(Composições!A:J,MATCH(B201,Composições!B:B,0),10),2,0) -> 174.2 | F201: 10452 | G201: =BDI!$B$17 -> 0.2034 | H201: 209.63 | I201: 12577.8 | K201: 174.2 | N201: 10452 | P201: 209.63 | R201: 12577.8
... 204 more rows

Sheet Composições
B1: SENADO FEDERAL | C1: =Orçamentária!A1 -> Ata de Registro de Preços para Reformas no SF - 2019/2020
B2: SECRETARIA DE INFRAESTRUTURA | C2: COMPOSIÇÕES
B3: SERVIÇO DE ORÇAMENTOS | C3: =Orçamentária!A4 -> Data: Julho de 2019 (data-base: Sinapi jun/2019, Pini jun/2019)
A5: Item | B5: Discriminação | C5: Especificação do Serviço | D5: Unidade | E5: Coeficiente | F5: Fonte do Coeficiente | G5: Preço unitário | H5: Fonte do Preço | I5: Preço | J5: TOTAL
A6: SF-00001 | B6: Engenheiro(a) /Arquiteto(a) júnior | D6: hh | F6: Sinapi 90777 | I6: =IF(ISNUMBER(G6),ROUND(E6*G6,2),"") -> 
C8: Engenheiro civil de obra junior com encargos complementares | D8: h | E8: 1 | F8: Sinapi 90777 | G8: 76.03 | H8: Sinapi 90777 | I8: 76.03 | J8: =SUM(I8:I8) -> 76.03
A10: SF-00002 | B10: Mestre de obras | D10: hh | F10: Sinapi 90780
C12: Mestre de obras com encargos complementares | D12: h | E12: 1 | F12: Sinapi 90780 | G12: 23.08 | H12: Sinapi 90780 | I12: 23.08 | J12: =SUM(I12:I12) -> 23.08
A14: SF-00003 | B14: Planejamento físico-financeiro | D14: un | F14: Senado Federal
C16: Engenheiro Civil de Obra Pleno com encargos complementares | D16: h | E16: 16 | F16: Senado Federal | G16: 86.4 | H16: Sinapi 90778 | I16: 1382.4 | J16: =SUM(I16:I16) -> 1382.4
A18: SF-00004 | B18: Projetos de segurança do trabalho | D18: un | F18: Senado Federal
C20: Engenheiro Civil de Obra Pleno com encargos complementares | D20: h | E20: 20 | F20: Senado Federal | G20: 86.4 | H20: Sinapi 90778 | I20: 1728 | J20: =SUM(I20:I21) -> 1954.5
C21: Anotação de Responsabilidade Técnica | D21: un | E21: 1 | F21: Senado Federal | G21: 226.5 | H21: Pesquisa de Preços | I21: 226.5
A23: SF-00005 | B23: Demolição de alvenarias | D23: m3 | F23: Sinapi 97622
C25: Pedreiro com Encargos Complementares | D25: h | E25: 0.225 | F25: Sinapi 97622 | G25: 19.32 | H25: Sinapi 88309 | I25: 4.35 | J25: =SUM(I25:I26) -> 37.39
C26: Servente com Encargos Complementares | D26: h | E26: 2.3248 | F26: Sinapi 97622 | G26: 14.21 | H26: Sinapi 88316 | I26: 33.04
A28: SF-00006 | B28: Demolição de concreto simples | D28: m3 | F28: Pini 02.102.000007.SER Adaptada
C30: Pedreiro com Encargos Complementares | D30: h | E30: 1.3 | F30: Pini 02.102.000007.SER | G30: 19.32 | H30: Sinapi 88309 | I30: 25.12 | J30: =SUM(I30:I31) -> 209.85
C31: Servente com Encargos Complementares | D31: h | E31: 13 | F31: Pini 02.102.000007.SER | G31: 14.21 | H31: Sinapi 88316 | I31: 184.73
A33: SF-00007 | B33: Demolição de contrapiso | D33: m2 | F33: SCO/RJ - SC 05.05.0800 Adaptada
C35: Servente com Encargos Complementares | D35: h | E35: 0.7 | F35: SCO/RJ - SC 05.05.0800 | G35: 14.21 | H35: Sinapi 88316 | I35: 9.95 | J35: =SUM(I35:I35) -> 9.95
A37: SF-00008 | B37: Demolição de fechamento ou parede em gesso acartonado | D37: m2 | F37: Sinapi 97638
C39: Montador de estrutura metálica com encargos complementares | D39: h | E39: 0.1186 | F39: Sinapi 97638 | G39: 14.73 | H39: Sinapi 88278 | I39: 1.75 | J39: =SUM(I39:I40) -> 5.06
C40: Servente com Encargos Complementares | D40: h | E40: 0.2329 | F40: Sinapi 97638 | G40: 14.21 | H40: Sinapi 88316 | I40: 3.31
A42: SF-00009 | B42: Demolição de forro de gesso | D42: m2 | F42: Sinapi 97640
C44: Montador de estrutura metálica com encargos complementares | D44: h | E44: 0.0258 | F44: Sinapi 97640 | G44: 14.73 | H44: Sinapi 88278 | I44: 0.38 | J44: =SUM(I44:I45) -> 1.1
C45: Servente com Encargos Complementares | D45: h | E45: 0.0507 | F45: Sinapi 97640 | G45: 14.21 | H45: Sinapi 88316 | I45: 0.72
A47: SF-00010 | B47: Demolição de infraestrutura elétrica (eletrodutos, eletrocalhas, cabos) | D47: m | F47: Sinapi 97661 Adaptada
C49: Eletricista com encargos complementares | D49: h | E49: =0.0096*5 -> 0.048 | F49: Sinapi 97661 Adaptada | G49: 19.55 | H49: Sinapi 88264 | I49: 0.94 | J49: =SUM(I49:I50) -> 2.28
C50: Servente com Encargos Complementares | D50: h | E50: =0.0188*5 -> 0.094 | F50: Sinapi 97661 Adaptada | G50: 14.21 | H50: Sinapi 88316 | I50: 1.34
A52: SF-00011 | B52: Demolição de revestimento cerâmico, granito, mármore ou granitina | D52: m2 | F52: Sinapi 97634
C54: Martelete ou rompedor pneumático manual, 28 kg, com silenciador - CHP diurno. AF_07/2016 | D54: chp | E54: 0.0699 | F54: Sinapi 97634 | G54: 17.33 | H54: Sinapi 5795 | I54: 1.21 | J54: =SUM(I54:I57) -> 8.25
C55: Martelete ou rompedor pneumático manual, 28 kg, com silenciador - CHI diurno. AF_07/2016 | D55: chi | E55: 0.0482 | F55: Sinapi 97634 | G55: 16.33 | H55: Sinapi 5952 | I55: 0.79
C56: Azulejista ou ladrilhista com encargos complementares | D56: h | E56: 0.1055 | F56: Sinapi 97634 | G56: 19.25 | H56: Sinapi 88256 | I56: 2.03
C57: Servente com Encargos Complementares | D57: h | E57: 0.2972 | F57: Sinapi 97634 | G57: 14.21 | H57: Sinapi 88316 | I57: 4.22
A59: SF-00012 | B59: Demolição de revestimento em argamassa | D59: m2 | F59: Sinapi 97631
C61: Pedreiro com Encargos Complementares | D61: h | E61: 0.0374 | F61: Sinapi 97631 | G61: 19.32 | H61: Sinapi 88309 | I61: 0.72 | J61: =SUM(I61:I62) -> 2.22
C62: Servente com Encargos Complementares | D62: h | E62: 0.1053 | F62: Sinapi 97631 | G62: 14.21 | H62: Sinapi 88316 | I62: 1.5
A64: SF-00013 | B64: Demolição de tubulação hidrossanitária embutida com conexões e acessórios | D64: m | F64: Sinapi 97662
C66: Encanador ou Bombeiro Hidráulico com Encargos Complementares | D66: h | E66: 0.0071 | F66: Sinapi 97662 | G66: 18.95 | H66: Sinapi 88267 | I66: 0.13 | J66: =SUM(I66:I67) -> 0.33
C67: Servente com Encargos Complementares | D67: h | E67: 0.014 | F67: Sinapi 97662 | G67: 14.21 | H67: Sinapi 88316 | I67: 0.2
A69: SF-00014 | B69: Demolição em concreto armado | D69: m3 | F69: Sinapi 97627
I70: =IF(ISNUMBER(G70),ROUND(E70*G70,2),"") -> 
C71: Martelete ou rompedor pneumático manual, 28 kg, com silenciador - CHP diurno. AF_07/2016 | D71: chp | E71: 3.2468 | F71: Sinapi 97627 | G71: 17.33 | H71: Sinapi 5795 | I71: 56.27 | J71: =SUM(I71:I75) -> 179.72
C72: Martelete ou rompedor pneumático manual, 28 kg, com silenciador - CHI diurno. AF_07/2016 | D72: chi | E72: 0.9202 | F72: Sinapi 97627 | G72: 16.33 | H72: Sinapi 5952 | I72: 15.03
C73: Cabo de aco galvanizado, diametro 9,53 mm (3/8"), com alma de fibra 6 x 25 f (coletado caixa) | D73: kg | E73: 0.2835 | F73: Sinapi 97627 | G73: 9.31 | H73: Sinapi 42655 | I73: 2.64
C74: Pedreiro com Encargos Complementares | D74: h | E74: 0.6366 | F74: Sinapi 97627 | G74: 19.32 | H74: Sinapi 88309 | I74: 12.3
C75: Servente com Encargos Complementares | D75: h | E75: 6.5785 | F75: Sinapi 97627 | G75: 14.21 | H75: Sinapi 88316 | I75: 93.48
A77: SF-00016 | B77: Remoção de armários | D77: m2 | F77: SCO/RJ - SC 05.05.1750 Adaptada
C79: Carpinteiro de esquadria com encargos complementares | D79: h | E79: 0.35 | F79: SCO/RJ - SC 05.05.1750 | G79: 19.22 | H79: Sinapi 88261 | I79: 6.73 | J79: =SUM(I79:I80) -> 11.7
C80: Servente com Encargos Complementares | D80: h | E80: 0.35 | F80: SCO/RJ - SC 05.05.1750 | G80: 14.21 | H80: Sinapi 88316 | I80: 4.97
A82: SF-00017 | B82: Remoção de bancadas | D82: m2 | F82: Orse 8387 Adaptada
C84: Pedreiro com Encargos Complementares | D84: h | E84: 0.15 | F84: Orse 8387 | G84: 19.32 | H84: Sinapi 88309 | I84: 2.9 | J84: =SUM(I84:I85) -> 17.11
C85: Servente com Encargos Complementares | D85: h | E85: 1 | F85: Orse 8387 | G85: 14.21 | H85: Sinapi 88316 | I85: 14.21
A87: SF-00018 | B87: Remoção de batentes de madeira | D87: un | F87: Pini 02.102.000032.SER Adaptada
C89: Pedreiro com Encargos Complementares | D89: h | E89: =0.08/2 -> 0.04 | F89: Pini 02.102.000032.SER Adaptada | G89: 19.32 | H89: Sinapi 88309 | I89: 0.77 | J89: =SUM(I89:I90) -> 6.45
C90: Servente com Encargos Complementares | D90: h | E90: =0.8/2 -> 0.4 | F90: Pini 02.102.000032.SER Adaptada | G90: 14.21 | H90: Sinapi 88316 | I90: 5.68
A92: SF-00019 | B92: Remoção de canaleta em alumínio | D92: m | F92: Senado Federal
C94: Eletricista com encargos complementares | D94: h | E94: =0.75*0.1 -> 0.075 | F94: Senado Federal | G94: 19.55 | H94: Sinapi 88264 | I94: 1.47 | J94: =SUM(I94:I95) -> 3.6
C95: Servente com Encargos Complementares | D95: h | E95: =0.75*0.2 -> 0.15 | F95: Senado Federal | G95: 14.21 | H95: Sinapi 88316 | I95: 2.13
A97: SF-00020 | B97: Remoção de carpete | D97: m2 | F97: Pini 02.102.000043.SER Adaptada
C99: Pedreiro com Encargos Complementares | D99: h | E99: 0.01 | F99: Pini 02.102.000043.SER | G99: 19.32 | H99: Sinapi 88309 | I99: 0.19 | J99: =SUM(I99:I100) -> 1.61
C100: Servente com Encargos Complementares | D100: h | E100: 0.1 | F100: Pini 02.102.000043.SER | G100: 14.21 | H100: Sinapi 88316 | I100: 1.42
A102: SF-00021 | B102: Remoção de cortinas | D102: m | F102: Senado Federal
C104: Ajudante especializado com encargos complementares | D104: h | E104: =1/6 -> 0.1666666667 | F104: Senado Federal | G104: 16.9 | H104: Sinapi 88243 | I104: 2.82 | J104: =SUM(I104:I104) -> 2.82
A106: SF-00022 | B106: Remoção de difusores, grelhas e acessórios de climatização | D106: un | F106: Orse 08857 Adaptada
C108: Ajudante de operação em geral com encargos complementares | D108: h | E108: 0.6 | F108: Orse 08857 | G108: 15.23 | H108: Sinapi 88241 | I108: 9.14 | J108: =SUM(I108:I109) -> 17.67
C109: Servente com Encargos Complementares | D109: h | E109: 0.6 | F109: Orse 08857 | G109: 14.21 | H109: Sinapi 88316 | I109: 8.53
A111: SF-00023 | B111: Remoção de divisória de mármore ou granito | D111: m2 | F111: Seinfra C1051 Adaptada
C113: Marmorista/graniteiro com encargos complementares | D113: h | E113: 0.6 | F113: Seinfra C1051 | G113: 16.09 | H113: Sinapi 88274 | I113: 9.65 | J113: =SUM(I113:I114) -> 26.7
C114: Servente com Encargos Complementares | D114: h | E114: 1.2 | F114: Seinfra C1051 | G114: 14.21 | H114: Sinapi 88316 | I114: 17.05
A116: SF-00024 | B116: Remoção de divisórias de MDF e gesso acartonado | D116: m2 | F116: Sinapi 72178
C118: Carpinteiro de esquadria com encargos complementares | D118: h | E118: 1.2 | F118: Sinapi 72178 | G118: 19.22 | H118: Sinapi 88261 | I118: 23.06 | J118: =SUM(I118:I118) -> 23.06
A120: SF-00025 | B120: Remoção de dutos/tubulações | D120: m | F120: Seinfra C3389 Adaptada
C122: Encanador ou Bombeiro Hidráulico com Encargos Complementares | D122: h | E122: 0.175 | F122: Seinfra C3389 | G122: 18.95 | H122: Sinapi 88267 | I122: 3.32 | J122: =SUM(I122:I123) -> 7.58
C123: Servente com Encargos Complementares | D123: h | E123: 0.3 | F123: Seinfra C3389 | G123: 14.21 | H123: Sinapi 88316 | I123: 4.26
A125: SF-00026 | B125: Remoção de esquadrias metálicas | D125: m2 | F125: Pini 02.102.000031.SER Adaptada
C127: Pedreiro com Encargos Complementares | D127: h | E127: 0.05 | F127: Pini 02.102.000031.SER | G127: 19.32 | H127: Sinapi 88309 | I127: 0.97 | J127: =SUM(I127:I128) -> 8.08
C128: Servente com Encargos Complementares | D128: h | E128: 0.5 | F128: Pini 02.102.000031.SER | G128: 14.21 | H128: Sinapi 88316 | I128: 7.11
A130: SF-00027 | B130: Remoção de exaustor | D130: un | F130: EMOP 17-60-92 Adaptada
C132: Eletricista com encargos complementares | D132: h | E132: 0.3 | F132: EMOP 17-60-92 | G132: 19.55 | H132: Sinapi 88264 | I132: 5.87 | J132: =SUM(I132:I132) -> 5.87
A134: SF-00028 | B134: Remoção de fechadura/puxador de porta | D134: un | F134: Orse 04859 Adaptada | I134: =IF(ISNUMBER(G134),ROUND(E134*G134,2),"") -> 
C136: Carpinteiro de esquadria com encargos complementares | D136: h | E136: =0.25 -> 0.25 | F136: Orse 04859 | G136: 19.22 | H136: Sinapi 88261 | I136: 4.81 | J136: =SUM(I136:I136) -> 4.81
A138: SF-00029 | B138: Remoção de folha de porta e dobradiças | D138: un | F138: Sinapi 97644
C140: Pedreiro com Encargos Complementares | D140: h | E140: 0.1315 | F140: Sinapi 97644 | G140: 19.32 | H140: Sinapi 88309 | I140: 2.54 | J140: =SUM(I140:I141) -> 6.21
C141: Servente com Encargos Complementares | D141: h | E141: 0.2582 | F141: Sinapi 97644 | G141: 14.21 | H141: Sinapi 88316 | I141: 3.67
A143: SF-00030 | B143: Remoção de laminado melamínico (LDAP), em PVC ou vinílico | D143: m2 | F143: Pini 02.102.000044.SER Adaptada
C145: Pedreiro com Encargos Complementares | D145: h | E145: 0.09 | F145: Pini 02.102.000044.SER | G145: 19.32 | H145: Sinapi 88309 | I145: 1.74 | J145: =SUM(I145:I146) -> 14.53
C146: Servente com Encargos Complementares | D146: h | E146: 0.9 | F146: Pini 02.102.000044.SER | G146: 14.21 | H146: Sinapi 88316 | I146: 12.79
A148: SF-00031 | B148: Remoção de louças | D148: un | F148: Sinapi 97663
C150: Encanador ou Bombeiro Hidráulico com Encargos Complementares | D150: h | E150: 0.1755 | F150: Sinapi 97663 | G150: 18.95 | H150: Sinapi 88267 | I150: 3.33 | J150: =SUM(I150:I151) -> 8.23
C151: Servente com Encargos Complementares | D151: h | E151: 0.3448 | F151: Sinapi 97663 | G151: 14.21 | H151: Sinapi 88316 | I151: 4.9
A153: SF-00032 | B153: Remoção de luminária | D153: un | F153: Sinapi 97665 Adaptada
C155: Eletricista com encargos complementares | D155: h | E155: =0.0183*5 -> 0.0915 | F155: Sinapi 97665 Adaptada | G155: 19.55 | H155: Sinapi 88264 | I155: 1.79 | J155: =SUM(I155:I156) -> 4.34
C156: Servente com Encargos Complementares | D156: h | E156: =0.0359*5 -> 0.1795 | F156: Sinapi 97665 Adaptada | G156: 14.21 | H156: Sinapi 88316 | I156: 2.55
C158: Obs.: Remoção com reaproveitamento
A160: SF-00033 | B160: Remoção de metais e acessórios | D160: un | F160: Sinapi 97666
C162: Encanador ou Bombeiro Hidráulico com Encargos Complementares | D162: h | E162: 0.128 | F162: Sinapi 97666 | G162: 18.95 | H162: Sinapi 88267 | I162: 2.43 | J162: =SUM(I162:I163) -> 6
C163: Servente com Encargos Complementares | D163: h | E163: 0.2514 | F163: Sinapi 97666 | G163: 14.21 | H163: Sinapi 88316 | I163: 3.57
A165: SF-00034 | B165: Remoção de painéis de vidro temperado | D165: m2 | F165: Orse 4715 Adaptada
C167: Servente com Encargos Complementares | D167: h | E167: 0.35 | F167: Orse 4715 | G167: 14.21 | H167: Sinapi 88316 | I167: 4.97 | J167: =SUM(I167:I168) -> 11.73
C168: Pedreiro com Encargos Complementares | D168: h | E168: 0.35 | F168: Orse 4715 | G168: 19.32 | H168: Sinapi 88309 | I168: 6.76
A170: SF-00036 | B170: Remoção de persianas | D170: m | F170: Senado Federal
C172: Ajudante especializado com encargos complementares | D172: h | E172: =1/6 -> 0.1666666667 | F172: Senado Federal | G172: 16.9 | H172: Sinapi 88243 | I172: 2.82 | J172: =SUM(I172:I172) -> 2.82
A174: SF-00037 | B174: Remoção de pintura ou textura | D174: m2 | F174: ORSE 07725 Adaptada
C176: Servente com Encargos Complementares | D176: h | E176: 0.4 | F176: ORSE 07725 | G176: 14.21 | H176: Sinapi 88316 | I176: 5.68 | J176: =SUM(I176:I176) -> 5.68
A178: SF-00038 | B178: Remoção de placas de forro | D178: m2 | F178: Sinapi 97640 Adaptada
C180: Montador de estrutura metálica com encargos complementares | D180: h | E180: =0.0258*3 -> 0.0774 | F180: Sinapi 97640 Adaptada | G180: 14.73 | H180: Sinapi 88278 | I180: 1.14 | J180: =SUM(I180:I181) -> 3.3
C181: Servente com Encargos Complementares | D181: h | E181: =0.0507*3 -> 0.1521 | F181: Sinapi 97640 Adaptada | G181: 14.21 | H181: Sinapi 88316 | I181: 2.16
C183: Obs.: remoção com reaproveitamento
A185: SF-00039 | B185: Remoção de quadros de elétricos ou de telecomunicações | D185: un | F185: Senado Federal
C187: Auxiliar de eletricista com encargos complementares | D187: h | E187: 0.5 | F187: Senado Federal | G187: 15.22 | H187: Sinapi 88247 | I187: 7.61 | J187: =SUM(I187:I190) -> 50.92
C188: Eletricista com encargos complementares | D188: h | E188: 0.5 | F188: Senado Federal | G188: 19.55 | H188: Sinapi 88264 | I188: 9.78
C189: Pedreiro com Encargos Complementares | D189: h | E189: 1 | F189: Orse 07224 | G189: 19.32 | H189: Sinapi 88309 | I189: 19.32
C190: Servente com Encargos Complementares | D190: h | E190: 1 | F190: Orse 07224 | G190: 14.21 | H190: Sinapi 88316 | I190: 14.21
A192: SF-00040 | B192: Remoção de revestimento acústico | D192: m2 | F192: Senado Federal
C194: Servente com Encargos Complementares | D194: h | E194: 0.2 | F194: Senado Federal | G194: 14.21 | H194: Sinapi 88316 | I194: 2.84 | J194: =SUM(I194:I194) -> 2.84
A196: SF-00041 | B196: Remoção de rodapé/rodabanca de mármore ou granito | D196: m | F196: Orse 4858 Adaptada
C198: Servente com Encargos Complementares | D198: h | E198: =0.437*0.2 -> 0.0874 | F198: Orse 4858 | G198: 14.21 | H198: Sinapi 88316 | I198: =IF(ISNUMBER(G198),ROUND(E198*G198,2),"") -> 1.24 | J198: =SUM(I198:I198) -> 1.24
A200: SF-00042 | B200: Remoção de rodapés de madeira | D200: m2 | F200: Orse 10235 Adaptada
C202: Carpinteiro de formas com encargos complementares | D202: h | E202: 0.25 | F202: Orse 10235 | G202: 19.18 | H202: Sinapi 88262 | I202: 4.8 | J202: =SUM(I202:I203) -> 5.16
C203: Servente com Encargos Complementares | D203: h | E203: 0.025 | F203: Orse 10235 | G203: 14.21 | H203: Sinapi 88316 | I203: 0.36
A205: SF-00043 | B205: Remoção de soleira de mármore ou granito | D205: m | F205: Pini 02.102.000042.SER Adaptada
C207: Servente com Encargos Complementares | D207: h | E207: 0.55 | F207: Pini 02.102.000042.SER | G207: 14.21 | H207: Sinapi 88316 | I207: 7.82 | J207: =SUM(I207:I207) -> 7.82
A209: SF-00044 | B209: Remoção de split/fancolete/ACJ (equipamento unitário) | D209: un | F209: Senado Federal
C211: Montador eletromecãnico com encargos complementares | D211: h | E211: 1 | F211: Senado Federal | G211: 20.24 | H211: Sinapi 88279 | I211: 20.24 | J211: =SUM(I211:I212) -> 35.47
C212: Ajudante de operação em geral com encargos complementares | D212: h | E212: 1 | F212: Senado Federal | G212: 15.23 | H212: Sinapi 88241 | I212: 15.23
A214: SF-00045 | B214: Remoção de vidro comum / espelho | D214: m2 | F214: Sinapi 85421
C216: Servente com Encargos Complementares | D216: h | E216: 0.2 | F216: Sinapi 85421 | G216: 14.21 | H216: Sinapi 88316 | I216: 2.84 | J216: =SUM(I216:I217) -> 11.81
C217: Vidraceiro com encargos complementares | D217: h | E217: 0.5 | F217: Sinapi 85421 | G217: 17.94 | H217: Sinapi 88325 | I217: 8.97
A219: SF-00046 | B219: Retirada de entulhos | D219: m3 | F219: Orse 0026 Adaptada
C221: Servente com Encargos Complementares | D221: h | E221: 1 | F221: Orse 0026 | G221: 14.21 | H221: Sinapi 88316 | I221: 14.21 | J221: =SUM(I221:I221) -> 14.21
A223: SF-00048 | B223: Andaime fachadeiro | D223: m2 x mês | F223: =F225 -> Sinapi 20193
C225: LOCACAO DE ANDAIME METALICO TIPO FACHADEIRO, LARGURA DE 1,20 M, ALTURA POR PECA DE 2,0 M, INCLUINDO SAPATAS E ITENS NECESSARIOS A INSTALACAO | D225: m2 x mês | E225: 1 | F225: Sinapi 20193 | G225: 3.59 | H225: Sinapi 20193 | I225: 3.59 | J225: =SUM(I225:I225) -> 3.59
A227: SF-00051 | B227: Corda de poliamida 12 mm tipo bombeiro, para trabalho em altura | D227: m | F227: Sinapi 38200 Adaptada
C229: CORDA DE POLIAMIDA 12 MM TIPO BOMBEIRO, PARA TRABALHO EM ALTURA | D229: 100m | E229: 0.01 | F229: Sinapi 38200 | G229: 437.16 | H229: Sinapi 38200 | I229: 4.37 | J229: =SUM(I229:I229) -> 4.37
A231: SF-00057 | B231: Isolamento de obra com tela plástica com malha de 5mm e estrutura de madeira pontaleteada | D231: m2 | F231: Sinapi 85424
C233: Ajudante de carpinteiro com encargos complementares | D233: h | E233: 0.53 | F233: Sinapi 85424 | G233: 16.17 | H233: Sinapi 88239 | I233: 8.57 | J233: =SUM(I233:I238) -> 19.64
C234: Carpinteiro de formas com encargos complementares | D234: h | E234: 0.44 | F234: Sinapi 85424 | G234: 19.18 | H234: Sinapi 88262 | I234: 8.44
C235: PONTALETE DE MADEIRA NAO APARELHADA *7,5 X 7,5* CM (3 X 3 ") PINUS, MISTA OU EQUIVALENTE DA REGIAO | D235: m | E235: 0.06 | F235: Sinapi 85424 | G235: 3.29 | H235: Sinapi 4491 | I235: 0.2
C236: TABUA DE MADEIRA NAO APARELHADA *2,5 X 10 CM (1 X 4 ") PINUS, MISTA OU EQUIVALENTE DA REGIAO | D236: m | E236: 0.2 | F236: Sinapi 85424 | G236: 1.8 | H236: Sinapi 4509 | I236: 0.36
C237: Prego de aco polido com cabeca 18 x 27 (2 1/2 x 10) | D237: kg | E237: 0.01 | F237: Sinapi 85424 | G237: 8.96 | H237: Sinapi 5061 | I237: 0.09
C238: Tela fachadeira em polietileno, rolo de 3 x 100 m (L x C), cor branca, sem logomarca - para protecao de obras | D238: m2 | E238: 1.1 | F238: Sinapi 85424 | G238: 1.8 | H238: Sinapi 7170 | I238: 1.98
A240: SF-00070 | B240: Tapume | D240: m2 | F240: Sinapi 74220/1
C242: Carpinteiro de formas com encargos complementares | D242: h | E242: 0.8 | F242: Sinapi 74220/1 | G242: 19.18 | H242: Sinapi 88262 | I242: 15.34 | J242: =SUM(I242:I249) -> 46.75
C243: Pintor com encargos complementares | D243: h | E243: 0.3 | F243: Sinapi 74220/1 | G243: 20.32 | H243: Sinapi 88310 | I243: 6.1
C244: Servente com Encargos Complementares | D244: h | E244: 0.95 | F244: Sinapi 74220/1 | G244: 14.21 | H244: Sinapi 88316 | I244: 13.5
C245: Cal hidratada CH-I para argamassas | D245: kg | E245: 0.6 | F245: Sinapi 74220/1 | G245: 0.62 | H245: Sinapi 1106 | I245: 0.37
C246: Chapa de madeira compensada resinada para forma de concreto, de *2,2 x 1,1* m, E = 6 mm | D246: un | E246: 0.2272727 | F246: Sinapi 74220/1 | G246: 20.16 | H246: Sinapi 1351 | I246: 4.58
C247: PONTALETE DE MADEIRA NAO APARELHADA *7,5 X 7,5* CM (3 X 3 ") PINUS, MISTA OU EQUIVALENTE DA REGIAO | D247: m | E247: 1.58 | F247: Sinapi 74220/1 | G247: 3.29 | H247: Sinapi 4491 | I247: 5.2
C248: Prego de aco polido com cabeca 18 x 27 (2 1/2 x 10) | D248: kg | E248: 0.15 | F248: Sinapi 74220/1 | G248: 8.96 | H248: Sinapi 5061 | I248: 1.34
C249: Oleo de linhaca | D249: l | E249: 0.022 | F249: Sinapi 74220/1 | G249: 14.66 | H249: Sinapi 5333 | I249: 0.32
A251: SF-00073 | B251: Limpeza final de obra | D251: m2 | F251: ORSE 02450 Adaptada
C253: Servente com Encargos Complementares | D253: h | E253: 0.1 | F253: ORSE 02450 | G253: 14.21 | H253: Sinapi 88316 | I253: 1.42 | J253: =SUM(I253:I255) -> 2.13
C254: Sabao em po | D254: m | E254: 0.005 | F254: ORSE 02450 | G254: 5.41 | H254: Sinapi 16 | I254: 0.03
C255: Vassoura 40 cm com cabo | D255: un | E255: 0.05 | F255: ORSE 02450 | G255: 13.61 | H255: Sinapi 38400 | I255: 0.68
A257: SF-00074 | B257: Abertura/fechamento rasgo em alvenaria | D257: m | F257: Sinapi 90447 + Sinapi 90466
C259: Auxiliar de eletricista com encargos complementares | D259: h | E259: 0.034 | F259: Sinapi 90447 | G259: 15.22 | H259: Sinapi 88247 | I259: 0.52 | J259: =SUM(I259:I263) -> 14.19
C260: Eletricista com encargos complementares | D260: h | E260: 0.216 | F260: Sinapi 90447 | G260: 19.55 | H260: Sinapi 88264 | I260: 4.22
C261: Auxiliar de encanador ou bombeiro hidráulico com encargos complementares | D261: h | E261: 0.055 | F261: Sinapi 90466 | G261: 14.78 | H261: Sinapi 88248 | I261: 0.81
C262: Encanador ou Bombeiro Hidráulico com Encargos Complementares | D262: h | E262: 0.391 | F262: Sinapi 90466 | G262: 18.95 | H262: Sinapi 88267 | I262: =IF(ISNUMBER(G262),ROUND(E262*G262,2),"") -> 7.41
C263: Argamassa traço 1:3 (cimento e areia média), preparo manual. AF_08/2014 | D263: m3 | E263: 0.003 | F263: Sinapi 90466 | G263: 409.51 | H263: Sinapi 88629 | I263: 1.23
A265: SF-00075 | B265: Furo em concreto de até 75mm de diâmetro | D265: un | F265: Sinapi 90440
C267: Martelete ou rompedor pneumático manual, 28 kg, com silenciador - CHP diurno. AF_07/2016 | D267: chp | E267: 0.587 | F267: Sinapi 90440 | G267: 17.33 | H267: Sinapi 5795 | I267: 10.17 | J267: =SUM(I267:I270) -> 71.14
C268: Martelete ou rompedor pneumático manual, 28 kg, com silenciador - CHI diurno. AF_07/2016 | D268: chi | E268: 1.29 | F268: Sinapi 90440 | G268: 16.33 | H268: Sinapi 5952 | I268: 21.07
C269: Auxiliar de encanador ou bombeiro hidráulico com encargos complementares | D269: h | E269: 0.293 | F269: Sinapi 90440 | G269: 14.78 | H269: Sinapi 88248 | I269: 4.33
C270: Encanador ou Bombeiro Hidráulico com Encargos Complementares | D270: h | E270: 1.877 | F270: Sinapi 90440 | G270: 18.95 | H270: Sinapi 88267 | I270: 35.57
A272: SF-00076 | B272: Furo em concreto para diâmetros maiores que 75mm | D272: un | F272: Sinapi 90441
C274: Martelete ou rompedor pneumático manual, 28 kg, com silenciador - CHP diurno. AF_07/2016 | D274: chp | E274: 0.75 | F274: Sinapi 90441 | G274: 17.33 | H274: Sinapi 5795 | I274: 13 | J274: =SUM(I274:I277) -> 90.86
C275: Martelete ou rompedor pneumático manual, 28 kg, com silenciador - CHI diurno. AF_07/2016 | D275: chi | E275: 1.647 | F275: Sinapi 90441 | G275: 16.33 | H275: Sinapi 5952 | I275: 26.9
C276: Auxiliar de encanador ou bombeiro hidráulico com encargos complementares | D276: h | E276: 0.375 | F276: Sinapi 90441 | G276: 14.78 | H276: Sinapi 88248 | I276: 5.54
C277: Encanador ou Bombeiro Hidráulico com Encargos Complementares | D277: h | E277: 2.397 | F277: Sinapi 90441 | G277: 18.95 | H277: Sinapi 88267 | I277: 45.42
A279: SF-00077 | B279: Concreto virado em betoneira, fck = 15 MPa | D279: m3 | F279: Sinapi 92873 + Sinapi 94963
C281: LANÇAMENTO COM USO DE BALDES, ADENSAMENTO E ACABAMENTO DE CONCRETO EM ESTRUTURAS. AF_12/2015 | D281: m3 | E281: 1 | F281: Sinapi 92873 | G281: 150.87 | H281: Sinapi 92873 | I281: 150.87 | J281: =SUM(I281:I288) -> 414.28
C282: Areia media - posto jazida/fornecedor (retirado na jazida, sem transporte) | D282: m3 | E282: 0.805 | F282: Sinapi 94963 | G282: 80.84 | H282: Sinapi 370 | I282: 65.08
C283: Cimento Portland composto CP II-32 | D283: kg | E283: 273.06 | F283: Sinapi 94963 | G283: 0.37 | H283: Sinapi 1379 | I283: 101.03
C284: Pedra britada n. 1 (9,5 a 19 mm) posto pedreira/fornecedor, sem frete | D284: m3 | E284: 0.579 | F284: Sinapi 94963 | G284: 72.51 | H284: Sinapi 4721 | I284: 41.98
C285: Operador de betoneira estacionária/misturador com encargos complementares | D285: h | E285: 1.47 | F285: Sinapi 94963 | G285: 14.41 | H285: Sinapi 88377 | I285: 21.18
C286: Servente com Encargos Complementares | D286: h | E286: 2.33 | F286: Sinapi 94963 | G286: 14.21 | H286: Sinapi 88316 | I286: 33.11
C287: BETONEIRA CAPACIDADE NOMINAL DE 400 L, CAPACIDADE DE MISTURA 280 L, MOTOR ELÉTRICO TRIFÁSICO POTÊNCIA DE 2 CV, SEM CARREGADOR - CHP DIURNO. AF_10/2014 | D287: chp | E287: 0.76 | F287: Sinapi 94963 | G287: 1.14 | H287: Sinapi 88830 | I287: 0.87
C288: BETONEIRA CAPACIDADE NOMINAL DE 400 L, CAPACIDADE DE MISTURA 280 L, MOTOR ELÉTRICO TRIFÁSICO POTÊNCIA DE 2 CV, SEM CARREGADOR - CHI DIURNO. AF_10/2014 | D288: chi | E288: 0.71 | F288: Sinapi 94963 | G288: 0.23 | H288: Sinapi 88831 | I288: 0.16
A291: SF-00078 | B291: Concreto virado em betoneira, fck = 25MPa | D291: m3 | F291: Sinapi 92873 + Sinapi 94965
C293: LANÇAMENTO COM USO DE BALDES, ADENSAMENTO E ACABAMENTO DE CONCRETO EM ESTRUTURAS. AF_12/2015 | D293: m3 | E293: 1 | F293: Sinapi 92873 | G293: 150.87 | H293: Sinapi 92873 | I293: 150.87 | J293: =SUM(I293:I300) -> 441.39
C294: Areia media - posto jazida/fornecedor (retirado na jazida, sem transporte) | D294: m3 | E294: 0.723 | F294: Sinapi 94965 | G294: 80.84 | H294: Sinapi 370 | I294: 58.45
C295: Cimento Portland composto CP II-32 | D295: kg | E295: 362.66 | F295: Sinapi 94965 | G295: 0.37 | H295: Sinapi 1379 | I295: 134.18
C296: Pedra britada n. 1 (9,5 a 19 mm) posto pedreira/fornecedor, sem frete | D296: m3 | E296: 0.593 | F296: Sinapi 94965 | G296: 72.51 | H296: Sinapi 4721 | I296: 43
C297: Servente com Encargos Complementares | D297: h | E297: =2.31 -> 2.31 | F297: Sinapi 94965 | G297: 14.21 | H297: Sinapi 88316 | I297: 32.83
C298: Operador de betoneira estacionária/misturador com encargos complementares | D298: h | E298: 1.46 | F298: Sinapi 94965 | G298: 14.41 | H298: Sinapi 88377 | I298: 21.04
C299: BETONEIRA CAPACIDADE NOMINAL DE 400 L, CAPACIDADE DE MISTURA 280 L, MOTOR ELÉTRICO TRIFÁSICO POTÊNCIA DE 2 CV, SEM CARREGADOR - CHP DIURNO. AF_10/2014 | D299: chp | E299: 0.75 | F299: Sinapi 94965 | G299: 1.14 | H299: Sinapi 88830 | I299: 0.86
C300: BETONEIRA CAPACIDADE NOMINAL DE 400 L, CAPACIDADE DE MISTURA 280 L, MOTOR ELÉTRICO TRIFÁSICO POTÊNCIA DE 2 CV, SEM CARREGADOR - CHI DIURNO. AF_10/2014 | D300: chi | E300: 0.71 | F300: Sinapi 94965 | G300: 0.23 | H300: Sinapi 88831 | I300: 0.16
A302: SF-00079 | B302: Escoramento metálico | D302: m2 x mês | F302: Pini 05.103.000060.SER
C304: Escora metálica comprimento regulável 2 a 3,2m | D304: loc/un/mês | E304: 0.85 | F304: Pini 05.103.000060.SER | G304: 8.31 | H304: Pini 05.103.000060.EQL | I304: 7.06 | J304: =SUM(I304:I305) -> 7.06
A306: SF-00080 | B306: Estrutura metálica em aço | D306: kg | F306: SCO/RJ ET 25.05.0180 (B) Adaptada
C308: Acetileno, em garrafas de 9Kg | D308: kg | E308: 0.01 | F308: SCO/RJ ET 25.05.0180 (B) | G308: 31.39 | H308: SCO/RJ ET 25.05.0180 (B) | I308: 0.31 | J308: =SUM(I308:I319) -> 14.11
C309: Cantoneira de aco, com abas iguais, de: (2"x3/8") | D309: kg | E309: 0.27 | F309: SCO/RJ ET 25.05.0180 (B) | G309: 3.93 | H309: SCO/RJ ET 25.05.0180 (B) | I309: 1.06
C310: Chapa de aco USI-SAC 350, de (2,44x6)m, com espessura de 1/2" | D310: kg | E310: 0.33 | F310: SCO/RJ ET 25.05.0180 (B) | G310: 4.69 | H310: SCO/RJ ET 25.05.0180 (B) | I310: 1.55
C311: Eletrodo com diametro de 5mm (3/16"), E-7018-6 G | D311: kg | E311: 0.025 | F311: SCO/RJ ET 25.05.0180 (B) | G311: 15.15 | H311: SCO/RJ ET 25.05.0180 (B) | I311: 0.38
C312: Oxigenio, em garrafas de 9,3 m3 | D312: m3 | E312: 0.05 | F312: SCO/RJ ET 25.05.0180 (B) | G312: 6.3 | H312: SCO/RJ ET 25.05.0180 (B) | I312: 0.32
C313: Perfil "H" de aco carbono, padrao americano, de (6"x6") | D313: kg | E313: 0.4 | F313: SCO/RJ ET 25.05.0180 (B) | G313: 4.68 | H313: SCO/RJ ET 25.05.0180 (B) | I313: 1.87
C314: Montador de estrutura metálica com encargos complementares | D314: h | E314: =0.2+0.2 -> 0.4 | F314: SCO/RJ ET 25.05.0180 (B) | G314: 14.73 | H314: Sinapi 88278 | I314: 5.89
... 1515 more rows

Sheet Composições Auxiliares
A1: SENADO FEDERAL | B1: =Composições!C1 -> Ata de Registro de Preços para Reformas no SF - 2019/2020
A2: SECRETARIA DE INFRAESTRUTURA | B2: COMPOSIÇÕES AUXILIARES
A3: SERVIÇO DE ORÇAMENTOS | B3: =Composições!C3 -> Data: Julho de 2019 (data-base: Sinapi jun/2019, Pini jun/2019)
A5: Discriminação | C5: Especificação do Serviço | D5: Unidade | E5: Coeficiente | F5: Fonte do Coeficiente | G5: Preço unitário | H5: Fonte do Preço | I5: Preço | J5: Total
A6: Argamassa traço 1:3 (cimento e areia média), preparo manual. AF_08/2014 | D6: M3 | F6: Sinapi 88629 + Sinapi 97914 | I6: =IF(ISNUMBER(G6),ROUND(G6*$E6,2),"") -> 
I7: =IF(ISNUMBER(G7),ROUND(G7*$E7,2),"") -> 
B8: =IF(RIGHT(C8,27)="com encargos complementares","MO",IF(ISNUMBER(INDEX(#REF!,MATCH(H8,#REF!,0),7)),"I",IF(ISNUMBER(INDEX(#REF!,MATCH(H8,#REF!,0),8)),"C",IF(ISTEXT(H8),"I","")))) -> I | C8: Areia media - posto jazida/fornecedor (retirado na jazida, sem transporte) | D8: M3 | E8: 1.15 | F8: Sinapi 88629 | G8: 80.84 | H8: Sinapi 370 | I8: 92.97 | J8: =SUM(I8:I11) -> 409.95
B9: =IF(RIGHT(C9,27)="com encargos complementares","MO",IF(ISNUMBER(INDEX(#REF!,MATCH(H9,#REF!,0),7)),"I",IF(ISNUMBER(INDEX(#REF!,MATCH(H9,#REF!,0),8)),"C",IF(ISTEXT(H9),"I","")))) -> I | C9: Cimento Portland composto CP II-32 | D9: KG | E9: 441.51 | F9: Sinapi 88629 | G9: 0.37 | H9: Sinapi 1379 | I9: 163.36
B10: =IF(RIGHT(C10,27)="com encargos complementares","MO",IF(ISNUMBER(INDEX(#REF!,MATCH(H10,#REF!,0),7)),"I",IF(ISNUMBER(INDEX(#REF!,MATCH(H10,#REF!,0),8)),"C",IF(ISTEXT(H10),"I","")))) -> MO | C10: Servente com encargos complementares | D10: H | E10: 8.48 | F10: Sinapi 88629 | G10: 14.21 | H10: Sinapi 88316 | I10: 120.5
C11: TRANSPORTE COM CAMINHÃO BASCULANTE DE 6 M3, EM VIA URBANA PAVIMENTADA, DMT ATÉ 30 KM (UNIDADE: M3XKM). AF_01/2018 | D11: m3xkm | E11: =1.15*20 -> 23 | F11: Sinapi 97914 | G11: 1.44 | H11: Sinapi 97914 | I11: 33.12
C13: Obs.: Considerando fornecedor de areia a 20 km do Senado Federal.
B14: =IF(RIGHT(C14,27)="com encargos complementares","MO",IF(ISNUMBER(INDEX(#REF!,MATCH(H14,#REF!,0),7)),"I",IF(ISNUMBER(INDEX(#REF!,MATCH(H14,#REF!,0),8)),"C",IF(ISTEXT(H14),"I","")))) -> 
A15: Fixação utilizando parafuso e bucha de nylon, somente mão de obra. af_10/2016 | B15: =IF(RIGHT(C15,27)="com encargos complementares","MO",IF(ISNUMBER(INDEX(#REF!,MATCH(H15,#REF!,0),7)),"I",IF(ISNUMBER(INDEX(#REF!,MATCH(H15,#REF!,0),8)),"C",IF(ISTEXT(H15),"I","")))) ->  | D15: UN. | F15: =F17 -> Sinapi 95541
B16: =IF(RIGHT(C16,27)="com encargos complementares","MO",IF(ISNUMBER(INDEX(#REF!,MATCH(H16,#REF!,0),7)),"I",IF(ISNUMBER(INDEX(#REF!,MATCH(H16,#REF!,0),8)),"C",IF(ISTEXT(H16),"I","")))) -> 
B17: =IF(RIGHT(C17,27)="com encargos complementares","MO",IF(ISNUMBER(INDEX(#REF!,MATCH(H17,#REF!,0),7)),"I",IF(ISNUMBER(INDEX(#REF!,MATCH(H17,#REF!,0),8)),"C",IF(ISTEXT(H17),"I","")))) -> MO | C17: Auxiliar de encanador ou bombeiro hidráulico com encargos complementares | D17: H | E17: 0.0227 | F17: Sinapi 95541 | G17: 14.78 | H17: Sinapi 88248 | I17: 0.34 | J17: =SUM(I17:I18) -> 3.41
B18: =IF(RIGHT(C18,27)="com encargos complementares","MO",IF(ISNUMBER(INDEX(#REF!,MATCH(H18,#REF!,0),7)),"I",IF(ISNUMBER(INDEX(#REF!,MATCH(H18,#REF!,0),8)),"C",IF(ISTEXT(H18),"I","")))) -> MO | C18: Encanador ou bombeiro hidráulico com encargos complementares | D18: H | E18: 0.1621 | F18: Sinapi 95541 | G18: 18.95 | H18: Sinapi 88267 | I18: 3.07
B19: =IF(RIGHT(C19,27)="com encargos complementares","MO",IF(ISNUMBER(INDEX(#REF!,MATCH(H19,#REF!,0),7)),"I",IF(ISNUMBER(INDEX(#REF!,MATCH(H19,#REF!,0),8)),"C",IF(ISTEXT(H19),"I","")))) -> 
A20: Fixação de tubos horizontais de PVC, CPVC ou cobre diâmetros menores ou iguais a 40 mm ou eletrocalhas até 150mm de largura, com abraçadeira metálica rígida tipo d 1/2, fixada em perfilado em laje. af_05/2015 | B20: =IF(RIGHT(C20,27)="com encargos complementares","MO",IF(ISNUMBER(INDEX(#REF!,MATCH(H20,#REF!,0),7)),"I",IF(ISNUMBER(INDEX(#REF!,MATCH(H20,#REF!,0),8)),"C",IF(ISTEXT(H20),"I","")))) ->  | D20: UN. | F20: =F22 -> Sinapi 91170
B21: =IF(RIGHT(C21,27)="com encargos complementares","MO",IF(ISNUMBER(INDEX(#REF!,MATCH(H21,#REF!,0),7)),"I",IF(ISNUMBER(INDEX(#REF!,MATCH(H21,#REF!,0),8)),"C",IF(ISTEXT(H21),"I","")))) -> 
B22: =IF(RIGHT(C22,27)="com encargos complementares","MO",IF(ISNUMBER(INDEX(#REF!,MATCH(H22,#REF!,0),7)),"I",IF(ISNUMBER(INDEX(#REF!,MATCH(H22,#REF!,0),8)),"C",IF(ISTEXT(H22),"I","")))) -> I | C22: Abracadeira em aco para amarracao de eletrodutos, tipo D, com 1/2" e parafuso de fixacao | D22: UN | E22: 0.65 | F22: Sinapi 91170 | G22: 0.9 | H22: Sinapi 392 | I22: 0.59 | J22: =SUM(I22:I24) -> 2.05
B23: =IF(RIGHT(C23,27)="com encargos complementares","MO",IF(ISNUMBER(INDEX(#REF!,MATCH(H23,#REF!,0),7)),"I",IF(ISNUMBER(INDEX(#REF!,MATCH(H23,#REF!,0),8)),"C",IF(ISTEXT(H23),"I","")))) -> MO | C23: Auxiliar de encanador ou bombeiro hidráulico com encargos complementares | D23: H | E23: 0.01 | F23: Sinapi 91170 | G23: 14.78 | H23: Sinapi 88248 | I23: 0.15
B24: =IF(RIGHT(C24,27)="com encargos complementares","MO",IF(ISNUMBER(INDEX(#REF!,MATCH(H24,#REF!,0),7)),"I",IF(ISNUMBER(INDEX(#REF!,MATCH(H24,#REF!,0),8)),"C",IF(ISTEXT(H24),"I","")))) -> MO | C24: Encanador ou bombeiro hidráulico com encargos complementares | D24: H | E24: 0.069 | F24: Sinapi 91170 | G24: 18.95 | H24: Sinapi 88267 | I24: 1.31
B25: =IF(RIGHT(C25,27)="com encargos complementares","MO",IF(ISNUMBER(INDEX(#REF!,MATCH(H25,#REF!,0),7)),"I",IF(ISNUMBER(INDEX(#REF!,MATCH(H25,#REF!,0),8)),"C",IF(ISTEXT(H25),"I","")))) -> 
A26: Fabricação de fôrma para vigas, em chapa de madeira compensada resinada, E = 17 mm. AF_12/2015 | B26: =IF(RIGHT(C26,27)="com encargos complementares","MO",IF(ISNUMBER(INDEX(#REF!,MATCH(H26,#REF!,0),7)),"I",IF(ISNUMBER(INDEX(#REF!,MATCH(H26,#REF!,0),8)),"C",IF(ISTEXT(H26),"I","")))) ->  | D26: M2 | F26: =F28 -> Sinapi 92265
B27: =IF(RIGHT(C27,27)="com encargos complementares","MO",IF(ISNUMBER(INDEX(#REF!,MATCH(H27,#REF!,0),7)),"I",IF(ISNUMBER(INDEX(#REF!,MATCH(H27,#REF!,0),8)),"C",IF(ISTEXT(H27),"I","")))) -> 
B28: =IF(RIGHT(C28,27)="com encargos complementares","MO",IF(ISNUMBER(INDEX(#REF!,MATCH(H28,#REF!,0),7)),"I",IF(ISNUMBER(INDEX(#REF!,MATCH(H28,#REF!,0),8)),"C",IF(ISTEXT(H28),"I","")))) -> I | C28: Chapa de madeira compensada resinada para forma de concreto, de *2,2 x 1,1* m, e = 17 mm | D28: M2 | E28: 1.19 | F28: Sinapi 92265 | G28: 21.59 | H28: Sinapi 1358 | I28: 25.69 | J28: =SUM(I28:I35) -> 65.14
B29: =IF(RIGHT(C29,27)="com encargos complementares","MO",IF(ISNUMBER(INDEX(#REF!,MATCH(H29,#REF!,0),7)),"I",IF(ISNUMBER(INDEX(#REF!,MATCH(H29,#REF!,0),8)),"C",IF(ISTEXT(H29),"I","")))) -> I | C29: PONTALETE DE MADEIRA NAO APARELHADA *7,5 X 7,5* CM (3 X 3 ") PINUS, MISTA OU EQUIVALENTE DA REGIAO | D29: M | E29: 0.162 | F29: Sinapi 92265 | G29: 3.29 | H29: Sinapi 4491 | I29: 0.53
B30: =IF(RIGHT(C30,27)="com encargos complementares","MO",IF(ISNUMBER(INDEX(#REF!,MATCH(H30,#REF!,0),7)),"I",IF(ISNUMBER(INDEX(#REF!,MATCH(H30,#REF!,0),8)),"C",IF(ISTEXT(H30),"I","")))) -> I | C30: SARRAFO DE MADEIRA NAO APARELHADA *2,5 X 7,5* CM (1 X 3 ") PINUS, MISTA OU EQUIVALENTE DA REGIAO | D30: M | E30: 7.734 | F30: Sinapi 92265 | G30: 1.18 | H30: Sinapi 4517 | I30: 9.13
B31: =IF(RIGHT(C31,27)="com encargos complementares","MO",IF(ISNUMBER(INDEX(#REF!,MATCH(H31,#REF!,0),7)),"I",IF(ISNUMBER(INDEX(#REF!,MATCH(H31,#REF!,0),8)),"C",IF(ISTEXT(H31),"I","")))) -> I | C31: Prego de aco polido com cabeca 17 x 21 (2 x 11) | D31: KG | E31: 0.155 | F31: Sinapi 92265 | G31: 9.11 | H31: Sinapi 5068 | I31: 1.41
B32: =IF(RIGHT(C32,27)="com encargos complementares","MO",IF(ISNUMBER(INDEX(#REF!,MATCH(H32,#REF!,0),7)),"I",IF(ISNUMBER(INDEX(#REF!,MATCH(H32,#REF!,0),8)),"C",IF(ISTEXT(H32),"I","")))) -> MO | C32: Ajudante de carpinteiro com encargos complementares | D32: H | E32: 0.222 | F32: Sinapi 92265 | G32: 16.17 | H32: Sinapi 88239 | I32: 3.59
B33: =IF(RIGHT(C33,27)="com encargos complementares","MO",IF(ISNUMBER(INDEX(#REF!,MATCH(H33,#REF!,0),7)),"I",IF(ISNUMBER(INDEX(#REF!,MATCH(H33,#REF!,0),8)),"C",IF(ISTEXT(H33),"I","")))) -> MO | C33: Carpinteiro de formas com encargos complementares | D33: H | E33: 1.111 | F33: Sinapi 92265 | G33: 19.18 | H33: Sinapi 88262 | I33: 21.31
B34: =IF(RIGHT(C34,27)="com encargos complementares","MO",IF(ISNUMBER(INDEX(#REF!,MATCH(H34,#REF!,0),7)),"I",IF(ISNUMBER(INDEX(#REF!,MATCH(H34,#REF!,0),8)),"C",IF(ISTEXT(H34),"I","")))) -> I | C34: Serra circular de bancada com motor elétrico potência de 5HP, com coifa para disco 10" - CHP diurno. af_08/2015 | D34: CHP | E34: 0.054 | F34: Sinapi 92265 | G34: 17.04 | H34: Sinapi 91692 | I34: 0.92
B35: =IF(RIGHT(C35,27)="com encargos complementares","MO",IF(ISNUMBER(INDEX(#REF!,MATCH(H35,#REF!,0),7)),"I",IF(ISNUMBER(INDEX(#REF!,MATCH(H35,#REF!,0),8)),"C",IF(ISTEXT(H35),"I","")))) -> I | C35: Serra circular de bancada com motor elétrico potência de 5HP, com coifa para disco 10" - CHI diurno. af_08/2015 | D35: CHI | E35: 0.169 | F35: Sinapi 92265 | G35: 15.15 | H35: Sinapi 91693 | I35: 2.56
B36: =IF(RIGHT(C36,27)="com encargos complementares","MO",IF(ISNUMBER(INDEX(#REF!,MATCH(H36,#REF!,0),7)),"I",IF(ISNUMBER(INDEX(#REF!,MATCH(H36,#REF!,0),8)),"C",IF(ISTEXT(H36),"I","")))) -> 
A37: Fabricação de escoras de viga do tipo garfo, em madeira. af_12/2015 | B37: =IF(RIGHT(C37,27)="com encargos complementares","MO",IF(ISNUMBER(INDEX(#REF!,MATCH(H37,#REF!,0),7)),"I",IF(ISNUMBER(INDEX(#REF!,MATCH(H37,#REF!,0),8)),"C",IF(ISTEXT(H37),"I","")))) ->  | D37: M | F37: =F39 -> Sinapi 92272
B38: =IF(RIGHT(C38,27)="com encargos complementares","MO",IF(ISNUMBER(INDEX(#REF!,MATCH(H38,#REF!,0),7)),"I",IF(ISNUMBER(INDEX(#REF!,MATCH(H38,#REF!,0),8)),"C",IF(ISTEXT(H38),"I","")))) -> 
B39: =IF(RIGHT(C39,27)="com encargos complementares","MO",IF(ISNUMBER(INDEX(#REF!,MATCH(H39,#REF!,0),7)),"I",IF(ISNUMBER(INDEX(#REF!,MATCH(H39,#REF!,0),8)),"C",IF(ISTEXT(H39),"I","")))) -> I | C39: Chapa de madeira compensada plastificada para forma de concreto, de 2,20 x 1,10 m, e = 18 mm | D39: M2 | E39: 0.126 | F39: Sinapi 92272 | G39: 33.78 | H39: Sinapi 1345 | I39: 4.26 | J39: =SUM(I39:I45) -> 16.28
B40: =IF(RIGHT(C40,27)="com encargos complementares","MO",IF(ISNUMBER(INDEX(#REF!,MATCH(H40,#REF!,0),7)),"I",IF(ISNUMBER(INDEX(#REF!,MATCH(H40,#REF!,0),8)),"C",IF(ISTEXT(H40),"I","")))) -> I | C40: PONTALETE DE MADEIRA NAO APARELHADA *7,5 X 7,5* CM (3 X 3 ") PINUS, MISTA OU EQUIVALENTE DA REGIAO | D40: M | E40: 2.27 | F40: Sinapi 92272 | G40: 3.29 | H40: Sinapi 4491 | I40: 7.47
B41: =IF(RIGHT(C41,27)="com encargos complementares","MO",IF(ISNUMBER(INDEX(#REF!,MATCH(H41,#REF!,0),7)),"I",IF(ISNUMBER(INDEX(#REF!,MATCH(H41,#REF!,0),8)),"C",IF(ISTEXT(H41),"I","")))) -> I | C41: Prego de aco polido com cabeca 17 x 21 (2 x 11) | D41: KG | E41: 0.017 | F41: Sinapi 92272 | G41: 9.11 | H41: Sinapi 5068 | I41: 0.15
B42: =IF(RIGHT(C42,27)="com encargos complementares","MO",IF(ISNUMBER(INDEX(#REF!,MATCH(H42,#REF!,0),7)),"I",IF(ISNUMBER(INDEX(#REF!,MATCH(H42,#REF!,0),8)),"C",IF(ISTEXT(H42),"I","")))) -> MO | C42: Ajudante de carpinteiro com encargos complementares | D42: H | E42: 0.034 | F42: Sinapi 92272 | G42: 16.17 | H42: Sinapi 88239 | I42: 0.55
B43: =IF(RIGHT(C43,27)="com encargos complementares","MO",IF(ISNUMBER(INDEX(#REF!,MATCH(H43,#REF!,0),7)),"I",IF(ISNUMBER(INDEX(#REF!,MATCH(H43,#REF!,0),8)),"C",IF(ISTEXT(H43),"I","")))) -> MO | C43: Carpinteiro de formas com encargos complementares | D43: H | E43: 0.172 | F43: Sinapi 92272 | G43: 19.18 | H43: Sinapi 88262 | I43: 3.3
B44: =IF(RIGHT(C44,27)="com encargos complementares","MO",IF(ISNUMBER(INDEX(#REF!,MATCH(H44,#REF!,0),7)),"I",IF(ISNUMBER(INDEX(#REF!,MATCH(H44,#REF!,0),8)),"C",IF(ISTEXT(H44),"I","")))) -> I | C44: Serra circular de bancada com motor elétrico potência de 5HP, com coifa para disco 10" - CHP diurno. af_08/2015 | D44: CHP | E44: 0.02 | F44: Sinapi 92272 | G44: 17.04 | H44: Sinapi 91692 | I44: 0.34
B45: =IF(RIGHT(C45,27)="com encargos complementares","MO",IF(ISNUMBER(INDEX(#REF!,MATCH(H45,#REF!,0),7)),"I",IF(ISNUMBER(INDEX(#REF!,MATCH(H45,#REF!,0),8)),"C",IF(ISTEXT(H45),"I","")))) -> I | C45: Serra circular de bancada com motor elétrico potência de 5HP, com coifa para disco 10" - CHI diurno. af_08/2015 | D45: CHI | E45: 0.014 | F45: Sinapi 92272 | G45: 15.15 | H45: Sinapi 91693 | I45: 0.21
B46: =IF(RIGHT(C46,27)="com encargos complementares","MO",IF(ISNUMBER(INDEX(#REF!,MATCH(H46,#REF!,0),7)),"I",IF(ISNUMBER(INDEX(#REF!,MATCH(H46,#REF!,0),8)),"C",IF(ISTEXT(H46),"I","")))) -> 
A47: Argamassa Traço 1:2:8 (Cimento, Cal E Areia Média) Para Emboço/Massa Única/Assentamento De Alvenaria De Vedação, Preparo Mecânico Com Betoneira 400 L. Af_06/2014 | B47: =IF(RIGHT(C47,27)="com encargos complementares","MO",IF(ISNUMBER(INDEX(#REF!,MATCH(H47,#REF!,0),7)),"I",IF(ISNUMBER(INDEX(#REF!,MATCH(H47,#REF!,0),8)),"C",IF(ISTEXT(H47),"I","")))) ->  | D47: M3 | F47: Sinapi 87292 + Sinapi 97914
B48: =IF(RIGHT(C48,27)="com encargos complementares","MO",IF(ISNUMBER(INDEX(#REF!,MATCH(H48,#REF!,0),7)),"I",IF(ISNUMBER(INDEX(#REF!,MATCH(H48,#REF!,0),8)),"C",IF(ISTEXT(H48),"I","")))) -> 
B49: =IF(RIGHT(C49,27)="com encargos complementares","MO",IF(ISNUMBER(INDEX(#REF!,MATCH(H49,#REF!,0),7)),"I",IF(ISNUMBER(INDEX(#REF!,MATCH(H49,#REF!,0),8)),"C",IF(ISTEXT(H49),"I","")))) -> I | C49: Areia media - posto jazida/fornecedor (retirado na jazida, sem transporte) | D49: M3 | E49: 1.29 | F49: Sinapi 87292 | G49: 80.84 | H49: Sinapi 370 | I49: 104.28 | J49: =SUM(I49:I55) -> 400.76
B50: =IF(RIGHT(C50,27)="com encargos complementares","MO",IF(ISNUMBER(INDEX(#REF!,MATCH(H50,#REF!,0),7)),"I",IF(ISNUMBER(INDEX(#REF!,MATCH(H50,#REF!,0),8)),"C",IF(ISTEXT(H50),"I","")))) -> I | C50: Cal hidratada CH-I para argamassas | D50: KG | E50: 193.7 | F50: Sinapi 87292 | G50: 0.62 | H50: Sinapi 1106 | I50: 120.09
B51: =IF(RIGHT(C51,27)="com encargos complementares","MO",IF(ISNUMBER(INDEX(#REF!,MATCH(H51,#REF!,0),7)),"I",IF(ISNUMBER(INDEX(#REF!,MATCH(H51,#REF!,0),8)),"C",IF(ISTEXT(H51),"I","")))) -> I | C51: Cimento Portland composto CP II-32 | D51: KG | E51: 185.63 | F51: Sinapi 87292 | G51: 0.37 | H51: Sinapi 1379 | I51: 68.68
B52: =IF(RIGHT(C52,27)="com encargos complementares","MO",IF(ISNUMBER(INDEX(#REF!,MATCH(H52,#REF!,0),7)),"I",IF(ISNUMBER(INDEX(#REF!,MATCH(H52,#REF!,0),8)),"C",IF(ISTEXT(H52),"I","")))) -> MO | C52: Operador de betoneira estacionária/misturador com encargos complementares | D52: H | E52: 4.75 | F52: Sinapi 87292 | G52: 14.41 | H52: Sinapi 88377 | I52: 68.45
B53: =IF(RIGHT(C53,27)="com encargos complementares","MO",IF(ISNUMBER(INDEX(#REF!,MATCH(H53,#REF!,0),7)),"I",IF(ISNUMBER(INDEX(#REF!,MATCH(H53,#REF!,0),8)),"C",IF(ISTEXT(H53),"I","")))) -> I | C53: Betoneira capacidade nominal de 400 L, capacidade de mistura 280 L, motor elétrico trifásico potência de 2 cv, sem carregador - CHP diurno. af_10/2014 | D53: CHP | E53: 1.11 | F53: Sinapi 87292 | G53: 1.14 | H53: Sinapi 88830 | I53: 1.27
B54: =IF(RIGHT(C54,27)="com encargos complementares","MO",IF(ISNUMBER(INDEX(#REF!,MATCH(H54,#REF!,0),7)),"I",IF(ISNUMBER(INDEX(#REF!,MATCH(H54,#REF!,0),8)),"C",IF(ISTEXT(H54),"I","")))) -> I | C54: Betoneira capacidade nominal de 400 L, capacidade de mistura 280 L, motor elétrico trifásico potência de 2 cv, sem carregador - CHI diurno. af_10/2014 | D54: CHI | E54: 3.64 | F54: Sinapi 87292 | G54: 0.23 | H54: Sinapi 88831 | I54: 0.84
C55: TRANSPORTE COM CAMINHÃO BASCULANTE DE 6 M3, EM VIA URBANA PAVIMENTADA, DMT ATÉ 30 KM (UNIDADE: M3XKM). AF_01/2018 | D55: m3xkm | E55: =1.29*20 -> 25.8 | F55: Sinapi 97914 | G55: 1.44 | H55: Sinapi 97914 | I55: 37.15
C57: Obs.: Considerando fornecedor de areia a 20 km do Senado Federal.
B58: =IF(RIGHT(C58,27)="com encargos complementares","MO",IF(ISNUMBER(INDEX(#REF!,MATCH(H58,#REF!,0),7)),"I",IF(ISNUMBER(INDEX(#REF!,MATCH(H58,#REF!,0),8)),"C",IF(ISTEXT(H58),"I","")))) -> 
A59: Contrapiso em argamassa traço 1:4 (cimento e areia), preparo mecânico com betoneira 400 l, aplicado em áreas secas sobre laje, aderido, espessura 3cm. AF_06/2014 | B59: =IF(RIGHT(C59,27)="com encargos complementares","MO",IF(ISNUMBER(INDEX(#REF!,MATCH(H59,#REF!,0),7)),"I",IF(ISNUMBER(INDEX(#REF!,MATCH(H59,#REF!,0),8)),"C",IF(ISTEXT(H59),"I","")))) ->  | D59: M2 | F59: =F61 -> Sinapi 87630
B60: =IF(RIGHT(C60,27)="com encargos complementares","MO",IF(ISNUMBER(INDEX(#REF!,MATCH(H60,#REF!,0),7)),"I",IF(ISNUMBER(INDEX(#REF!,MATCH(H60,#REF!,0),8)),"C",IF(ISTEXT(H60),"I","")))) -> 
B61: =IF(RIGHT(C61,27)="com encargos complementares","MO",IF(ISNUMBER(INDEX(#REF!,MATCH(H61,#REF!,0),7)),"I",IF(ISNUMBER(INDEX(#REF!,MATCH(H61,#REF!,0),8)),"C",IF(ISTEXT(H61),"I","")))) -> I | C61: Cimento Portland composto CP II-32 | D61: KG | E61: 0.5 | F61: Sinapi 87630 | G61: 0.37 | H61: Sinapi 1379 | I61: 0.19 | J61: =SUM(I61:I65) -> 30.74
B62: =IF(RIGHT(C62,27)="com encargos complementares","MO",IF(ISNUMBER(INDEX(#REF!,MATCH(H62,#REF!,0),7)),"I",IF(ISNUMBER(INDEX(#REF!,MATCH(H62,#REF!,0),8)),"C",IF(ISTEXT(H62),"I","")))) -> I | C62: Aditivo adesivo liquido para argamassas de revestimentos cimenticios | D62: L | E62: 0.435 | F62: Sinapi 87630 | G62: 9.9 | H62: Sinapi 7334 | I62: 4.31
B63: =IF(RIGHT(C63,27)="com encargos complementares","MO",IF(ISNUMBER(INDEX(#REF!,MATCH(H63,#REF!,0),7)),"I",IF(ISNUMBER(INDEX(#REF!,MATCH(H63,#REF!,0),8)),"C",IF(ISTEXT(H63),"I","")))) -> I | C63: Argamassa traço 1:4 (cimento e areia média) para contrapiso, preparo mecânico com betoneira 400 L. af_06/2014 | D63: M3 | E63: 0.0431 | F63: Sinapi 87630 | G63: 406.59 | H63: Sinapi 87301 | I63: 17.52
B64: =IF(RIGHT(C64,27)="com encargos complementares","MO",IF(ISNUMBER(INDEX(#REF!,MATCH(H64,#REF!,0),7)),"I",IF(ISNUMBER(INDEX(#REF!,MATCH(H64,#REF!,0),8)),"C",IF(ISTEXT(H64),"I","")))) -> MO | C64: Pedreiro com encargos complementares | D64: H | E64: 0.33 | F64: Sinapi 87630 | G64: 19.32 | H64: Sinapi 88309 | I64: 6.38
B65: =IF(RIGHT(C65,27)="com encargos complementares","MO",IF(ISNUMBER(INDEX(#REF!,MATCH(H65,#REF!,0),7)),"I",IF(ISNUMBER(INDEX(#REF!,MATCH(H65,#REF!,0),8)),"C",IF(ISTEXT(H65),"I","")))) -> MO | C65: Servente com encargos complementares | D65: H | E65: 0.165 | F65: Sinapi 87630 | G65: 14.21 | H65: Sinapi 88316 | I65: 2.34
B66: =IF(RIGHT(C66,27)="com encargos complementares","MO",IF(ISNUMBER(INDEX(#REF!,MATCH(H66,#REF!,0),7)),"I",IF(ISNUMBER(INDEX(#REF!,MATCH(H66,#REF!,0),8)),"C",IF(ISTEXT(H66),"I","")))) -> 
A67: Reboco com argamassa pre-fabricada, espessura 0,5cm, preparo mecanico da argamassa | B67: =IF(RIGHT(C67,27)="com encargos complementares","MO",IF(ISNUMBER(INDEX(#REF!,MATCH(H67,#REF!,0),7)),"I",IF(ISNUMBER(INDEX(#REF!,MATCH(H67,#REF!,0),8)),"C",IF(ISTEXT(H67),"I","")))) ->  | D67: M2 | F67: =F69 -> Sinapi 84027
B68: =IF(RIGHT(C68,27)="com encargos complementares","MO",IF(ISNUMBER(INDEX(#REF!,MATCH(H68,#REF!,0),7)),"I",IF(ISNUMBER(INDEX(#REF!,MATCH(H68,#REF!,0),8)),"C",IF(ISTEXT(H68),"I","")))) -> 
B69: =IF(RIGHT(C69,27)="com encargos complementares","MO",IF(ISNUMBER(INDEX(#REF!,MATCH(H69,#REF!,0),7)),"I",IF(ISNUMBER(INDEX(#REF!,MATCH(H69,#REF!,0),8)),"C",IF(ISTEXT(H69),"I","")))) -> I | C69: Cimento Portland composto CP II-32 | D69: KG | E69: 1 | F69: Sinapi 84027 | G69: 0.37 | H69: Sinapi 1379 | I69: 0.37 | J69: =SUM(I69:I72) -> 29.25
B70: =IF(RIGHT(C70,27)="com encargos complementares","MO",IF(ISNUMBER(INDEX(#REF!,MATCH(H70,#REF!,0),7)),"I",IF(ISNUMBER(INDEX(#REF!,MATCH(H70,#REF!,0),8)),"C",IF(ISTEXT(H70),"I","")))) -> MO | C70: Pedreiro com encargos complementares | D70: H | E70: 0.8 | F70: Sinapi 84027 | G70: 19.32 | H70: Sinapi 88309 | I70: 15.46
B71: =IF(RIGHT(C71,27)="com encargos complementares","MO",IF(ISNUMBER(INDEX(#REF!,MATCH(H71,#REF!,0),7)),"I",IF(ISNUMBER(INDEX(#REF!,MATCH(H71,#REF!,0),8)),"C",IF(ISTEXT(H71),"I","")))) -> MO | C71: Servente com encargos complementares | D71: H | E71: 0.8 | F71: Sinapi 84027 | G71: 14.21 | H71: Sinapi 88316 | I71: =IF(ISNUMBER(G71),ROUND(G71*$E71,2),"") -> 11.37
B72: =IF(RIGHT(C72,27)="com encargos complementares","MO",IF(ISNUMBER(INDEX(#REF!,MATCH(H72,#REF!,0),7)),"I",IF(ISNUMBER(INDEX(#REF!,MATCH(H72,#REF!,0),8)),"C",IF(ISTEXT(H72),"I","")))) -> I | C72: Argamassa traço 1:3 (cimento e areia média), preparo manual. af_08/2014 | D72: M3 | E72: 0.005 | F72: Sinapi 84027 | G72: 409.51 | H72: Sinapi 88629 | I72: 2.05
B73: =IF(RIGHT(C73,27)="com encargos complementares","MO",IF(ISNUMBER(INDEX(#REF!,MATCH(H73,#REF!,0),7)),"I",IF(ISNUMBER(INDEX(#REF!,MATCH(H73,#REF!,0),8)),"C",IF(ISTEXT(H73),"I","")))) -> 
A74: Argamassa traço 1:3 (cimento e areia grossa) para chapisco convencional, preparo manual. AF_06/2014 | B74: =IF(RIGHT(C74,27)="com encargos complementares","MO",IF(ISNUMBER(INDEX(#REF!,MATCH(H74,#REF!,0),7)),"I",IF(ISNUMBER(INDEX(#REF!,MATCH(H74,#REF!,0),8)),"C",IF(ISTEXT(H74),"I","")))) ->  | D74: M3 | F74: Sinapi 87377 + Sinapi 97914
B75: =IF(RIGHT(C75,27)="com encargos complementares","MO",IF(ISNUMBER(INDEX(#REF!,MATCH(H75,#REF!,0),7)),"I",IF(ISNUMBER(INDEX(#REF!,MATCH(H75,#REF!,0),8)),"C",IF(ISTEXT(H75),"I","")))) -> 
B76: =IF(RIGHT(C76,27)="com encargos complementares","MO",IF(ISNUMBER(INDEX(#REF!,MATCH(H76,#REF!,0),7)),"I",IF(ISNUMBER(INDEX(#REF!,MATCH(H76,#REF!,0),8)),"C",IF(ISTEXT(H76),"I","")))) -> I | C76: Areia grossa - posto jazida/fornecedor (retirado na jazida, sem transporte) | D76: M3 | E76: 1.05 | F76: Sinapi 87377 | G76: 104.72 | H76: Sinapi 367 | I76: 109.96 | J76: =SUM(I76:I79) -> 443.35
B77: =IF(RIGHT(C77,27)="com encargos complementares","MO",IF(ISNUMBER(INDEX(#REF!,MATCH(H77,#REF!,0),7)),"I",IF(ISNUMBER(INDEX(#REF!,MATCH(H77,#REF!,0),8)),"C",IF(ISTEXT(H77),"I","")))) -> I | C77: Cimento Portland composto CP II-32 | D77: KG | E77: 401.09 | F77: Sinapi 87377 | G77: 0.37 | H77: Sinapi 1379 | I77: 148.4
B78: =IF(RIGHT(C78,27)="com encargos complementares","MO",IF(ISNUMBER(INDEX(#REF!,MATCH(H78,#REF!,0),7)),"I",IF(ISNUMBER(INDEX(#REF!,MATCH(H78,#REF!,0),8)),"C",IF(ISTEXT(H78),"I","")))) -> MO | C78: Servente com encargos complementares | D78: H | E78: 10.89 | F78: Sinapi 87377 | G78: 14.21 | H78: Sinapi 88316 | I78: 154.75
C79: TRANSPORTE COM CAMINHÃO BASCULANTE DE 6 M3, EM VIA URBANA PAVIMENTADA, DMT ATÉ 30 KM (UNIDADE: M3XKM). AF_01/2018 | D79: m3xkm | E79: =1.05*20 -> 21 | F79: Sinapi 97914 | G79: 1.44 | H79: Sinapi 97914 | I79: 30.24
C81: Obs.: Considerando fornecedor de areia a 20 km do Senado Federal.
B82: =IF(RIGHT(C82,27)="com encargos complementares","MO",IF(ISNUMBER(INDEX(#REF!,MATCH(H82,#REF!,0),7)),"I",IF(ISNUMBER(INDEX(#REF!,MATCH(H82,#REF!,0),8)),"C",IF(ISTEXT(H82),"I","")))) -> 
A83: Argamassa industrializada para chapisco colante, preparo com misturador de eixo horizontal de 300 kg. AF_06/2014 | B83: =IF(RIGHT(C83,27)="com encargos complementares","MO",IF(ISNUMBER(INDEX(#REF!,MATCH(H83,#REF!,0),7)),"I",IF(ISNUMBER(INDEX(#REF!,MATCH(H83,#REF!,0),8)),"C",IF(ISTEXT(H83),"I","")))) ->  | D83: M3 | F83: =F85 -> Sinapi 87396
B84: =IF(RIGHT(C84,27)="com encargos complementares","MO",IF(ISNUMBER(INDEX(#REF!,MATCH(H84,#REF!,0),7)),"I",IF(ISNUMBER(INDEX(#REF!,MATCH(H84,#REF!,0),8)),"C",IF(ISTEXT(H84),"I","")))) -> 
B85: =IF(RIGHT(C85,27)="com encargos complementares","MO",IF(ISNUMBER(INDEX(#REF!,MATCH(H85,#REF!,0),7)),"I",IF(ISNUMBER(INDEX(#REF!,MATCH(H85,#REF!,0),8)),"C",IF(ISTEXT(H85),"I","")))) -> I | C85: Argamassa industrializada para chapisco colante | D85: KG | E85: 1991.07 | F85: Sinapi 87396 | G85: 1.16 | H85: Sinapi 37553 | I85: 2309.64 | J85: =SUM(I85:I88) -> 2392.31
B86: =IF(RIGHT(C86,27)="com encargos complementares","MO",IF(ISNUMBER(INDEX(#REF!,MATCH(H86,#REF!,0),7)),"I",IF(ISNUMBER(INDEX(#REF!,MATCH(H86,#REF!,0),8)),"C",IF(ISTEXT(H86),"I","")))) -> MO | C86: Operador de betoneira estacionária/misturador com encargos complementares | D86: H | E86: 5.29 | F86: Sinapi 87396 | G86: 14.41 | H86: Sinapi 88377 | I86: 76.23
B87: =IF(RIGHT(C87,27)="com encargos complementares","MO",IF(ISNUMBER(INDEX(#REF!,MATCH(H87,#REF!,0),7)),"I",IF(ISNUMBER(INDEX(#REF!,MATCH(H87,#REF!,0),8)),"C",IF(ISTEXT(H87),"I","")))) -> I | C87: Misturador de argamassa, eixo horizontal, capacidade de mistura 300 kg, motor elétrico potência 5 cv - CHP diurno. af_06/2014 | D87: CHP | E87: 1.23 | F87: Sinapi 87396 | G87: 3.12 | H87: Sinapi 88386 | I87: 3.84
B88: =IF(RIGHT(C88,27)="com encargos complementares","MO",IF(ISNUMBER(INDEX(#REF!,MATCH(H88,#REF!,0),7)),"I",IF(ISNUMBER(INDEX(#REF!,MATCH(H88,#REF!,0),8)),"C",IF(ISTEXT(H88),"I","")))) -> I | C88: Misturador de argamassa, eixo horizontal, capacidade de mistura 300 kg, motor elétrico potência 5 cv - CHI diurno. af_06/2014 | D88: CHI | E88: 4.06 | F88: Sinapi 87396 | G88: 0.64 | H88: Sinapi 88392 | I88: 2.6
B89: =IF(RIGHT(C89,27)="com encargos complementares","MO",IF(ISNUMBER(INDEX(#REF!,MATCH(H89,#REF!,0),7)),"I",IF(ISNUMBER(INDEX(#REF!,MATCH(H89,#REF!,0),8)),"C",IF(ISTEXT(H89),"I","")))) -> 
A90: Argamassa traço 1:4 (cimento e areia média) para contrapiso, preparo manual. AF_06/2014 | B90: =IF(RIGHT(C90,27)="com encargos complementares","MO",IF(ISNUMBER(INDEX(#REF!,MATCH(H90,#REF!,0),7)),"I",IF(ISNUMBER(INDEX(#REF!,MATCH(H90,#REF!,0),8)),"C",IF(ISTEXT(H90),"I","")))) ->  | D90: M3 | F90: Sinapi 87373 + Sinapi 97914
B91: =IF(RIGHT(C91,27)="com encargos complementares","MO",IF(ISNUMBER(INDEX(#REF!,MATCH(H91,#REF!,0),7)),"I",IF(ISNUMBER(INDEX(#REF!,MATCH(H91,#REF!,0),8)),"C",IF(ISTEXT(H91),"I","")))) -> 
B92: =IF(RIGHT(C92,27)="com encargos complementares","MO",IF(ISNUMBER(INDEX(#REF!,MATCH(H92,#REF!,0),7)),"I",IF(ISNUMBER(INDEX(#REF!,MATCH(H92,#REF!,0),8)),"C",IF(ISTEXT(H92),"I","")))) -> I | C92: Areia media - posto jazida/fornecedor (retirado na jazida, sem transporte) | D92: M3 | E92: 1.51 | F92: Sinapi 87373 | G92: 80.84 | H92: Sinapi 370 | I92: 122.07 | J92: =SUM(I92:I95) -> 489.79
B93: =IF(RIGHT(C93,27)="com encargos complementares","MO",IF(ISNUMBER(INDEX(#REF!,MATCH(H93,#REF!,0),7)),"I",IF(ISNUMBER(INDEX(#REF!,MATCH(H93,#REF!,0),8)),"C",IF(ISTEXT(H93),"I","")))) -> I | C93: Cimento Portland composto CP II-32 | D93: KG | E93: 435.03 | F93: Sinapi 87373 | G93: 0.37 | H93: Sinapi 1379 | I93: 160.96
B94: =IF(RIGHT(C94,27)="com encargos complementares","MO",IF(ISNUMBER(INDEX(#REF!,MATCH(H94,#REF!,0),7)),"I",IF(ISNUMBER(INDEX(#REF!,MATCH(H94,#REF!,0),8)),"C",IF(ISTEXT(H94),"I","")))) -> MO | C94: Servente com encargos complementares | D94: H | E94: 11.49 | F94: Sinapi 87373 | G94: 14.21 | H94: Sinapi 88316 | I94: 163.27
C95: TRANSPORTE COM CAMINHÃO BASCULANTE DE 6 M3, EM VIA URBANA PAVIMENTADA, DMT ATÉ 30 KM (UNIDADE: M3XKM). AF_01/2018 | D95: m3xkm | E95: =1.51*20 -> 30.2 | F95: Sinapi 97914 | G95: 1.44 | H95: Sinapi 97914 | I95: 43.49
C97: Obs.: Considerando fornecedor de areia a 20 km do Senado Federal.
B98: =IF(RIGHT(C98,27)="com encargos complementares","MO",IF(ISNUMBER(INDEX(#REF!,MATCH(H98,#REF!,0),7)),"I",IF(ISNUMBER(INDEX(#REF!,MATCH(H98,#REF!,0),8)),"C",IF(ISTEXT(H98),"I","")))) -> 
A99: Argamassa traço 1:4 (cimento e areia média), preparo manual. AF_08/2014 | B99: =IF(RIGHT(C99,27)="com encargos complementares","MO",IF(ISNUMBER(INDEX(#REF!,MATCH(H99,#REF!,0),7)),"I",IF(ISNUMBER(INDEX(#REF!,MATCH(H99,#REF!,0),8)),"C",IF(ISTEXT(H99),"I","")))) ->  | D99: M3 | F99: Sinapi 88631 + Sinapi 97914
B100: =IF(RIGHT(C100,27)="com encargos complementares","MO",IF(ISNUMBER(INDEX(#REF!,MATCH(H100,#REF!,0),7)),"I",IF(ISNUMBER(INDEX(#REF!,MATCH(H100,#REF!,0),8)),"C",IF(ISTEXT(H100),"I","")))) -> 
B101: =IF(RIGHT(C101,27)="com encargos complementares","MO",IF(ISNUMBER(INDEX(#REF!,MATCH(H101,#REF!,0),7)),"I",IF(ISNUMBER(INDEX(#REF!,MATCH(H101,#REF!,0),8)),"C",IF(ISTEXT(H101),"I","")))) -> I | C101: Areia media - posto jazida/fornecedor (retirado na jazida, sem transporte) | D101: M3 | E101: 1.23 | F101: Sinapi 88631 | G101: 80.84 | H101: Sinapi 370 | I101: 99.43 | J101: =SUM(I101:I104) -> 396.34
B102: =IF(RIGHT(C102,27)="com encargos complementares","MO",IF(ISNUMBER(INDEX(#REF!,MATCH(H102,#REF!,0),7)),"I",IF(ISNUMBER(INDEX(#REF!,MATCH(H102,#REF!,0),8)),"C",IF(ISTEXT(H102),"I","")))) -> I | C102: Cimento Portland composto CP II-32 | D102: KG | E102: 355.04 | F102: Sinapi 88631 | G102: 0.37 | H102: Sinapi 1379 | I102: 131.36
B103: =IF(RIGHT(C103,27)="com encargos complementares","MO",IF(ISNUMBER(INDEX(#REF!,MATCH(H103,#REF!,0),7)),"I",IF(ISNUMBER(INDEX(#REF!,MATCH(H103,#REF!,0),8)),"C",IF(ISTEXT(H103),"I","")))) -> MO | C103: Servente com encargos complementares | D103: H | E103: 8.59 | F103: Sinapi 88631 | G103: 14.21 | H103: Sinapi 88316 | I103: 122.06
C104: TRANSPORTE COM CAMINHÃO BASCULANTE DE 6 M3, EM VIA URBANA PAVIMENTADA, DMT ATÉ 30 KM (UNIDADE: M3XKM). AF_01/2018 | D104: m3xkm | E104: =1.51*20 -> 30.2 | F104: Sinapi 97914 | G104: 1.44 | H104: Sinapi 97914 | I104: 43.49
C106: Obs.: Considerando fornecedor de areia a 20 km do Senado Federal.
B107: =IF(RIGHT(C107,27)="com encargos complementares","MO",IF(ISNUMBER(INDEX(#REF!,MATCH(H107,#REF!,0),7)),"I",IF(ISNUMBER(INDEX(#REF!,MATCH(H107,#REF!,0),8)),"C",IF(ISTEXT(H107),"I","")))) -> 
A108: Fixação de tubos verticais de PPR diâmetros menores ou iguais a 40 mm com abraçadeira metálica rígida tipo D 1/2", fixada em perfilado em alvenaria. af_05/2015 | B108: =IF(RIGHT(C108,27)="com encargos complementares","MO",IF(ISNUMBER(INDEX(#REF!,MATCH(H108,#REF!,0),7)),"I",IF(ISNUMBER(INDEX(#REF!,MATCH(H108,#REF!,0),8)),"C",IF(ISTEXT(H108),"I","")))) ->  | D108: M | F108: =F110 -> Sinapi 91173
B109: =IF(RIGHT(C109,27)="com encargos complementares","MO",IF(ISNUMBER(INDEX(#REF!,MATCH(H109,#REF!,0),7)),"I",IF(ISNUMBER(INDEX(#REF!,MATCH(H109,#REF!,0),8)),"C",IF(ISTEXT(H109),"I","")))) -> 
B110: =IF(RIGHT(C110,27)="com encargos complementares","MO",IF(ISNUMBER(INDEX(#REF!,MATCH(H110,#REF!,0),7)),"I",IF(ISNUMBER(INDEX(#REF!,MATCH(H110,#REF!,0),8)),"C",IF(ISTEXT(H110),"I","")))) -> I | C110: Abracadeira em aco para amarracao de eletrodutos, tipo D, com 1/2" e parafuso de fixacao | D110: UN | E110: 0.333 | F110: Sinapi 91173 | G110: 0.9 | H110: Sinapi 392 | I110: 0.3 | J110: =SUM(I110:I112) -> 1.03
B111: =IF(RIGHT(C111,27)="com encargos complementares","MO",IF(ISNUMBER(INDEX(#REF!,MATCH(H111,#REF!,0),7)),"I",IF(ISNUMBER(INDEX(#REF!,MATCH(H111,#REF!,0),8)),"C",IF(ISTEXT(H111),"I","")))) -> MO | C111: Auxiliar de encanador ou bombeiro hidráulico com encargos complementares | D111: H | E111: 0.005 | F111: Sinapi 91173 | G111: 14.78 | H111: Sinapi 88248 | I111: 0.07
B112: =IF(RIGHT(C112,27)="com encargos complementares","MO",IF(ISNUMBER(INDEX(#REF!,MATCH(H112,#REF!,0),7)),"I",IF(ISNUMBER(INDEX(#REF!,MATCH(H112,#REF!,0),8)),"C",IF(ISTEXT(H112),"I","")))) -> MO | C112: Encanador ou bombeiro hidráulico com encargos complementares | D112: H | E112: 0.035 | F112: Sinapi 91173 | G112: 18.95 | H112: Sinapi 88267 | I112: 0.66
B113: =IF(RIGHT(C113,27)="com encargos complementares","MO",IF(ISNUMBER(INDEX(#REF!,MATCH(H113,#REF!,0),7)),"I",IF(ISNUMBER(INDEX(#REF!,MATCH(H113,#REF!,0),8)),"C",IF(ISTEXT(H113),"I","")))) -> 
A114: Luva de emenda para eletroduto, aço galvanizado, DN 20 mm (3/4''), aparente, instalada em parede - fornecimento e instalação. af_11/2016_p | B114: =IF(RIGHT(C114,27)="com encargos complementares","MO",IF(ISNUMBER(INDEX(#REF!,MATCH(H114,#REF!,0),7)),"I",IF(ISNUMBER(INDEX(#REF!,MATCH(H114,#REF!,0),8)),"C",IF(ISTEXT(H114),"I","")))) ->  | D114: UN. | F114: =F116 -> Sinapi 95757
B115: =IF(RIGHT(C115,27)="com encargos complementares","MO",IF(ISNUMBER(INDEX(#REF!,MATCH(H115,#REF!,0),7)),"I",IF(ISNUMBER(INDEX(#REF!,MATCH(H115,#REF!,0),8)),"C",IF(ISTEXT(H115),"I","")))) -> 
B116: =IF(RIGHT(C116,27)="com encargos complementares","MO",IF(ISNUMBER(INDEX(#REF!,MATCH(H116,#REF!,0),7)),"I",IF(ISNUMBER(INDEX(#REF!,MATCH(H116,#REF!,0),8)),"C",IF(ISTEXT(H116),"I","")))) -> I | C116: Luva para eletroduto, em aco galvanizado eletrolitico, diametro de 20 mm (3/4") | D116: UN | E116: 1 | F116: Sinapi 95757 | G116: 1.51 | H116: Sinapi 2637 | I116: 1.51 | J116: =SUM(I116:I118) -> 7.86
B117: =IF(RIGHT(C117,27)="com encargos complementares","MO",IF(ISNUMBER(INDEX(#REF!,MATCH(H117,#REF!,0),7)),"I",IF(ISNUMBER(INDEX(#REF!,MATCH(H117,#REF!,0),8)),"C",IF(ISTEXT(H117),"I","")))) -> MO | C117: Auxiliar de eletricista com encargos complementares | D117: H | E117: 0.1827 | F117: Sinapi 95757 | G117: 15.22 | H117: Sinapi 88247 | I117: 2.78
B118: =IF(RIGHT(C118,27)="com encargos complementares","MO",IF(ISNUMBER(INDEX(#REF!,MATCH(H118,#REF!,0),7)),"I",IF(ISNUMBER(INDEX(#REF!,MATCH(H118,#REF!,0),8)),"C",IF(ISTEXT(H118),"I","")))) -> MO | C118: Eletricista com encargos complementares | D118: H | E118: 0.1827 | F118: Sinapi 95757 | G118: 19.55 | H118: Sinapi 88264 | I118: 3.57
B119: =IF(RIGHT(C119,27)="com encargos complementares","MO",IF(ISNUMBER(INDEX(#REF!,MATCH(H119,#REF!,0),7)),"I",IF(ISNUMBER(INDEX(#REF!,MATCH(H119,#REF!,0),8)),"C",IF(ISTEXT(H119),"I","")))) -> 
A120: Luva de emenda para eletroduto, aço galvanizado, DN 25 mm (1''), aparente, instalada em parede - fornecimento e instalação. af_11/2016_p | B120: =IF(RIGHT(C120,27)="com encargos complementares","MO",IF(ISNUMBER(INDEX(#REF!,MATCH(H120,#REF!,0),7)),"I",IF(ISNUMBER(INDEX(#REF!,MATCH(H120,#REF!,0),8)),"C",IF(ISTEXT(H120),"I","")))) ->  | D120: UN. | F120: =F122 -> Sinapi 95758
B121: =IF(RIGHT(C121,27)="com encargos complementares","MO",IF(ISNUMBER(INDEX(#REF!,MATCH(H121,#REF!,0),7)),"I",IF(ISNUMBER(INDEX(#REF!,MATCH(H121,#REF!,0),8)),"C",IF(ISTEXT(H121),"I","")))) -> 
B122: =IF(RIGHT(C122,27)="com encargos complementares","MO",IF(ISNUMBER(INDEX(#REF!,MATCH(H122,#REF!,0),7)),"I",IF(ISNUMBER(INDEX(#REF!,MATCH(H122,#REF!,0),8)),"C",IF(ISTEXT(H122),"I","")))) -> I | C122: Luva para eletroduto, em aco galvanizado eletrolitico, diametro de 25 mm (1") | D122: UN | E122: 1 | F122: Sinapi 95758 | G122: 1.76 | H122: Sinapi 2638 | I122: 1.76 | J122: =SUM(I122:I124) -> 8.82
B123: =IF(RIGHT(C123,27)="com encargos complementares","MO",IF(ISNUMBER(INDEX(#REF!,MATCH(H123,#REF!,0),7)),"I",IF(ISNUMBER(INDEX(#REF!,MATCH(H123,#REF!,0),8)),"C",IF(ISTEXT(H123),"I","")))) -> MO | C123: Auxiliar de eletricista com encargos complementares | D123: H | E123: 0.2033 | F123: Sinapi 95758 | G123: 15.22 | H123: Sinapi 88247 | I123: 3.09
B124: =IF(RIGHT(C124,27)="com encargos complementares","MO",IF(ISNUMBER(INDEX(#REF!,MATCH(H124,#REF!,0),7)),"I",IF(ISNUMBER(INDEX(#REF!,MATCH(H124,#REF!,0),8)),"C",IF(ISTEXT(H124),"I","")))) -> MO | C124: Eletricista com encargos complementares | D124: H | E124: 0.2033 | F124: Sinapi 95758 | G124: 19.55 | H124: Sinapi 88264 | I124: 3.97
B125: =IF(RIGHT(C125,27)="com encargos complementares","MO",IF(ISNUMBER(INDEX(#REF!,MATCH(H125,#REF!,0),7)),"I",IF(ISNUMBER(INDEX(#REF!,MATCH(H125,#REF!,0),8)),"C",IF(ISTEXT(H125),"I","")))) -> 
A126: Luva de emenda para eletroduto, aço galvanizado, DN 32 mm (1 1/4''), aparente, instalada em parede - fornecimento e instalação. af_11/2016_p | B126: =IF(RIGHT(C126,27)="com encargos complementares","MO",IF(ISNUMBER(INDEX(#REF!,MATCH(H126,#REF!,0),7)),"I",IF(ISNUMBER(INDEX(#REF!,MATCH(H126,#REF!,0),8)),"C",IF(ISTEXT(H126),"I","")))) ->  | D126: UN. | F126: =F128 -> Sinapi 95759
B127: =IF(RIGHT(C127,27)="com encargos complementares","MO",IF(ISNUMBER(INDEX(#REF!,MATCH(H127,#REF!,0),7)),"I",IF(ISNUMBER(INDEX(#REF!,MATCH(H127,#REF!,0),8)),"C",IF(ISTEXT(H127),"I","")))) -> 
B128: =IF(RIGHT(C128,27)="com encargos complementares","MO",IF(ISNUMBER(INDEX(#REF!,MATCH(H128,#REF!,0),7)),"I",IF(ISNUMBER(INDEX(#REF!,MATCH(H128,#REF!,0),8)),"C",IF(ISTEXT(H128),"I","")))) -> I | C128: Luva para eletroduto, em aco galvanizado eletrolitico, diametro de 32 mm (1 1/4") | D128: UN | E128: 1 | F128: Sinapi 95759 | G128: 3.13 | H128: Sinapi 2639 | I128: 3.13 | J128: =SUM(I128:I130) -> 11.2
B129: =IF(RIGHT(C129,27)="com encargos complementares","MO",IF(ISNUMBER(INDEX(#REF!,MATCH(H129,#REF!,0),7)),"I",IF(ISNUMBER(INDEX(#REF!,MATCH(H129,#REF!,0),8)),"C",IF(ISTEXT(H129),"I","")))) -> MO | C129: Auxiliar de eletricista com encargos complementares | D129: H | E129: 0.2322 | F129: Sinapi 95759 | G129: 15.22 | H129: Sinapi 88247 | I129: 3.53
B130: =IF(RIGHT(C130,27)="com encargos complementares","MO",IF(ISNUMBER(INDEX(#REF!,MATCH(H130,#REF!,0),7)),"I",IF(ISNUMBER(INDEX(#REF!,MATCH(H130,#REF!,0),8)),"C",IF(ISTEXT(H130),"I","")))) -> MO | C130: Eletricista com encargos complementares | D130: H | E130: 0.2322 | F130: Sinapi 95759 | G130: 19.55 | H130: Sinapi 88264 | I130: 4.54
B131: =IF(RIGHT(C131,27)="com encargos complementares","MO",IF(ISNUMBER(INDEX(#REF!,MATCH(H131,#REF!,0),7)),"I",IF(ISNUMBER(INDEX(#REF!,MATCH(H131,#REF!,0),8)),"C",IF(ISTEXT(H131),"I","")))) -> 
A132: Luva de emenda para eletroduto, aço galvanizado, DN 40 mm (1 1/2''), aparente, instalada em parede - fornecimento e instalação. af_11/2016_p | B132: =IF(RIGHT(C132,27)="com encargos complementares","MO",IF(ISNUMBER(INDEX(#REF!,MATCH(H132,#REF!,0),7)),"I",IF(ISNUMBER(INDEX(#REF!,MATCH(H132,#REF!,0),8)),"C",IF(ISTEXT(H132),"I","")))) ->  | D132: UN. | F132: Sinapi 95760
B133: =IF(RIGHT(C133,27)="com encargos complementares","MO",IF(ISNUMBER(INDEX(#REF!,MATCH(H133,#REF!,0),7)),"I",IF(ISNUMBER(INDEX(#REF!,MATCH(H133,#REF!,0),8)),"C",IF(ISTEXT(H133),"I","")))) -> 
B134: =IF(RIGHT(C134,27)="com encargos complementares","MO",IF(ISNUMBER(INDEX(#REF!,MATCH(H134,#REF!,0),7)),"I",IF(ISNUMBER(INDEX(#REF!,MATCH(H134,#REF!,0),8)),"C",IF(ISTEXT(H134),"I","")))) -> I | C134: Luva para eletroduto, em aco galvanizado eletrolitico, diametro de 40 mm (1 1/2") | D134: UN | E134: 1 | F134: Sinapi 95760 | G134: 4.53 | H134: Sinapi 2644 | I134: 4.53 | J134: =SUM(I134:I136) -> 13.74
B135: =IF(RIGHT(C135,27)="com encargos complementares","MO",IF(ISNUMBER(INDEX(#REF!,MATCH(H135,#REF!,0),7)),"I",IF(ISNUMBER(INDEX(#REF!,MATCH(H135,#REF!,0),8)),"C",IF(ISTEXT(H135),"I","")))) -> MO | C135: Auxiliar de eletricista com encargos complementares | D135: H | E135: 0.2651 | F135: Sinapi 95760 | G135: 15.22 | H135: Sinapi 88247 | I135: =IF(ISNUMBER(G135),ROUND(G135*$E135,2),"") -> 4.03
B136: =IF(RIGHT(C136,27)="com encargos complementares","MO",IF(ISNUMBER(INDEX(#REF!,MATCH(H136,#REF!,0),7)),"I",IF(ISNUMBER(INDEX(#REF!,MATCH(H136,#REF!,0),8)),"C",IF(ISTEXT(H136),"I","")))) -> MO | C136: Eletricista com encargos complementares | D136: H | E136: 0.2651 | F136: Sinapi 95760 | G136: 19.55 | H136: Sinapi 88264 | I136: 5.18
B137: =IF(RIGHT(C137,27)="com encargos complementares","MO",IF(ISNUMBER(INDEX(#REF!,MATCH(H137,#REF!,0),7)),"I",IF(ISNUMBER(INDEX(#REF!,MATCH(H137,#REF!,0),8)),"C",IF(ISTEXT(H137),"I","")))) -> 
A138: Luva de emenda para eletroduto, aço galvanizado, DN 50 mm (2''), aparente, instalada em parede - fornecimento e instalação. af_11/2016_p | B138: =IF(RIGHT(C138,27)="com encargos complementares","MO",IF(ISNUMBER(INDEX(#REF!,MATCH(H138,#REF!,0),7)),"I",IF(ISNUMBER(INDEX(#REF!,MATCH(H138,#REF!,0),8)),"C",IF(ISTEXT(H138),"I","")))) ->  | D138: UN. | F138: Sinapi 95760 Adaptada
B139: =IF(RIGHT(C139,27)="com encargos complementares","MO",IF(ISNUMBER(INDEX(#REF!,MATCH(H139,#REF!,0),7)),"I",IF(ISNUMBER(INDEX(#REF!,MATCH(H139,#REF!,0),8)),"C",IF(ISTEXT(H139),"I","")))) -> 
B140: =IF(RIGHT(C140,27)="com encargos complementares","MO",IF(ISNUMBER(INDEX(#REF!,MATCH(H140,#REF!,0),7)),"I",IF(ISNUMBER(INDEX(#REF!,MATCH(H140,#REF!,0),8)),"C",IF(ISTEXT(H140),"I","")))) -> I | C140: Luva para eletroduto, em aco galvanizado eletrolitico, diametro de 50 mm (2") | D140: UN | E140: 1 | F140: Sinapi 95760 | G140: 6.32 | H140: Sinapi 2643 | I140: 6.32 | J140: =SUM(I140:I142) -> 15.53
B141: =IF(RIGHT(C141,27)="com encargos complementares","MO",IF(ISNUMBER(INDEX(#REF!,MATCH(H141,#REF!,0),7)),"I",IF(ISNUMBER(INDEX(#REF!,MATCH(H141,#REF!,0),8)),"C",IF(ISTEXT(H141),"I","")))) -> MO | C141: Auxiliar de eletricista com encargos complementares | D141: H | E141: 0.2651 | F141: Sinapi 95760 | G141: 15.22 | H141: Sinapi 88247 | I141: 4.03
B142: =IF(RIGHT(C142,27)="com encargos complementares","MO",IF(ISNUMBER(INDEX(#REF!,MATCH(H142,#REF!,0),7)),"I",IF(ISNUMBER(INDEX(#REF!,MATCH(H142,#REF!,0),8)),"C",IF(ISTEXT(H142),"I","")))) -> MO | C142: Eletricista com encargos complementares | D142: H | E142: 0.2651 | F142: Sinapi 95760 | G142: 19.55 | H142: Sinapi 88264 | I142: 5.18
B143: =IF(RIGHT(C143,27)="com encargos complementares","MO",IF(ISNUMBER(INDEX(#REF!,MATCH(H143,#REF!,0),7)),"I",IF(ISNUMBER(INDEX(#REF!,MATCH(H143,#REF!,0),8)),"C",IF(ISTEXT(H143),"I","")))) -> 
A144: Fixação de tubos verticais de PPR diâmetros maiores que 40 mm e menores ou iguais a 75 mm com abraçadeira metálica rígida tipo D 1 1/2", fixada em perfilado em alvenaria. af_05/2015 | B144: =IF(RIGHT(C144,27)="com encargos complementares","MO",IF(ISNUMBER(INDEX(#REF!,MATCH(H144,#REF!,0),7)),"I",IF(ISNUMBER(INDEX(#REF!,MATCH(H144,#REF!,0),8)),"C",IF(ISTEXT(H144),"I","")))) ->  | D144: UN. | F144: =F146 -> Sinapi 91174
B145: =IF(RIGHT(C145,27)="com encargos complementares","MO",IF(ISNUMBER(INDEX(#REF!,MATCH(H145,#REF!,0),7)),"I",IF(ISNUMBER(INDEX(#REF!,MATCH(H145,#REF!,0),8)),"C",IF(ISTEXT(H145),"I","")))) -> 
B146: =IF(RIGHT(C146,27)="com encargos complementares","MO",IF(ISNUMBER(INDEX(#REF!,MATCH(H146,#REF!,0),7)),"I",IF(ISNUMBER(INDEX(#REF!,MATCH(H146,#REF!,0),8)),"C",IF(ISTEXT(H146),"I","")))) -> I | C146: Abracadeira em aco para amarracao de eletrodutos, tipo D, com 1 1/2" e parafuso de fixacao | D146: UN | E146: 0.333 | F146: Sinapi 91174 | G146: 1.85 | H146: Sinapi 394 | I146: 0.62 | J146: =SUM(I146:I148) -> 2.02
B147: =IF(RIGHT(C147,27)="com encargos complementares","MO",IF(ISNUMBER(INDEX(#REF!,MATCH(H147,#REF!,0),7)),"I",IF(ISNUMBER(INDEX(#REF!,MATCH(H147,#REF!,0),8)),"C",IF(ISTEXT(H147),"I","")))) -> MO | C147: Auxiliar de encanador ou bombeiro hidráulico com encargos complementares | D147: H | E147: 0.009 | F147: Sinapi 91174 | G147: 14.78 | H147: Sinapi 88248 | I147: 0.13
B148: =IF(RIGHT(C148,27)="com encargos complementares","MO",IF(ISNUMBER(INDEX(#REF!,MATCH(H148,#REF!,0),7)),"I",IF(ISNUMBER(INDEX(#REF!,MATCH(H148,#REF!,0),8)),"C",IF(ISTEXT(H148),"I","")))) -> MO | C148: Encanador ou bombeiro hidráulico com encargos complementares | D148: H | E148: 0.067 | F148: Sinapi 91174 | G148: 18.95 | H148: Sinapi 88267 | I148: 1.27
B149: =IF(RIGHT(C149,27)="com encargos complementares","MO",IF(ISNUMBER(INDEX(#REF!,MATCH(H149,#REF!,0),7)),"I",IF(ISNUMBER(INDEX(#REF!,MATCH(H149,#REF!,0),8)),"C",IF(ISTEXT(H149),"I","")))) -> 
A150: Fixação de tubos verticais de PPR diâmetros maiores que 40 mm e menores ou iguais a 75 mm com abraçadeira metálica rígida tipo D 2", fixada em perfilado em alvenaria. af_05/2015 | B150: =IF(RIGHT(C150,27)="com encargos complementares","MO",IF(ISNUMBER(INDEX(#REF!,MATCH(H150,#REF!,0),7)),"I",IF(ISNUMBER(INDEX(#REF!,MATCH(H150,#REF!,0),8)),"C",IF(ISTEXT(H150),"I","")))) ->  | D150: UN. | F150: Sinapi 91174 Adaptada
B151: =IF(RIGHT(C151,27)="com encargos complementares","MO",IF(ISNUMBER(INDEX(#REF!,MATCH(H151,#REF!,0),7)),"I",IF(ISNUMBER(INDEX(#REF!,MATCH(H151,#REF!,0),8)),"C",IF(ISTEXT(H151),"I","")))) -> 
B152: =IF(RIGHT(C152,27)="com encargos complementares","MO",IF(ISNUMBER(INDEX(#REF!,MATCH(H152,#REF!,0),7)),"I",IF(ISNUMBER(INDEX(#REF!,MATCH(H152,#REF!,0),8)),"C",IF(ISTEXT(H152),"I","")))) -> I | C152: Abracadeira em aco para amarracao de eletrodutos, tipo D, com 2" e parafuso de fixacao | D152: UN | E152: 0.333 | F152: Sinapi 91174 | G152: 2.06 | H152: Sinapi 396 | I152: 0.69 | J152: =SUM(I152:I154) -> 2.09
B153: =IF(RIGHT(C153,27)="com encargos complementares","MO",IF(ISNUMBER(INDEX(#REF!,MATCH(H153,#REF!,0),7)),"I",IF(ISNUMBER(INDEX(#REF!,MATCH(H153,#REF!,0),8)),"C",IF(ISTEXT(H153),"I","")))) -> MO | C153: Auxiliar de encanador ou bombeiro hidráulico com encargos complementares | D153: H | E153: 0.009 | F153: Sinapi 91174 | G153: 14.78 | H153: Sinapi 88248 | I153: 0.13
B154: =IF(RIGHT(C154,27)="com encargos complementares","MO",IF(ISNUMBER(INDEX(#REF!,MATCH(H154,#REF!,0),7)),"I",IF(ISNUMBER(INDEX(#REF!,MATCH(H154,#REF!,0),8)),"C",IF(ISTEXT(H154),"I","")))) -> MO | C154: Encanador ou bombeiro hidráulico com encargos complementares | D154: H | E154: 0.067 | F154: Sinapi 91174 | G154: 18.95 | H154: Sinapi 88267 | I154: 1.27
B155: =IF(RIGHT(C155,27)="com encargos complementares","MO",IF(ISNUMBER(INDEX(#REF!,MATCH(H155,#REF!,0),7)),"I",IF(ISNUMBER(INDEX(#REF!,MATCH(H155,#REF!,0),8)),"C",IF(ISTEXT(H155),"I","")))) -> 
A156: Aduela / marco / batente para porta de 90x210cm, padrão médio - fornecimento e montagem. AF_08/2015 | B156: =IF(RIGHT(C156,27)="com encargos complementares","MO",IF(ISNUMBER(INDEX(#REF!,MATCH(H156,#REF!,0),7)),"I",IF(ISNUMBER(INDEX(#REF!,MATCH(H156,#REF!,0),8)),"C",IF(ISTEXT(H156),"I","")))) ->  | D156: UN. | F156: =F158 -> Sinapi 90803
B157: =IF(RIGHT(C157,27)="com encargos complementares","MO",IF(ISNUMBER(INDEX(#REF!,MATCH(H157,#REF!,0),7)),"I",IF(ISNUMBER(INDEX(#REF!,MATCH(H157,#REF!,0),8)),"C",IF(ISTEXT(H157),"I","")))) -> 
B158: =IF(RIGHT(C158,27)="com encargos complementares","MO",IF(ISNUMBER(INDEX(#REF!,MATCH(H158,#REF!,0),7)),"I",IF(ISNUMBER(INDEX(#REF!,MATCH(H158,#REF!,0),8)),"C",IF(ISTEXT(H158),"I","")))) -> I | C158: Batente/ portal/ aduela/ marco macico, e= *3 cm, l= *13 cm, *60 cm a 120* cm x *210 cm, em cedrinho/ angelim comercial/ eucalipto/ curupixa/ peroba/ cumaru ou equivalente da regiao (nao inclui alizares) | D158: JG | E158: 1 | F158: Sinapi 90803 | G158: 152.1 | H158: Sinapi 183 | I158: 152.1 | J158: =SUM(I158:I162) -> 237.24
B159: =IF(RIGHT(C159,27)="com encargos complementares","MO",IF(ISNUMBER(INDEX(#REF!,MATCH(H159,#REF!,0),7)),"I",IF(ISNUMBER(INDEX(#REF!,MATCH(H159,#REF!,0),8)),"C",IF(ISTEXT(H159),"I","")))) -> I | C159: Prego de aco polido com cabeca 12 x 12 | D159: KG | E159: 0.0108 | F159: Sinapi 90803 | G159: 12 | H159: Sinapi 5066 | I159: 0.13
B160: =IF(RIGHT(C160,27)="com encargos complementares","MO",IF(ISNUMBER(INDEX(#REF!,MATCH(H160,#REF!,0),7)),"I",IF(ISNUMBER(INDEX(#REF!,MATCH(H160,#REF!,0),8)),"C",IF(ISTEXT(H160),"I","")))) -> I | C160: Prego de aco polido com cabeca 18 x 30 (2 3/4 x 10) | D160: KG | E160: 0.0235 | F160: Sinapi 90803 | G160: 9.11 | H160: Sinapi 5075 | I160: 0.21
B161: =IF(RIGHT(C161,27)="com encargos complementares","MO",IF(ISNUMBER(INDEX(#REF!,MATCH(H161,#REF!,0),7)),"I",IF(ISNUMBER(INDEX(#REF!,MATCH(H161,#REF!,0),8)),"C",IF(ISTEXT(H161),"I","")))) -> MO | C161: Carpinteiro de esquadria com encargos complementares | D161: H | E161: 3.221 | F161: Sinapi 90803 | G161: 19.22 | H161: Sinapi 88261 | I161: 61.91
B162: =IF(RIGHT(C162,27)="com encargos complementares","MO",IF(ISNUMBER(INDEX(#REF!,MATCH(H162,#REF!,0),7)),"I",IF(ISNUMBER(INDEX(#REF!,MATCH(H162,#REF!,0),8)),"C",IF(ISTEXT(H162),"I","")))) -> MO | C162: Servente com encargos complementares | D162: H | E162: 1.611 | F162: Sinapi 90803 | G162: 14.21 | H162: Sinapi 88316 | I162: 22.89
B163: =IF(RIGHT(C163,27)="com encargos complementares","MO",IF(ISNUMBER(INDEX(#REF!,MATCH(H163,#REF!,0),7)),"I",IF(ISNUMBER(INDEX(#REF!,MATCH(H163,#REF!,0),8)),"C",IF(ISTEXT(H163),"I","")))) -> 
A164: Argamassa traço 1:2:9 (cimento, cal e areia média) para emboço/massa única/assentamento de alvenaria de vedação, preparo mecânico com betoneira 600 L. af_06/2014 | B164: =IF(RIGHT(C164,27)="com encargos complementares","MO",IF(ISNUMBER(INDEX(#REF!,MATCH(H164,#REF!,0),7)),"I",IF(ISNUMBER(INDEX(#REF!,MATCH(H164,#REF!,0),8)),"C",IF(ISTEXT(H164),"I","")))) ->  | D164: M3 | F164: Sinapi 87294 + Sinapi 97914
B165: =IF(RIGHT(C165,27)="com encargos complementares","MO",IF(ISNUMBER(INDEX(#REF!,MATCH(H165,#REF!,0),7)),"I",IF(ISNUMBER(INDEX(#REF!,MATCH(H165,#REF!,0),8)),"C",IF(ISTEXT(H165),"I","")))) -> 
B166: =IF(RIGHT(C166,27)="com encargos complementares","MO",IF(ISNUMBER(INDEX(#REF!,MATCH(H166,#REF!,0),7)),"I",IF(ISNUMBER(INDEX(#REF!,MATCH(H166,#REF!,0),8)),"C",IF(ISTEXT(H166),"I","")))) -> I | C166: Areia media - posto jazida/fornecedor (retirado na jazida, sem transporte) | D166: M3 | E166: 1.31 | F166: Sinapi 87294 | G166: 80.84 | H166: Sinapi 370 | I166: 105.9 | J166: =SUM(I166:I173) -> 386.37
B167: =IF(RIGHT(C167,27)="com encargos complementares","MO",IF(ISNUMBER(INDEX(#REF!,MATCH(H167,#REF!,0),7)),"I",IF(ISNUMBER(INDEX(#REF!,MATCH(H167,#REF!,0),8)),"C",IF(ISTEXT(H167),"I","")))) -> I | C167: Cal hidratada CH-I para argamassas | D167: KG | E167: 174.87 | F167: Sinapi 87294 | G167: 0.62 | H167: Sinapi 1106 | I167: 108.42
B168: =IF(RIGHT(C168,27)="com encargos complementares","MO",IF(ISNUMBER(INDEX(#REF!,MATCH(H168,#REF!,0),7)),"I",IF(ISNUMBER(INDEX(#REF!,MATCH(H168,#REF!,0),8)),"C",IF(ISTEXT(H168),"I","")))) -> I | C168: Cimento Portland composto CP II-32 | D168: KG | E168: 167.58 | F168: Sinapi 87294 | G168: 0.37 | H168: Sinapi 1379 | I168: 62
B169: =IF(RIGHT(C169,27)="com encargos complementares","MO",IF(ISNUMBER(INDEX(#REF!,MATCH(H169,#REF!,0),7)),"I",IF(ISNUMBER(INDEX(#REF!,MATCH(H169,#REF!,0),8)),"C",IF(ISTEXT(H169),"I","")))) -> MO | C169: Servente com encargos complementares | D169: H | E169: 0.88 | F169: Sinapi 87294 | G169: 14.21 | H169: Sinapi 88316 | I169: 12.5
B170: =IF(RIGHT(C170,27)="com encargos complementares","MO",IF(ISNUMBER(INDEX(#REF!,MATCH(H170,#REF!,0),7)),"I",IF(ISNUMBER(INDEX(#REF!,MATCH(H170,#REF!,0),8)),"C",IF(ISTEXT(H170),"I","")))) -> MO | C170: Operador de betoneira estacionária/misturador com encargos complementares | D170: H | E170: 3.76 | F170: Sinapi 87294 | G170: 14.41 | H170: Sinapi 88377 | I170: 54.18
B171: =IF(RIGHT(C171,27)="com encargos complementares","MO",IF(ISNUMBER(INDEX(#REF!,MATCH(H171,#REF!,0),7)),"I",IF(ISNUMBER(INDEX(#REF!,MATCH(H171,#REF!,0),8)),"C",IF(ISTEXT(H171),"I","")))) -> I | C171: Betoneira capacidade nominal de 600 L, capacidade de mistura 360 L, motor elétrico trifásico potência de 4 cv, sem carregador - CHP diurno. af_11/2014 | D171: CHP | E171: 0.88 | F171: Sinapi 87294 | G171: 3.2 | H171: Sinapi 89225 | I171: 2.82
B172: =IF(RIGHT(C172,27)="com encargos complementares","MO",IF(ISNUMBER(INDEX(#REF!,MATCH(H172,#REF!,0),7)),"I",IF(ISNUMBER(INDEX(#REF!,MATCH(H172,#REF!,0),8)),"C",IF(ISTEXT(H172),"I","")))) -> I | C172: Betoneira capacidade nominal de 600 L, capacidade de mistura 360 L, motor elétrico trifásico potência de 4 cv, sem carregador - CHI diurno. af_11/2014 | D172: CHI | E172: 2.88 | F172: Sinapi 87294 | G172: 0.98 | H172: Sinapi 89226 | I172: 2.82
C173: TRANSPORTE COM CAMINHÃO BASCULANTE DE 6 M3, EM VIA URBANA PAVIMENTADA, DMT ATÉ 30 KM (UNIDADE: M3XKM). AF_01/2018 | D173: m3xkm | E173: =1.31*20 -> 26.2 | F173: Sinapi 97914 | G173: 1.44 | H173: Sinapi 97914 | I173: 37.73
C175: Obs.: Considerando fornecedor de areia a 20 km do Senado Federal.
B176: =IF(RIGHT(C176,27)="com encargos complementares","MO",IF(ISNUMBER(INDEX(#REF!,MATCH(H176,#REF!,0),7)),"I",IF(ISNUMBER(INDEX(#REF!,MATCH(H176,#REF!,0),8)),"C",IF(ISTEXT(H176),"I","")))) -> 
A177: PINTURA A OLEO BRILHANTE SOBRE SUPERFICIE METALICA, UMA DEMAO INCLUSO UMA DEMAO DE FUNDO ANTICORROSIVO | B177: =IF(RIGHT(C177,27)="com encargos complementares","MO",IF(ISNUMBER(INDEX(#REF!,MATCH(H177,#REF!,0),7)),"I",IF(ISNUMBER(INDEX(#REF!,MATCH(H177,#REF!,0),8)),"C",IF(ISTEXT(H177),"I","")))) ->  | D177: M3 | F177: =F179 -> Sinapi 79498/1
B178: =IF(RIGHT(C178,27)="com encargos complementares","MO",IF(ISNUMBER(INDEX(#REF!,MATCH(H178,#REF!,0),7)),"I",IF(ISNUMBER(INDEX(#REF!,MATCH(H178,#REF!,0),8)),"C",IF(ISTEXT(H178),"I","")))) -> 
B179: =IF(RIGHT(C179,27)="com encargos complementares","MO",IF(ISNUMBER(INDEX(#REF!,MATCH(H179,#REF!,0),7)),"I",IF(ISNUMBER(INDEX(#REF!,MATCH(H179,#REF!,0),8)),"C",IF(ISTEXT(H179),"I","")))) -> I | C179: LIXA EM FOLHA PARA FERRO, NUMERO 150 | D179: UN | E179: 0.5 | F179: Sinapi 79498/1 | G179: 2.64 | H179: Sinapi 3768 | I179: 1.32 | J179: =SUM(I179:I183) -> 14.76
B180: =IF(RIGHT(C180,27)="com encargos complementares","MO",IF(ISNUMBER(INDEX(#REF!,MATCH(H180,#REF!,0),7)),"I",IF(ISNUMBER(INDEX(#REF!,MATCH(H180,#REF!,0),8)),"C",IF(ISTEXT(H180),"I","")))) -> I | C180: TINTA A OLEO BRILHANTE PARA MADEIRA E METAIS | D180: GL | E180: 0.03 | F180: Sinapi 79498/1 | G180: 68.31 | H180: Sinapi 7287 | I180: 2.05
B181: =IF(RIGHT(C181,27)="com encargos complementares","MO",IF(ISNUMBER(INDEX(#REF!,MATCH(H181,#REF!,0),7)),"I",IF(ISNUMBER(INDEX(#REF!,MATCH(H181,#REF!,0),8)),"C",IF(ISTEXT(H181),"I","")))) -> I | C181: FUNDO ANTICORROSIVO PARA METAIS FERROSOS (ZARCAO) | D181: L | E181: 0.108 | F181: Sinapi 79498/1 | G181: 22.29 | H181: Sinapi 7307 | I181: 2.41
B182: =IF(RIGHT(C182,27)="com encargos complementares","MO",IF(ISNUMBER(INDEX(#REF!,MATCH(H182,#REF!,0),7)),"I",IF(ISNUMBER(INDEX(#REF!,MATCH(H182,#REF!,0),8)),"C",IF(ISTEXT(H182),"I","")))) -> MO | C182: PINTOR COM ENCARGOS COMPLEMENTARES | D182: H | E182: 0.33 | F182: Sinapi 79498/1 | G182: 20.32 | H182: Sinapi 88310 | I182: 6.71
B183: =IF(RIGHT(C183,27)="com encargos complementares","MO",IF(ISNUMBER(INDEX(#REF!,MATCH(H183,#REF!,0),7)),"I",IF(ISNUMBER(INDEX(#REF!,MATCH(H183,#REF!,0),8)),"C",IF(ISTEXT(H183),"I","")))) -> MO | C183: SERVENTE COM ENCARGOS COMPLEMENTARES | D183: H | E183: 0.16 | F183: Sinapi 79498/1 | G183: 14.21 | H183: Sinapi 88316 | I183: 2.27
B184: =IF(RIGHT(C184,27)="com encargos complementares","MO",IF(ISNUMBER(INDEX(#REF!,MATCH(H184,#REF!,0),7)),"I",IF(ISNUMBER(INDEX(#REF!,MATCH(H184,#REF!,0),8)),"C",IF(ISTEXT(H184),"I","")))) -> 
A185: Argamassa traço 1:4 (cimento e areia média) para contrapiso, preparo mecânico com betoneira 400 L. af_06/2014 | B185: =IF(RIGHT(C185,27)="com encargos complementares","MO",IF(ISNUMBER(INDEX(#REF!,MATCH(H185,#REF!,0),7)),"I",IF(ISNUMBER(INDEX(#REF!,MATCH(H185,#REF!,0),8)),"C",IF(ISTEXT(H185),"I","")))) ->  | D185: M3 | F185: Sinapi 87301 + Sinapi 97914
B186: =IF(RIGHT(C186,27)="com encargos complementares","MO",IF(ISNUMBER(INDEX(#REF!,MATCH(H186,#REF!,0),7)),"I",IF(ISNUMBER(INDEX(#REF!,MATCH(H186,#REF!,0),8)),"C",IF(ISTEXT(H186),"I","")))) -> 
B187: =IF(RIGHT(C187,27)="com encargos complementares","MO",IF(ISNUMBER(INDEX(#REF!,MATCH(H187,#REF!,0),7)),"I",IF(ISNUMBER(INDEX(#REF!,MATCH(H187,#REF!,0),8)),"C",IF(ISTEXT(H187),"I","")))) -> I | C187: Areia media - posto jazida/fornecedor (retirado na jazida, sem transporte) | D187: M3 | E187: 1.54 | F187: Sinapi 87301 | G187: 80.84 | H187: Sinapi 370 | I187: 124.49 | J187: =SUM(I187:I192) -> 407.02
B188: =IF(RIGHT(C188,27)="com encargos complementares","MO",IF(ISNUMBER(INDEX(#REF!,MATCH(H188,#REF!,0),7)),"I",IF(ISNUMBER(INDEX(#REF!,MATCH(H188,#REF!,0),8)),"C",IF(ISTEXT(H188),"I","")))) -> I | C188: Cimento Portland composto CP II-32 | D188: KG | E188: 442.22 | F188: Sinapi 87301 | G188: 0.37 | H188: Sinapi 1379 | I188: 163.62
B189: =IF(RIGHT(C189,27)="com encargos complementares","MO",IF(ISNUMBER(INDEX(#REF!,MATCH(H189,#REF!,0),7)),"I",IF(ISNUMBER(INDEX(#REF!,MATCH(H189,#REF!,0),8)),"C",IF(ISTEXT(H189),"I","")))) -> MO | C189: Operador de betoneira estacionária/misturador com encargos complementares | D189: H | E189: 5.02 | F189: Sinapi 87301 | G189: 14.41 | H189: Sinapi 88377 | I189: 72.34
B190: =IF(RIGHT(C190,27)="com encargos complementares","MO",IF(ISNUMBER(INDEX(#REF!,MATCH(H190,#REF!,0),7)),"I",IF(ISNUMBER(INDEX(#REF!,MATCH(H190,#REF!,0),8)),"C",IF(ISTEXT(H190),"I","")))) -> I | C190: Betoneira capacidade nominal de 400 L, capacidade de mistura 280 L, motor elétrico trifásico potência de 2 cv, sem carregador - CHP diurno. af_10/2014 | D190: CHP | E190: 1.17 | F190: Sinapi 87301 | G190: 1.14 | H190: Sinapi 88830 | I190: 1.33
B191: =IF(RIGHT(C191,27)="com encargos complementares","MO",IF(ISNUMBER(INDEX(#REF!,MATCH(H191,#REF!,0),7)),"I",IF(ISNUMBER(INDEX(#REF!,MATCH(H191,#REF!,0),8)),"C",IF(ISTEXT(H191),"I","")))) -> I | C191: Betoneira capacidade nominal de 400 L, capacidade de mistura 280 L, motor elétrico trifásico potência de 2 cv, sem carregador - CHI diurno. af_10/2014 | D191: CHI | E191: 3.85 | F191: Sinapi 87301 | G191: 0.23 | H191: Sinapi 88831 | I191: 0.89
C192: TRANSPORTE COM CAMINHÃO BASCULANTE DE 6 M3, EM VIA URBANA PAVIMENTADA, DMT ATÉ 30 KM (UNIDADE: M3XKM). AF_01/2018 | D192: m3xkm | E192: =1.54*20 -> 30.8 | F192: Sinapi 97914 | G192: 1.44 | H192: Sinapi 97914 | I192: 44.35
C194: Obs.: Considerando fornecedor de areia a 20 km do Senado Federal.
B195: =IF(RIGHT(C195,27)="com encargos complementares","MO",IF(ISNUMBER(INDEX(#REF!,MATCH(H195,#REF!,0),7)),"I",IF(ISNUMBER(INDEX(#REF!,MATCH(H195,#REF!,0),8)),"C",IF(ISTEXT(H195),"I","")))) -> 
A196: UMIDIFICAÇÃO DE MATERIAL PARA VALAS COM CAMINHÃO PIPA 10000L. AF_11/2016 | B196: =IF(RIGHT(C196,27)="com encargos complementares","MO",IF(ISNUMBER(INDEX(#REF!,MATCH(H196,#REF!,0),7)),"I",IF(ISNUMBER(INDEX(#REF!,MATCH(H196,#REF!,0),8)),"C",IF(ISTEXT(H196),"I","")))) ->  | D196: M3 | F196: =F198 -> Sinapi 95606
B197: =IF(RIGHT(C197,27)="com encargos complementares","MO",IF(ISNUMBER(INDEX(#REF!,MATCH(H197,#REF!,0),7)),"I",IF(ISNUMBER(INDEX(#REF!,MATCH(H197,#REF!,0),8)),"C",IF(ISTEXT(H197),"I","")))) -> 
B198: =IF(RIGHT(C198,27)="com encargos complementares","MO",IF(ISNUMBER(INDEX(#REF!,MATCH(H198,#REF!,0),7)),"I",IF(ISNUMBER(INDEX(#REF!,MATCH(H198,#REF!,0),8)),"C",IF(ISTEXT(H198),"I","")))) -> I | C198: CAMINHÃO PIPA 10.000 L TRUCADO, PESO BRUTO TOTAL 23.000 KG, CARGA ÚTIL MÁXIMA 15.935 KG, DISTÂNCIA ENTRE EIXOS 4,8 M, POTÊNCIA 230 CV, INCLUSIVE TANQUE DE AÇO PARA TRANSPORTE DE ÁGUA - CHP DIURNO. AF_06/2014 | D198: CHP | E198: 0,0060000 | F198: Sinapi 95606 | G198: 153.97 | H198: Sinapi 5901 | I198: 0.92 | J198: =SUM(I198:I200) -> 1.15
B199: =IF(RIGHT(C199,27)="com encargos complementares","MO",IF(ISNUMBER(INDEX(#REF!,MATCH(H199,#REF!,0),7)),"I",IF(ISNUMBER(INDEX(#REF!,MATCH(H199,#REF!,0),8)),"C",IF(ISTEXT(H199),"I","")))) -> I | C199: CAMINHÃO PIPA 10.000 L TRUCADO, PESO BRUTO TOTAL 23.000 KG, CARGA ÚTIL MÁXIMA 15.935 KG, DISTÂNCIA ENTRE EIXOS 4,8 M, POTÊNCIA 230 CV, INCLUSIVE TANQUE DE AÇO PARA TRANSPORTE DE ÁGUA - CHI DIURNO. AF_06/2014 | D199: CHI | E199: 0,0030000 | F199: Sinapi 95606 | G199: 31.68 | H199: Sinapi 5903 | I199: =IF(ISNUMBER(G199),ROUND(G199*$E199,2),"") -> 0.1
B200: =IF(RIGHT(C200,27)="com encargos complementares","MO",IF(ISNUMBER(INDEX(#REF!,MATCH(H200,#REF!,0),7)),"I",IF(ISNUMBER(INDEX(#REF!,MATCH(H200,#REF!,0),8)),"C",IF(ISTEXT(H200),"I","")))) -> MO | C200: SERVENTE COM ENCARGOS COMPLEMENTARES | D200: H | E200: 0,0090000 | F200: Sinapi 95606 | G200: 14.21 | H200: Sinapi 88316 | I200: 0.13
B201: =IF(RIGHT(C201,27)="com encargos complementares","MO",IF(ISNUMBER(INDEX(#REF!,MATCH(H201,#REF!,0),7)),"I",IF(ISNUMBER(INDEX(#REF!,MATCH(H201,#REF!,0),8)),"C",IF(ISTEXT(H201),"I","")))) -> 
A202: CORTE E DOBRA DE AÇO CA-50, DIÂMETRO DE 8,0 MM, UTILIZADO EM ESTRUTURAS DIVERSAS, EXCETO LAJES. AF_12/2015 | B202: =IF(RIGHT(C202,27)="com encargos complementares","MO",IF(ISNUMBER(INDEX(#REF!,MATCH(H202,#REF!,0),7)),"I",IF(ISNUMBER(INDEX(#REF!,MATCH(H202,#REF!,0),8)),"C",IF(ISTEXT(H202),"I","")))) ->  | D202: M3 | F202: Sinapi 92793
B203: =IF(RIGHT(C203,27)="com encargos complementares","MO",IF(ISNUMBER(INDEX(#REF!,MATCH(H203,#REF!,0),7)),"I",IF(ISNUMBER(INDEX(#REF!,MATCH(H203,#REF!,0),8)),"C",IF(ISTEXT(H203),"I","")))) -> 
B204: =IF(RIGHT(C204,27)="com encargos complementares","MO",IF(ISNUMBER(INDEX(#REF!,MATCH(H204,#REF!,0),7)),"I",IF(ISNUMBER(INDEX(#REF!,MATCH(H204,#REF!,0),8)),"C",IF(ISTEXT(H204),"I","")))) -> I | C204: ACO CA-50, 8,0 MM, VERGALHAO | D204: KG | E204: 1,1100000 | F204: Sinapi 92793 | G204: 5.11 | H204: Sinapi 33 | I204: 5.67 | J204: =SUM(I204:I206) -> 6.15
B205: =IF(RIGHT(C205,27)="com encargos complementares","MO",IF(ISNUMBER(INDEX(#REF!,MATCH(H205,#REF!,0),7)),"I",IF(ISNUMBER(INDEX(#REF!,MATCH(H205,#REF!,0),8)),"C",IF(ISTEXT(H205),"I","")))) -> MO | C205: AJUDANTE DE ARMADOR COM ENCARGOS COMPLEMENTARES | D205: H | E205: 0,0032000 | F205: Sinapi 92793 | G205: 14.9 | H205: Sinapi 88238 | I205: 0.05
B206: =IF(RIGHT(C206,27)="com encargos complementares","MO",IF(ISNUMBER(INDEX(#REF!,MATCH(H206,#REF!,0),7)),"I",IF(ISNUMBER(INDEX(#REF!,MATCH(H206,#REF!,0),8)),"C",IF(ISTEXT(H206),"I","")))) -> MO | C206: ARMADOR COM ENCARGOS COMPLEMENTARES | D206: H | E206: 0,0224000 | F206: Sinapi 92793 | G206: 19.22 | H206: Sinapi 88245 | I206: 0.43
B207: =IF(RIGHT(C207,27)="com encargos complementares","MO",IF(ISNUMBER(INDEX(#REF!,MATCH(H207,#REF!,0),7)),"I",IF(ISNUMBER(INDEX(#REF!,MATCH(H207,#REF!,0),8)),"C",IF(ISTEXT(H207),"I","")))) -> 
A208: CORTE E DOBRA DE AÇO CA-50, DIÂMETRO DE 12,5 MM, UTILIZADO EM ESTRUTURAS DIVERSAS, EXCETO LAJES. AF_12/2015 | B208: =IF(RIGHT(C208,27)="com encargos complementares","MO",IF(ISNUMBER(INDEX(#REF!,MATCH(H208,#REF!,0),7)),"I",IF(ISNUMBER(INDEX(#REF!,MATCH(H208,#REF!,0),8)),"C",IF(ISTEXT(H208),"I","")))) ->  | D208: M3 | F208: Sinapi 92795
... 27 more rows

Sheet BDI
A1: =Orçamentária!A1 -> Ata de Registro de Preços para Reformas no SF - 2019/2020
A2: BENEFÍCIOS E DESPESAS INDIRETAS - BDI
A4: BDI Edificações | F4: BDI mero fornecimento
A5: Componentes do BDI | B5: Cálculo sem CPRB | C5: Cálculo com CPRB | F5: Componentes do BDI | G5: Cálculo sem CPRB | H5: Cálculo com CPRB
B6: (não-desonerado) | C6: (desonerado) | G6: (não-desonerado) | H6: (desonerado)
B7: % considerado | C7: % considerado | G7: % considerado | H7: % considerado
A8: AC | B8: 0.04 | C8: =B8 -> 0.04 | F8: AC | G8: 0.0169 | H8: 0.0169
A9: S+G | B9: 0.008 | C9: 0.008 | F9: S+G | G9: 0.003 | H9: 0.003
A10: R | B10: 0.0109 | C10: 0.0109 | F10: R | G10: 0.0056 | H10: 0.0056
A11: DF | B11: 0.01 | C11: 0.01 | F11: DF | G11: 0.0085 | H11: 0.0085
A12: L | B12: 0.0616 | C12: 0.0616 | F12: L | G12: 0.035 | H12: 0.035
A13: PIS | B13: 0.0065 | C13: 0.0065 | F13: PIS | G13: 0.0065 | H13: 0.0065
A14: COFINS | B14: 0.03 | C14: 0.03 | F14: COFINS | G14: 0.03 | H14: 0.03
A15: CPRB | B15: 0 | C15: 0.045 | F15: CPRB | G15: 0 | H15: 0.045
A16: ISS | B16: 0.02 | C16: =B16 -> 0.02 | F16: ISS | G16: 0 | H16: 0
A17: BDI Edificações | B17: =ROUND(((1+B8+B9+B10)*(1+B11)*(1+B12))/(1-(B13+B14+B15+B16))-1,4) -> 0.2034 | C17: =ROUND(((1+C8+C9+C10)*(1+C11)*(1+C12))/(1-(C13+C14+C15+C16))-1,4) -> 0.2636 | F17: BDI mero fornecimento | G17: =ROUND(((1+G8+G9+G10)*(1+G11)*(1+G12))/(1-(G13+G14+G15+G16))-1,2) -> 0.11 | H17: =ROUND(((1+H8+H9+H10)*(1+H11)*(1+H12))/(1-(H13+H14+H15+H16))-1,4) -> 0.1654
A19: Referências TCU - BDI Edificações | F19: Referências TCU - BDI mero fornecimento
B20: 1º Quartil | C20: Médio | D20: 3º Quartil | G20: 1º Quartil | H20: Médio | I20: 3º Quartil
A21: AC | B21: 0.03 | C21: 0.04 | D21: 0.055 | F21: AC | G21: 0.015 | H21: 0.0345 | I21: 0.0449
A22: S+G | B22: 0.008 | C22: 0.008 | D22: 0.01 | F22: S+G | G22: 0.003 | H22: 0.0048 | I22: 0.0082
A23: R | B23: 0.0097 | C23: 0.0127 | D23: 0.0127 | F23: R | G23: 0.0056 | H23: 0.0085 | I23: 0.0089
A24: DF | B24: 0.0059 | C24: 0.0123 | D24: 0.0139 | F24: DF | G24: 0.0085 | H24: 0.0085 | I24: 0.0111
A25: L | B25: 0.0616 | C25: 0.074 | D25: 0.0896 | F25: L | G25: 0.035 | H25: 0.0511 | I25: 0.0622
A27: BDI | B27: 0.2034 | C27: 0.2212 | D27: 0.25 | F27: BDI | G27: 0.111 | H27: 0.1402 | I27: 0.168
A47: Fonte: Acórdãos 2.639/2011-TCU-Plenário e 2.622/2013-TCU-Plenário.
